{"text_format":"3","workbook":"xlsx","n_sheets":35,"sheets":["Титульный лист","Контакты","Содержание","таб1","таб2","таб3","таб 4","таб 5","таб 6","таб 7","таб 8,9","таб 10","таб 11.","таб 12.","таб 13.","таб 14.","таб 15.","таб 16.","таб 17.","таб 18.","таб 19.","таб 20.","таб 21","таб22","таб 23.","таб 24.","таб 25.","таб 26.","таб 27,28","таб 29_30","таб 31_32","таб 33_34","таб 35-36","таб 37_38 ","Лист1"],"not_rendered":{"defined_names":38},"read":"whole","date_system":"1900"}

{"sheet":"Титульный лист","index":0,"n_rows":39,"n_cols":1,"rows_kept":39}
[]
["Кыргыз Республикасынын Улуттук статистика комитети"]
["Национальный статистический комитет Кыргызской Республики"]
{"$rows_empty":15}
["СООДАНЫН ЖАНА КЫЗМАТ КӨРСӨТҮҮНYН "]
["НЕГИЗГИ  КӨРСӨТКҮЧТӨРҮ"]
[]
[]
[]
[" Февраль 2026"]
["№ 2"]
{"$rows_empty":8}
["ОСНОВНЫЕ ПОКАЗАТЕЛИ ТОРГОВЛИ И УСЛУГ"]
[]
[]
[]
[]
["Бишкек 2026"]

{"sheet":"Контакты","index":1,"n_rows":35,"n_cols":1,"rows_kept":35}
["Сооданын жана кызмат көрсөтүүнүн негизги көрсөткүчтөрү "]
["Ушул басылмага байланыштуу суроолор боюнча төмөнкү дарекке кайрылыңыздар:"]
["Бишкек ш., Фрунзе көчөсү, 374;"]
["телефон: 996 (312) 32-46-50; 66-41-66"]
["факс: 66-01-38;"]
["Интернет: www.stat.gov.kg"]
["e-mail: nsc_mail@stat.kg;"]
["Кыргыз Республикасынын Улуттук статистика комитети"]
["Соода жана кызмат көрсөтүү, МКТ жана туризм статистикасы башкармалыгы "]
["2026-жылдын январь-февралында Кыргыз Республикасындагы сооданын жана кызмат көрсөтүүнүн негизги көрсөткүчтөрү тез берилген маалыматтардын негизинде керектөө рыногунун жана кызмат көрсөтүү чөйрөсүнүн өнүгүшүн мүнөздөөчү статистикалык маалыматтарды камтыйт. Аймактар жана экономикалык ишмердиктердин түрлөрү боюнча таблицаларда толук маалыматтар келтирилди. Мурда жарыяланган маалыматтарга караганда айрым көрсөткүчтөргө былтыркы жыл боюнча такталган маалыматтар келтирилди."]
["Статистикалык маалыматтарды жалпыга маалымдоо каражаттарында жана илимий эмгектерде пайдаланган учурда маалымат тармактарына, кагазда, магнитик жана башка алып жүрүүчүлөргө таратканда, пайдалануучулар расмий статистиканын маалыматтарын жана тиешелүү метамаалыматтарды пайдаланууда алардын булагына шилтеме берүүгө милдеттүү («Расмий статистика жөнүнө» Кыргыз Республикасынын Мыйзамынын 30-беренеси)."]
["Ай сайын чыгырылат."]
["Басылма электрондук алып жүрүүчүлөрдө да бар."]
["Бул басылманын маалыматтарын жаңылоонун акыркы күнү: 2026-ж. 24-март"]
["Шарттуу белгилер"]
["- кубулуш болгон эмес;"]
["... маалымат жок;                                                                       "]
["0,0 анча чоң эмес өлчөм."]
["Основные показатели торговли и услуг"]
["Для информации, связанной с этой публикацией, обращайтесь по адресу:"]
["г. Бишкек, ул. Фрунзе, 374,"]
["телефон: 996 (312) 32-46-50; 66-41-66, факс: 66-01-38;"]
["        Интернет: www.stat.gov.kg"]
["        e-mail: nsc_mail@stat.kg;  "]
["Национальный статистический комитет Кыргызской Республики"]
["Управление статистики торговли и услуг, ИКТ и туризма  "]
["Основные показатели торговли и услуг содержит информацию о данных, характеризующих потребительский рынок и услуги Кыргызской Республики в январе -феврале 2026г. на основе оперативных данных. В таблицах приведены подробные статистические данные по видам экономической деятельности и по территории. По ряду показателей за предыдущий год приводятся уточненные данные, отличные от ранее опубликованных. "]
["При использовании статистических данных в средствах массовой информации и научных трудах, распространении в информационных сетях, на бумажных, магнитных и иных носителях пользователи при использовании данных официальной статистики и соответствующих метаданных обязаны ссылаться на их источник (ст. 30 Закона Кыргызской Республики «Об официальной статистике»)."]
["Выпускается ежемесячно."]
["Публикация имеется также на электронных носителях."]
["Последний день обновления данных настоящей публикации: 24 марта 2026г."]
["Условные знаки:"]
["- явление отсутствует"]
["... данных не имеется;"]
["0,0 незначительная величина"]

{"sheet":"Содержание","index":2,"n_rows":81,"n_cols":3,"rows_kept":81}
[null,"Мазмуну"]
[null,"Содержание"]
[null,null,"Стр."]
[null,"Сооданын жана кызмат көрсөтүүнүн негизги көрсөткүчтөрү"]
[null,"Основные показатели торговли и услуг"]
["Таблица 1."," Рыноктук кызмат көрсөтүүлөрдүн экономикалык  ишмердиктин түрлөрү боюнча көлөмү",6]
[null,"   Объем рыночных услуг по видам экономической деятельности"]
["Таблица 2.","Рыноктук кызмат көрсөтүүлөрдүн аймактар боюнча көлөмү",7]
[null," Объем рыночных услуг по территории"]
["Таблица 3.","Дүң жана чекене соода сооданын,автоунааларды жана мотоциклдерди оңдоонун жүгүртүүсү",8]
[null,"Оборот оптовой и розничной торговли, ремонта автомобилей и мотоциклов"]
["Таблица 4."," Аймактар боюнча дүң жана чекене сооданын, автоунааларды жана мотоциклдерди оңдоонун жүгүртүүсү ",9]
[null," Оборот оптовой и розничной торговли, ремонта автомобилей и мотоциклов по территории"]
["Таблица 5."," Мотор майларын чекене сатуунун аймактар боюнча жүгүртүлүшү",10]
[null,"Оборот розничной торговли моторным топливом по территории "]
["Таблица 6."," Автоунааларды жана мотоциклдерди сатууну кошпогондогу чекене сооданын жүгүртүлүшү",11]
[null,"Оборот розничной торговли, кроме торговли автомобилями  и мотоциклами"]
["Таблица 7."," Автоунааларды жана мотоциклдерди сатууну кошпогондогу чекене сооданын аймактар боюнча жүгүртүлүшү",12]
[null,"Оборот розничной торговли, кроме торговли автомобилями  и мотоциклами, по территории"]
["Таблица 8.","Тамактануу ишканаларынын жүгүртүүсүн кошкондогу чекене сооданын жүгүртүлүшү",13]
[null," Оборот розничной торговли, включая оборот предприятий питания"]
["Таблица 9."," Тамактануу ишканаларынын жүгүртүүсүн кошкондогу азык-түлүк жана азык-түлүк эмес товарлардын чекене сооданын жүгүртүлүшү",13]
[null,"Оборот розничной торговли, включая оборот предприятий питания, продовольственными и непродовольственными товарами"]
["Таблица 10.","Тамактануу ишканаларынын жүгүртүүсүн кошкондогу сатуунун каналдары боюнча чекене сооданын жүгүртүлүшү ",14]
[null,"Оборот розничной торговли, включая оборот предприятий питания, по каналам реализации"]
["Таблица 11."," Мейманканалардын жана ресторандардын кызмат көрсөтүүлөрүнүн көлөмү ",15]
[null,"Объем услуг, предоставленных гостиницами и ресторанами"]
["Таблица 12."," Мейманканалардын жана ресторандардын кызмат көрсөтүүлөрүнүн аймактар боюнча көлөмү",16]
[null,"Объем услуг, предоставленных гостиницами и ресторанами,  по территории"]
["Таблица 13.","Транспорттун бардык түрү менен жүктөрдүн ташылышы",17]
[null,"Перевозки грузов всеми видами транспорта"]
["Таблица 14.","Аймактар боюнча транспорттун бардык түрү менен жүктөрдүн ташылышы",18]
[null,"Перевозки грузов всеми видами транспорта по территории"]
["Таблица 15."," Транспорттун бардык түрү менен жүк ташуунун жүгүртүлүшүнүн көлөмү ",19]
[null,"Объем грузооборота, выполненного всеми видами транспорта,"]
["Таблица 16."," Транспорттун бардык түрү менен жүргүнчүлөрдүн ташылышы",20]
[null," Перевозки пассажиров всеми видами транспорта "]
["Таблица 17.","Аймактар боюнча транспорттун бардык түрү менен жүргүнчүлөрдүн ташылышы",21]
[null,"  Перевозки пассажиров всеми видами транспорта по территории"]
["Таблица 18.","Аймактар боюнча жүргүнчүлөрдүн автобустар, микроавтобустар менен ташылышы",22]
[null," Перевозки пассажиров автобусами и микроавтобусами по территории"]
["Таблица 19."," Транспорттун бардык түрү менен жүргүнчүлөрдү ташуунун жүгүртүү   көлөмү ",23]
[null,"Объем пассажирооборота, выполненного всеми видами транспорта"]
["Таблица 20.","Дүң жана чекене сооданын, автоунааларды жана мотоциклдерди оңдоонун жүгүртүлүшү","24-26"]
[null,"  Оборот оптовой и розничной торговли, ремонта автомобилей и мотоциклов"]
["Таблица 21.","Экономикалык ишмердиктин түрлөрү боюнча дүң жана чекене сооданын, автоунааларды жана мотоциклдерди оңдоонун аймактар боюнча жүгүртүлүшү","27-28"]
[null,"Оборот оптовой и розничной торговли, ремонта автомобилей и мотоциклов по видам экономической деятельности в разрезе территории "]
["Таблица 22.","Мейманканалардын жана ресторандардын кызмат көрсөтүүлөрүнүн көлөмү",29]
[null,"Объем предоставленных услуг гостиницами и ресторанами "]
["Таблица 23."," Тамактануу ишканаларынын жүгүртүүсүн кошкондогу сатуунун бардык каналдары боюнча чекене сооданын жүгүртүлүшү","30-31"]
[null,"Оборот розничной торговли, включая оборот предприятий питания по всем каналам реализации"]
["Таблица 24.","Буюм-терим, аралаш жана азык-түлүк базарлардын жүгүртүүсү",32]
[null,"Оборот вещевых, смешанных и продовольственных рынков "]
["Таблица 25.","Тамактануу ишканаларын кошкондогу, сатуучу уюмдардын чекене соода жүгүртүүсү",33]
[null," Оборот розничной торговли торгующих организаций, включая общественное питание"]
["Таблица 26.","Сооданын, мейманканалардын жана ресторандардын жүгүртүлүшүн кошпогондо, рыноктук кызмат көрсөтүүлөрдүн экономикалык ишмердигинин түрлөрү боюнча көлөмү",34]
[null,"Объем оказанных рыночных услуг, исключая оборот торговли, гостиниц и ресторанов по видам экономической деятельности "]
["Таблица 27."," Сооданын, мейманканалардын жана ресторандардын жүгүртүлүшүн кошпогондогу, рыноктук кызмат көрсөтүүлөрдүн аймактар боюнча көлөмү ",35]
[null,"Объем оказанных рыночных услуг, исключая оборот торговли, гостиниц и ресторанов по территории\n"]
["Таблица 28.","Рыноктук транспорт ишмердигинин кызмат көрсөтүүлөрдүн көлөмү",35]
[null,"Объем оказанных рыночных  транспортных услуг "]
["Таблица 29.","Маалымат жана байланыш боюнча рыноктук кызмат көрсөтүүлөрдүн көлөмү",36]
[null,"Объем оказанных рыночных услуг информации и связи "]
["Таблица 30.","Финансылык ортомчулук жана камсыздандыруу боюнча рыноктук кызмат көрсөтүүлөрдүн көлөмү ",36]
[null,"Объем оказанных рыночных услуг финансового посредничества и страхования\n"]
["Таблица 31.","Кыймылсыз мүлк боюнча рыноктук кызмат көрсөтүүлөрдүн көлөмү",37]
[null,"Объем оказанных рыночных услуг операций с недвижимым\nимуществом"]
["Таблица 32.","Кесиптик, илимий жана техникалык ишмердик боюнча рыноктук кызмат көрсөтүүлөрдүн көлөмү",37]
[null,"Объем оказанных рыночных услуг профессиональной, научной  и технической деятельности "]
["Таблица 33.","Административдик жана көмөкчү ишмердик боюнча рыноктук кызмат көрсөтүүлөрдүн көлөмү ",38]
[null,"Объем оказанных рыночных услуг административной и вспомогательной деятельности"]
["Таблица 34."," Билим берүү боюнча рыноктук кызмат көрсөтүүлөрдүн көлөмү ",38]
[null,"Объем оказанных рыночных услуг в образовании "]
["Таблица 35."," Саламаттыкты сактоо жана калкты социалдык жактан тейлөө боюнча рыноктук кызмат көрсөтүүлөрдүн көлөмү \n",39]
[null,"Объем оказанных рыночных услуг здравоохранения и социального обслуживания населения"]
["Таблица 36."," Искусство, көңүл ачуу жана эс алуу боюнча рыноктук кызмат көрсөтүүлөрдүн көлөмү  \n",39]
[null,"Объем оказанных рыночных услуг искусства, развлечений и отдыха\n"]
["Таблица 37.","Башка тейлөө ишмердиктери боюнча рыноктук кызмат көрсөтүүлөрдүн көлөмү",40]
[null,"Объем оказанных рыночных услуг прочей обслуживающей деятельности "]
["Таблица 38. "," (КНСти, акцизди жана ушул сыяктуу милдеттүү төлөмдөрдү эсепке албаганда) почта жана чабарман ишмердиги, байланыш, радиоберүү жана телекөрсөтүү кызмат көрсөтүүлөрүнөн түшкөн пайда (жүгүртүү)\n \n \n",40]
[null,"Выручка (оборот) от услуг почтовой и курьерской деятельности, услуг связи, радиовещания и телевидения (без учета НДС, акциза и аналогичных обязательных платежей) "]

{"sheet":"таб1","index":3,"n_rows":26,"n_cols":8,"rows_kept":26,"merged":[[3,0,3,7],[5,0,9,0],[5,1,5,2],[5,3,5,6],[5,7,9,7],[6,1,7,1],[6,2,7,2],[6,3,6,6],[7,3,7,4],[7,5,7,6],[8,1,10,1],[8,2,10,2],[8,3,8,4],[8,5,8,6]]}
[{"$nulls":6},"Обратно в содержание"]
["1-таблица: 2026-жылдын январь-февралында рыноктук кызмат көрсөтүүлөрдүн экономикалык "]
["                     ишмердиктин түрлөрү боюнча көлөмү"]
["                   Объем рыночных услуг по видам экономической деятельности в январе - феврале 2026г.\n"]
[]
[null,"Млн. сом",null,"Пайыз менен \n"]
[null,"бардыгы","анын ичинде калкка","В процентах "]
[{"$nulls":3},"мурунку жылдын тийиштүү мезгилине карата",null,"жыйынтыкка карата"]
[null,"всего","в т.ч. населению","соответствующему периоду предыдущего года",null,"к итогу"]
[{"$nulls":3},"бардыгы","анын ичинде элге","бардыгы","анын ичинде элге"]
[{"$nulls":3},"всего","в т.ч. населению","всего","в т.ч. населению"]
[]
["Бардыгы",{"v":437049.7,"d":"437,049.7"},{"v":198388.6,"d":"198,388.6"},110.2,113.5,{"v":100,"d":"100.0"},{"v":100,"d":"100.0"}," Объем услуг - всего"]
["анын ичинде:",{"$nulls":6},"    в том числе:"]
["дүң жана чекене соода, автоунааларды жана мотоциклдерди оңдоо",{"v":303397.2,"d":"303,397.2"},{"v":131489.2,"d":"131,489.2"},111.4,114.7,69.4,66.3,"оптовой и розничной  торговли, ремонта автомобилей и мотоциклов"]
["транспорт ишмердиги жана жүктөрдү сактоо",{"v":15836.5,"d":"15,836.5"},{"v":10818.9,"d":"10,818.9"},103.7,132.6,3.6,5.5,"транспортной деятельности  и хранения грузов"]
["мейманканалардын жана ресторандардын ишмердиги",{"v":7614.3,"d":"7,614.3"},{"v":7614.3,"d":"7,614.3"},113.2,113.2,1.7,3.8,"деятельности гостиниц  и ресторанов"]
["маалымат жана  байланыш",{"v":11317.8,"d":"11,317.8"},{"v":7115.8,"d":"7,115.8"},103.3,103.2,2.6,3.6,"информации и связи"]
["финансылык ортомчулук жана камсыздандыруу",{"v":73956.1,"d":"73,956.1"},{"v":25900.3,"d":"25,900.3"},101.2,101.1,16.9,13.1,"финансового посредничества и страхования"]
["кыймылсыз мүлк операциялары",{"v":5560.9,"d":"5,560.9"},{"v":3140,"d":"3,140.0"},97.5,97.6,1.3,1.6,"операций с недвижимым имуществом"]
["кесиптик, илимий жана техникалык ишмердик",{"v":5881.7,"d":"5,881.7"},{"v":2486.9,"d":"2,486.9"},103.3,102.8,1.3,1.3,"профессиональной, научной и технической деятельности"]
["администрациялык жана көмөкчү ишмердик",{"v":3130,"d":"3,130.0"},{"v":1403.3,"d":"1,403.3"},101.1,101.1,0.7,0.7,"административной и вспомогательной деятельности"]
["билим берүү",{"v":3362.3,"d":"3,362.3"},{"v":2718.3,"d":"2,718.3"},129.2,104.3,0.8,1.4,"образования"]
["саламаттыкты сактоо жана калкты социалдык жактан тейлөө",{"v":3339.7,"d":"3,339.7"},{"v":2840.9,"d":"2,840.9"},141.5,130.1,0.8,1.4,"здравоохранения и социального обслуживания населения"]
["искусство, көңүл ачуу жана эс алуу",943.1,713.4,100.1,101.2,0.2,0.4,"искусства, развлечения  и отдыха"]
["башка тейлөө ишмердиги",{"v":2710.1,"d":"2,710.1"},{"v":2147.3,"d":"2,147.3"},{"v":100,"d":"100.0"},100.3,0.6,1.1," прочей обслуживающей деятельности"]

{"sheet":"таб2","index":4,"n_rows":21,"n_cols":16383,"rows_kept":21,"merged":[[5,0,9,0],[5,1,5,2],[5,3,5,6],[5,7,9,7],[6,1,9,1],[6,2,9,2],[6,3,6,6],[7,3,7,4],[7,5,7,6],[8,3,8,4],[8,5,8,6]]}
[{"$nulls":5},"Обратно в содержание",{"$nulls":278},"Обратно в содержание",null,"Обратно в содержание",null,"Обратно в содержание",null,"Обратно в содержание",null,"Обратно в содержание",null,"Обратно в содержание",null,"Обратно в содержание",null,"Обратно в содержание",null,"Обратно в содержание",null,"Обратно в содержание",null,"Обратно в содержание",null,"Обратно в содержание",null,"Обратно в содержание",null,"Обратно в содержание",null,"Обратно в содержание",null,"Обратно в содержание",null,"Обратно в содержание",null,"Обратно в содержание",null,"Обратно в содержание",null,"Обратно в содержание",null,"Обратно в содержание",null,"Обратно в содержание",null,"Обратно в содержание",null,"Обратно в содержание",null,"Обратно в содержание",null,"Обратно в содержание",null,"Обратно в содержание",null,"Обратно в содержание",null,"Обратно в содержание",null,"Обратно в содержание",null,"Обратно в содержание",null,"Обратно в содержание",null,"Обратно в содержание",null,"Обратно в содержание",null,"Обратно в содержание",null,"Обратно в содержание",null,"Обратно в содержание",null,"Обратно в содержание",null,"Обратно в содержание",null,"Обратно в содержание",null,"Обратно в содержание",null,"Обратно в содержание",null,"Обратно в содержание",null,"Обратно в содержание",null,"Обратно в содержание",null,"Обратно в содержание",null,"Обратно в содержание",null,"Обратно в содержание",null,"Обратно в содержание",null,"Обратно в содержание",null,"Обратно в содержание",null,"Обратно в содержание",null,"Обратно в содержание",null,"Обратно в содержание",null,"Обратно в содержание",null,"Обратно в содержание",null,"Обратно в содержание",null,"Обратно в содержание",null,"Обратно в содержание",null,"Обратно в содержание",null,"Обратно в содержание",null,"Обратно в содержание",null,"Обратно в содержание",null,"Обратно в содержание",null,"Обратно в содержание",null,"Обратно в содержание",null,"Обратно в содержание",null,"Обратно в содержание",null,"Обратно в содержание",null,"Обратно в содержание",null,"Обратно в содержание",null,"Обратно в содержание",null,"Обратно в содержание",null,"Обратно в содержание",null,"Обратно в содержание",null,"Обратно в содержание",null,"Обратно в содержание",null,"Обратно в содержание",null,"Обратно в содержание",null,"Обратно в содержание",null,"Обратно в содержание",null,"Обратно в содержание",null,"Обратно в содержание",null,"Обратно в содержание",null,"Обратно в содержание",null,"Обратно в содержание",null,"Обратно в содержание",null,"Обратно в содержание",null,"Обратно в содержание",null,"Обратно в содержание",null,"Обратно в содержание",null,"Обратно в содержание",null,"Обратно в содержание",null,"Обратно в содержание",null,"Обратно в содержание",null,"Обратно в содержание",null,"Обратно в содержание",null,"Обратно в содержание",null,"Обратно в содержание",null,"Обратно в содержание",null,"Обратно в содержание",null,"Обратно в содержание",null,"Обратно в содержание",null,"Обратно в содержание",null,"Обратно в содержание",null,"Обратно в содержание",null,"Обратно в содержание",null,"Обратно в содержание",null,"Обратно в содержание",null,"Обратно в содержание",null,"Обратно в содержание",null,"Обратно в содержание",null,"Обратно в содержание",null,"Обратно в содержание",null,"Обратно в содержание",null,"Обратно в содержание",null,"Обратно в содержание",null,"Обратно в содержание",null,"Обратно в содержание",null,"Обратно в содержание",null,"Обратно в содержание",null,"Обратно в содержание",null,"Обратно в содержание",null,"Обратно в содержание",null,"Обратно в содержание",null,"Обратно в содержание",null,"Обратно в содержание",null,"Обратно в содержание",null,"Обратно в содержание",null,"Обратно в содержание",null,"Обратно в содержание",null,"Обратно в содержание",null,"Обратно в содержание",null,"Обратно в содержание",null,"Обратно в содержание",null,"Обратно в содержание",null,"Обратно в содержание",null,"Обратно в содержание",null,"Обратно в содержание",null,"Обратно в содержание",null,"Обратно в содержание",null,"Обратно в содержание",null,"Обратно в содержание",null,"Обратно в содержание",null,"Обратно в содержание",null,"Обратно в содержание",null,"Обратно в содержание",null,"Обратно в содержание",null,"Обратно в содержание",null,"Обратно в содержание",null,"Обратно в содержание",null,"Обратно в содержание",null,"Обратно в содержание",null,"Обратно в содержание",null,"Обратно в содержание",null,"Обратно в содержание",null,"Обратно в содержание",null,"Обратно в содержание",null,"Обратно в содержание",null,"Обратно в содержание",null,"Обратно в содержание",null,"Обратно в содержание",null,"Обратно в содержание",null,"Обратно в содержание",null,"Обратно в содержание",null,"Обратно в содержание",null,"Обратно в содержание",null,"Обратно в содержание",null,"Обратно в содержание",null,"Обратно в содержание",null,"Обратно в содержание",null,"Обратно в содержание",null,"Обратно в содержание",null,"Обратно в содержание",null,"Обратно в содержание",null,"Обратно в содержание",null,"Обратно в содержание",null,"Обратно в содержание",null,"Обратно в содержание",null,"Обратно в содержание",null,"Обратно в содержание",null,"Обратно в содержание",null,"Обратно в содержание",null,"Обратно в содержание",null,"Обратно в содержание",null,"Обратно в содержание",null,"Обратно в содержание",null,"Обратно в содержание",null,"Обратно в содержание",null,"Обратно в содержание",null,"Обратно в содержание",null,"Обратно в содержание",null,"Обратно в содержание",null,"Обратно в содержание",null,"Обратно в содержание",null,"Обратно в содержание",null,"Обратно в содержание",null,"Обратно в содержание",null,"Обратно в содержание",null,"Обратно в содержание",null,"Обратно в содержание",null,"Обратно в содержание",null,"Обратно в содержание",null,"Обратно в содержание",null,"Обратно в содержание",null,"Обратно в содержание",null,"Обратно в содержание",null,"Обратно в содержание",null,"Обратно в содержание",null,"Обратно в содержание",null,"Обратно в содержание",null,"Обратно в содержание",null,"Обратно в содержание",null,"Обратно в содержание",null,"Обратно в содержание",null,"Обратно в содержание",null,"Обратно в содержание",null,"Обратно в содержание",null,"Обратно в содержание",null,"Обратно в содержание",null,"Обратно в содержание",null,"Обратно в содержание",null,"Обратно в содержание",null,"Обратно в содержание",null,"Обратно в содержание",null,"Обратно в содержание",null,"Обратно в содержание",null,"Обратно в содержание",null,"Обратно в содержание",null,"Обратно в содержание",null,"Обратно в содержание",null,"Обратно в содержание",null,"Обратно в содержание",null,"Обратно в содержание",null,"Обратно в содержание",null,"Обратно в содержание",null,"Обратно в содержание",null,"Обратно в содержание",null,"Обратно в содержание",null,"Обратно в содержание",null,"Обратно в содержание",null,"Обратно в содержание",null,"Обратно в содержание",null,"Обратно в содержание",null,"Обратно в содержание",null,"Обратно в содержание",null,"Обратно в содержание",null,"Обратно в содержание",null,"Обратно в содержание",null,"Обратно в содержание",null,"Обратно в содержание",null,"Обратно в содержание",null,"Обратно в содержание",null,"Обратно в содержание",null,"Обратно в содержание",null,"Обратно в содержание",null,"Обратно в содержание",null,"Обратно в содержание",null,"Обратно в содержание",null,"Обратно в содержание",null,"Обратно в содержание",null,"Обратно в содержание",null,"Обратно в содержание",null,"Обратно в содержание",null,"Обратно в содержание",null,"Обратно в содержание",null,"Обратно в содержание",null,"Обратно в содержание",null,"Обратно в содержание",null,"Обратно в содержание",null,"Обратно в содержание",null,"Обратно в содержание",null,"Обратно в содержание",null,"Обратно в содержание",null,"Обратно в содержание",null,"Обратно в содержание",null,"Обратно в содержание",null,"Обратно в содержание",null,"Обратно в содержание",null,"Обратно в содержание",null,"Обратно в содержание",null,"Обратно в содержание",null,"Обратно в содержание",null,"Обратно в содержание",null,"Обратно в содержание",null,"Обратно в содержание",null,"Обратно в содержание",null,"Обратно в содержание",null,"Обратно в содержание",null,"Обратно в содержание",null,"Обратно в содержание",null,"Обратно в содержание",null,"Обратно в содержание",null,"Обратно в содержание",null,"Обратно в содержание",null,"Обратно в содержание",null,"Обратно в содержание",null,"Обратно в содержание",null,"Обратно в содержание",null,"Обратно в содержание",null,"Обратно в содержание",null,"Обратно в содержание",null,"Обратно в содержание",null,"Обратно в содержание",null,"Обратно в содержание",null,"Обратно в содержание",null,"Обратно в содержание",null,"Обратно в содержание",null,"Обратно в содержание",null,"Обратно в содержание",null,"Обратно в содержание",null,"Обратно в содержание",null,"Обратно в содержание",null,"Обратно в содержание",null,"Обратно в содержание",null,"Обратно в содержание",null,"Обратно в содержание",null,"Обратно в содержание",null,"Обратно в содержание",null,"Обратно в содержание",null,"Обратно в содержание",null,"Обратно в содержание",null,"Обратно в содержание",null,"Обратно в содержание",null,"Обратно в содержание",null,"Обратно в содержание",null,"Обратно в содержание",null,"Обратно в содержание",null,"Обратно в содержание",null,"Обратно в содержание",null,"Обратно в содержание",null,"Обратно в содержание",null,"Обратно в содержание",null,"Обратно в содержание",null,"Обратно в содержание",null,"Обратно в содержание",null,"Обратно в содержание",null,"Обратно в содержание",null,"Обратно в содержание",null,"Обратно в содержание",null,"Обратно в содержание",null,"Обратно в содержание",null,"Обратно в содержание",null,"Обратно в содержание",null,"Обратно в содержание",null,"Обратно в содержание",null,"Обратно в содержание",null,"Обратно в содержание",null,"Обратно в содержание",null,"Обратно в содержание",null,"Обратно в содержание",null,"Обратно в содержание",null,"Обратно в содержание",null,"Обратно в содержание",null,"Обратно в содержание",null,"Обратно в содержание",null,"Обратно в содержание",null,"Обратно в содержание",null,"Обратно в содержание",null,"Обратно в содержание",null,"Обратно в содержание",null,"Обратно в содержание",null,"Обратно в содержание",null,"Обратно в содержание",null,"Обратно в содержание",null,"Обратно в содержание",null,"Обратно в содержание",null,"Обратно в содержание",null,"Обратно в содержание",null,"Обратно в содержание",null,"Обратно в содержание",null,"Обратно в содержание",null,"Обратно в содержание",null,"Обратно в содержание",null,"Обратно в содержание",null,"Обратно в содержание",null,"Обратно в содержание",null,"Обратно в содержание",null,"Обратно в содержание",null,"Обратно в содержание",null,"Обратно в содержание",null,"Обратно в содержание",null,"Обратно в содержание",null,"Обратно в содержание",null,"Обратно в содержание",null,"Обратно в содержание",null,"Обратно в содержание",null,"Обратно в содержание",null,"Обратно в содержание",null,"Обратно в содержание",null,"Обратно в содержание",null,"Обратно в содержание",null,"Обратно в содержание",null,"Обратно в содержание",null,"Обратно в содержание",null,"Обратно в содержание",null,"Обратно в содержание",null,"Обратно в содержание",null,"Обратно в содержание",null,"Обратно в содержание",null,"Обратно в содержание",null,"Обратно в содержание",null,"Обратно в содержание",null,"Обратно в содержание",null,"Обратно в содержание",null,"Обратно в содержание",null,"Обратно в содержание",null,"Обратно в содержание",null,"Обратно в содержание",null,"Обратно в содержание",null,"Обратно в содержание",null,"Обратно в содержание",null,"Обратно в содержание",null,"Обратно в содержание",null,"Обратно в содержание",null,"Обратно в содержание",null,"Обратно в содержание",null,"Обратно в содержание",null,"Обратно в содержание",null,"Обратно в содержание",null,"Обратно в содержание",null,"Обратно в содержание",null,"Обратно в содержание",null,"Обратно в содержание",null,"Обратно в содержание",null,"Обратно в содержание",null,"Обратно в содержание",null,"Обратно в содержание",null,"Обратно в содержание",null,"Обратно в содержание",null,"Обратно в содержание",null,"Обратно в содержание",null,"Обратно в содержание",null,"Обратно в содержание",null,"Обратно в содержание",null,"Обратно в содержание",null,"Обратно в содержание",null,"Обратно в содержание",null,"Обратно в содержание",null,"Обратно в содержание",null,"Обратно в содержание",null,"Обратно в содержание",null,"Обратно в содержание",null,"Обратно в содержание",null,"Обратно в содержание",null,"Обратно в содержание",null,"Обратно в содержание",null,"Обратно в содержание",null,"Обратно в содержание",null,"Обратно в содержание",null,"Обратно в содержание",null,"Обратно в содержание",null,"Обратно в содержание",null,"Обратно в содержание",null,"Обратно в содержание",null,"Обратно в содержание",null,"Обратно в содержание",null,"Обратно в содержание",null,"Обратно в содержание",null,"Обратно в содержание",null,"Обратно в содержание",null,"Обратно в содержание",null,"Обратно в содержание",null,"Обратно в содержание",null,"Обратно в содержание",null,"Обратно в содержание",null,"Обратно в содержание",null,"Обратно в содержание",null,"Обратно в содержание",null,"Обратно в содержание",null,"Обратно в содержание",null,"Обратно в содержание",null,"Обратно в содержание",null,"Обратно в содержание",null,"Обратно в содержание",null,"Обратно в содержание",null,"Обратно в содержание",null,"Обратно в содержание",null,"Обратно в содержание",null,"Обратно в содержание",null,"Обратно в содержание",null,"Обратно в содержание",null,"Обратно в содержание",null,"Обратно в содержание",null,"Обратно в содержание",null,"Обратно в содержание",null,"Обратно в содержание",null,"Обратно в содержание",null,"Обратно в содержание",null,"Обратно в содержание",null,"Обратно в содержание",null,"Обратно в содержание",null,"Обратно в содержание",null,"Обратно в содержание",null,"Обратно в содержание",null,"Обратно в содержание",null,"Обратно в содержание",null,"Обратно в содержание",null,"Обратно в содержание",null,"Обратно в содержание",null,"Обратно в содержание",null,"Обратно в содержание",null,"Обратно в содержание",null,"Обратно в содержание",null,"Обратно в содержание",null,"Обратно в содержание",null,"Обратно в содержание",null,"Обратно в содержание",null,"Обратно в содержание",null,"Обратно в содержание",null,"Обратно в содержание",null,"Обратно в содержание",null,"Обратно в содержание",null,"Обратно в содержание",null,"Обратно в содержание",null,"Обратно в содержание",null,"Обратно в содержание",null,"Обратно в содержание",null,"Обратно в содержание",null,"Обратно в содержание",null,"Обратно в содержание",null,"Обратно в содержание",null,"Обратно в содержание",null,"Обратно в содержание",null,"Обратно в содержание",null,"Обратно в содержание",null,"Обратно в содержание",null,"Обратно в содержание",null,"Обратно в содержание",null,"Обратно в содержание",null,"Обратно в содержание",null,"Обратно в содержание",null,"Обратно в содержание",null,"Обратно в содержание",null,"Обратно в содержание",null,"Обратно в содержание",null,"Обратно в содержание",null,"Обратно в содержание",null,"Обратно в содержание",null,"Обратно в содержание",null,"Обратно в содержание",null,"Обратно в содержание",null,"Обратно в содержание",null,"Обратно в содержание",null,"Обратно в содержание",null,"Обратно в содержание",null,"Обратно в содержание",null,"Обратно в содержание",null,"Обратно в содержание",null,"Обратно в содержание",null,"Обратно в содержание",null,"Обратно в содержание",null,"Обратно в содержание",null,"Обратно в содержание",null,"Обратно в содержание",null,"Обратно в содержание",null,"Обратно в содержание",null,"Обратно в содержание",null,"Обратно в содержание",null,"Обратно в содержание",null,"Обратно в содержание",null,"Обратно в содержание",null,"Обратно в содержание",null,"Обратно в содержание",null,"Обратно в содержание",null,"Обратно в содержание",null,"Обратно в содержание",null,"Обратно в содержание",null,"Обратно в содержание",null,"Обратно в содержание",null,"Обратно в содержание",null,"Обратно в содержание",null,"Обратно в содержание",null,"Обратно в содержание",null,"Обратно в содержание",null,"Обратно в содержание",null,"Обратно в содержание",null,"Обратно в содержание",null,"Обратно в содержание",null,"Обратно в содержание",null,"Обратно в содержание",null,"Обратно в содержание",null,"Обратно в содержание",null,"Обратно в содержание",null,"Обратно в содержание",null,"Обратно в содержание",null,"Обратно в содержание",null,"Обратно в содержание",null,"Обратно в содержание",null,"Обратно в содержание",null,"Обратно в содержание",null,"Обратно в содержание",null,"Обратно в содержание",null,"Обратно в содержание",null,"Обратно в содержание",null,"Обратно в содержание",null,"Обратно в содержание",null,"Обратно в содержание",null,"Обратно в содержание",null,"Обратно в содержание",null,"Обратно в содержание",null,"Обратно в содержание",null,"Обратно в содержание",null,"Обратно в содержание",null,"Обратно в содержание",null,"Обратно в содержание",null,"Обратно в содержание",null,"Обратно в содержание",null,"Обратно в содержание",null,"Обратно в содержание",null,"Обратно в содержание",null,"Обратно в содержание",null,"Обратно в содержание",null,"Обратно в содержание",null,"Обратно в содержание",null,"Обратно в содержание",null,"Обратно в содержание",null,"Обратно в содержание",null,"Обратно в содержание",null,"Обратно в содержание",null,"Обратно в содержание",null,"Обратно в содержание",null,"Обратно в содержание",null,"Обратно в содержание",null,"Обратно в содержание",null,"Обратно в содержание",null,"Обратно в содержание",null,"Обратно в содержание",null,"Обратно в содержание",null,"Обратно в содержание",null,"Обратно в содержание",null,"Обратно в содержание",null,"Обратно в содержание",null,"Обратно в содержание",null,"Обратно в содержание",null,"Обратно в содержание",null,"Обратно в содержание",null,"Обратно в содержание",null,"Обратно в содержание",null,"Обратно в содержание",null,"Обратно в содержание",null,"Обратно в содержание",null,"Обратно в содержание",null,"Обратно в содержание",null,"Обратно в содержание",null,"Обратно в содержание",null,"Обратно в содержание",null,"Обратно в содержание",null,"Обратно в содержание",null,"Обратно в содержание",null,"Обратно в содержание",null,"Обратно в содержание",null,"Обратно в содержание",null,"Обратно в содержание",null,"Обратно в содержание",null,"Обратно в содержание",null,"Обратно в содержание",null,"Обратно в содержание",null,"Обратно в содержание",null,"Обратно в содержание",null,"Обратно в содержание",null,"Обратно в содержание",null,"Обратно в содержание",null,"Обратно в содержание",null,"Обратно в содержание",null,"Обратно в содержание",null,"Обратно в содержание",null,"Обратно в содержание",null,"Обратно в содержание",null,"Обратно в содержание",null,"Обратно в содержание",null,"Обратно в содержание",null,"Обратно в содержание",null,"Обратно в содержание",null,"Обратно в содержание",null,"Обратно в содержание",null,"Обратно в содержание",null,"Обратно в содержание",null,"Обратно в содержание",null,"Обратно в содержание",null,"Обратно в содержание",null,"Обратно в содержание",null,"Обратно в содержание",null,"Обратно в содержание",null,"Обратно в содержание",null,"Обратно в содержание",null,"Обратно в содержание",null,"Обратно в содержание",null,"Обратно в содержание",null,"Обратно в содержание",null,"Обратно в содержание",null,"Обратно в содержание",null,"Обратно в содержание",null,"Обратно в содержание",null,"Обратно в содержание",null,"Обратно в содержание",null,"Обратно в содержание",null,"Обратно в содержание",null,"Обратно в содержание",null,"Обратно в содержание",null,"Обратно в содержание",null,"Обратно в содержание",null,"Обратно в содержание",null,"Обратно в содержание",null,"Обратно в содержание",null,"Обратно в содержание",null,"Обратно в содержание",null,"Обратно в содержание",null,"Обратно в содержание",null,"Обратно в содержание",null,"Обратно в содержание",null,"Обратно в содержание",null,"Обратно в содержание",null,"Обратно в содержание",null,"Обратно в содержание",null,"Обратно в содержание",null,"Обратно в содержание",null,"Обратно в содержание",null,"Обратно в содержание",null,"Обратно в содержание",null,"Обратно в содержание",null,"Обратно в содержание",null,"Обратно в содержание",null,"Обратно в содержание",null,"Обратно в содержание",null,"Обратно в содержание",null,"Обратно в содержание",null,"Обратно в содержание",null,"Обратно в содержание",null,"Обратно в содержание",null,"Обратно в содержание",null,"Обратно в содержание",null,"Обратно в содержание",null,"Обратно в содержание",null,"Обратно в содержание",null,"Обратно в содержание",null,"Обратно в содержание",null,"Обратно в содержание",null,"Обратно в содержание",null,"Обратно в содержание",null,"Обратно в содержание",null,"Обратно в содержание",null,"Обратно в содержание",null,"Обратно в содержание",null,"Обратно в содержание",null,"Обратно в содержание",null,"Обратно в содержание",null,"Обратно в содержание",null,"Обратно в содержание",null,"Обратно в содержание",null,"Обратно в содержание",null,"Обратно в содержание",null,"Обратно в содержание",null,"Обратно в содержание",null,"Обратно в содержание",null,"Обратно в содержание",null,"Обратно в содержание",null,"Обратно в содержание",null,"Обратно в содержание",null,"Обратно в содержание",null,"Обратно в содержание",null,"Обратно в содержание",null,"Обратно в содержание",null,"Обратно в содержание",null,"Обратно в содержание",null,"Обратно в содержание",null,"Обратно в содержание",null,"Обратно в содержание",null,"Обратно в содержание",null,"Обратно в содержание",null,"Обратно в содержание",null,"Обратно в содержание",null,"Обратно в содержание",null,"Обратно в содержание",null,"Обратно в содержание",null,"Обратно в содержание",null,"Обратно в содержание",null,"Обратно в содержание",null,"Обратно в содержание",null,"Обратно в содержание",null,"Обратно в содержание",null,"Обратно в содержание",null,"Обратно в содержание",null,"Обратно в содержание",null,"Обратно в содержание",null,"Обратно в содержание",null,"Обратно в содержание",null,"Обратно в содержание",null,"Обратно в содержание",null,"Обратно в содержание",null,"Обратно в содержание",null,"Обратно в содержание",null,"Обратно в содержание",null,"Обратно в содержание",null,"Обратно в содержание",null,"Обратно в содержание",null,"Обратно в содержание",null,"Обратно в содержание",null,"Обратно в содержание",null,"Обратно в содержание",null,"Обратно в содержание",null,"Обратно в содержание",null,"Обратно в содержание",null,"Обратно в содержание",null,"Обратно в содержание",null,"Обратно в содержание",null,"Обратно в содержание",null,"Обратно в содержание",null,"Обратно в содержание",null,"Обратно в содержание",null,"Обратно в содержание",null,"Обратно в содержание",null,"Обратно в содержание",null,"Обратно в содержание",null,"Обратно в содержание",null,"Обратно в содержание",null,"Обратно в содержание",null,"Обратно в содержание",null,"Обратно в содержание",null,"Обратно в содержание",null,"Обратно в содержание",null,"Обратно в содержание",null,"Обратно в содержание",null,"Обратно в содержание",null,"Обратно в содержание",null,"Обратно в содержание",null,"Обратно в содержание",null,"Обратно в содержание",null,"Обратно в содержание",null,"Обратно в содержание",null,"Обратно в содержание",null,"Обратно в содержание",null,"Обратно в содержание",null,"Обратно в содержание",null,"Обратно в содержание",null,"Обратно в содержание",null,"Обратно в содержание",null,"Обратно в содержание",null,"Обратно в содержание",null,"Обратно в содержание",null,"Обратно в содержание",null,"Обратно в содержание",null,"Обратно в содержание",null,"Обратно в содержание",null,"Обратно в содержание",null,"Обратно в содержание",null,"Обратно в содержание",null,"Обратно в содержание",null,"Обратно в содержание",null,"Обратно в содержание",null,"Обратно в содержание",null,"Обратно в содержание",null,"Обратно в содержание",null,"Обратно в содержание",null,"Обратно в содержание",null,"Обратно в содержание",null,"Обратно в содержание",null,"Обратно в содержание",null,"Обратно в содержание",null,"Обратно в содержание",null,"Обратно в содержание",null,"Обратно в содержание",null,"Обратно в содержание",null,"Обратно в содержание",null,"Обратно в содержание",null,"Обратно в содержание",null,"Обратно в содержание",null,"Обратно в содержание",null,"Обратно в содержание",null,"Обратно в содержание",null,"Обратно в содержание",null,"Обратно в содержание",null,"Обратно в содержание",null,"Обратно в содержание",null,"Обратно в содержание",null,"Обратно в содержание",null,"Обратно в содержание",null,"Обратно в содержание",null,"Обратно в содержание",null,"Обратно в содержание",null,"Обратно в содержание",null,"Обратно в содержание",null,"Обратно в содержание",null,"Обратно в содержание",null,"Обратно в содержание",null,"Обратно в содержание",null,"Обратно в содержание",null,"Обратно в содержание",null,"Обратно в содержание",null,"Обратно в содержание",null,"Обратно в содержание",null,"Обратно в содержание",null,"Обратно в содержание",null,"Обратно в содержание",null,"Обратно в содержание",null,"Обратно в содержание",null,"Обратно в содержание",null,"Обратно в содержание",null,"Обратно в содержание",null,"Обратно в содержание",null,"Обратно в содержание",null,"Обратно в содержание",null,"Обратно в содержание",null,"Обратно в содержание",null,"Обратно в содержание",null,"Обратно в содержание",null,"Обратно в содержание",null,"Обратно в содержание",null,"Обратно в содержание",null,"Обратно в содержание",null,"Обратно в содержание",null,"Обратно в содержание",null,"Обратно в содержание",null,"Обратно в содержание",null,"Обратно в содержание",null,"Обратно в содержание",null,"Обратно в содержание",null,"Обратно в содержание",null,"Обратно в содержание",null,"Обратно в содержание",null,"Обратно в содержание",null,"Обратно в содержание",null,"Обратно в содержание",null,"Обратно в содержание",null,"Обратно в содержание",null,"Обратно в содержание",null,"Обратно в содержание",null,"Обратно в содержание",null,"Обратно в содержание",null,"Обратно в содержание",null,"Обратно в содержание",null,"Обратно в содержание",null,"Обратно в содержание",null,"Обратно в содержание",null,"Обратно в содержание",null,"Обратно в содержание",null,"Обратно в содержание",null,"Обратно в содержание",null,"Обратно в содержание",null,"Обратно в содержание",null,"Обратно в содержание",null,"Обратно в содержание",null,"Обратно в содержание",null,"Обратно в содержание",null,"Обратно в содержание",null,"Обратно в содержание",null,"Обратно в содержание",null,"Обратно в содержание",null,"Обратно в содержание",null,"Обратно в содержание",null,"Обратно в содержание",null,"Обратно в содержание",null,"Обратно в содержание",null,"Обратно в содержание",null,"Обратно в содержание",null,"Обратно в содержание",null,"Обратно в содержание",null,"Обратно в содержание",null,"Обратно в содержание",null,"Обратно в содержание",null,"Обратно в содержание",null,"Обратно в содержание",null,"Обратно в содержание",null,"Обратно в содержание",null,"Обратно в содержание",null,"Обратно в содержание",null,"Обратно в содержание",null,"Обратно в содержание",null,"Обратно в содержание",null,"Обратно в содержание",null,"Обратно в содержание",null,"Обратно в содержание",null,"Обратно в содержание",null,"Обратно в содержание",null,"Обратно в содержание",null,"Обратно в содержание",null,"Обратно в содержание",null,"Обратно в содержание",null,"Обратно в содержание",null,"Обратно в содержание",null,"Обратно в содержание",null,"Обратно в содержание",null,"Обратно в содержание",null,"Обратно в содержание",null,"Обратно в содержание",null,"Обратно в содержание",null,"Обратно в содержание",null,"Обратно в содержание",null,"Обратно в содержание",null,"Обратно в содержание",null,"Обратно в содержание",null,"Обратно в содержание",null,"Обратно в содержание",null,"Обратно в содержание",null,"Обратно в содержание",null,"Обратно в содержание",null,"Обратно в содержание",null,"Обратно в содержание",null,"Обратно в содержание",null,"Обратно в содержание",null,"Обратно в содержание",null,"Обратно в содержание",null,"Обратно в содержание",null,"Обратно в содержание",null,"Обратно в содержание",null,"Обратно в содержание",null,"Обратно в содержание",null,"Обратно в содержание",null,"Обратно в содержание",null,"Обратно в содержание",null,"Обратно в содержание",null,"Обратно в содержание",null,"Обратно в содержание",null,"Обратно в содержание",null,"Обратно в содержание",null,"Обратно в содержание",null,"Обратно в содержание",null,"Обратно в содержание",null,"Обратно в содержание",null,"Обратно в содержание",null,"Обратно в содержание",null,"Обратно в содержание",null,"Обратно в содержание",null,"Обратно в содержание",null,"Обратно в содержание",null,"Обратно в содержание",null,"Обратно в содержание",null,"Обратно в содержание",null,"Обратно в содержание",null,"Обратно в содержание",null,"Обратно в содержание",null,"Обратно в содержание",null,"Обратно в содержание",null,"Обратно в содержание",null,"Обратно в содержание",null,"Обратно в содержание",null,"Обратно в содержание",null,"Обратно в содержание",null,"Обратно в содержание",null,"Обратно в содержание",null,"Обратно в содержание",null,"Обратно в содержание",null,"Обратно в содержание",null,"Обратно в содержание",null,"Обратно в содержание",null,"Обратно в содержание",null,"Обратно в содержание",null,"Обратно в содержание",null,"Обратно в содержание",null,"Обратно в содержание",null,"Обратно в содержание",null,"Обратно в содержание",null,"Обратно в содержание",null,"Обратно в содержание",null,"Обратно в содержание",null,"Обратно в содержание",null,"Обратно в содержание",null,"Обратно в содержание",null,"Обратно в содержание",null,"Обратно в содержание",null,"Обратно в содержание",null,"Обратно в содержание",null,"Обратно в содержание",null,"Обратно в содержание",null,"Обратно в содержание",null,"Обратно в содержание",null,"Обратно в содержание",null,"Обратно в содержание",null,"Обратно в содержание",null,"Обратно в содержание",null,"Обратно в содержание",null,"Обратно в содержание",null,"Обратно в содержание",null,"Обратно в содержание",null,"Обратно в содержание",null,"Обратно в содержание",null,"Обратно в содержание",null,"Обратно в содержание",null,"Обратно в содержание",null,"Обратно в содержание",null,"Обратно в содержание",null,"Обратно в содержание",null,"Обратно в содержание",null,"Обратно в содержание",null,"Обратно в содержание",null,"Обратно в содержание",null,"Обратно в содержание",null,"Обратно в содержание",null,"Обратно в содержание",null,"Обратно в содержание",null,"Обратно в содержание",null,"Обратно в содержание",null,"Обратно в содержание",null,"Обратно в содержание",null,"Обратно в содержание",null,"Обратно в содержание",null,"Обратно в содержание",null,"Обратно в содержание",null,"Обратно в содержание",null,"Обратно в содержание",null,"Обратно в содержание",null,"Обратно в содержание",null,"Обратно в содержание",null,"Обратно в содержание",null,"Обратно в содержание",null,"Обратно в содержание",null,"Обратно в содержание",null,"Обратно в содержание",null,"Обратно в содержание",null,"Обратно в содержание",null,"Обратно в содержание",null,"Обратно в содержание",null,"Обратно в содержание",null,"Обратно в содержание",null,"Обратно в содержание",null,"Обратно в содержание",null,"Обратно в содержание",null,"Обратно в содержание",null,"Обратно в содержание",null,"Обратно в содержание",null,"Обратно в содержание",null,"Обратно в содержание",null,"Обратно в содержание",null,"Обратно в содержание",null,"Обратно в содержание",null,"Обратно в содержание",null,"Обратно в содержание",null,"Обратно в содержание",null,"Обратно в содержание",null,"Обратно в содержание",null,"Обратно в содержание",null,"Обратно в содержание",null,"Обратно в содержание",null,"Обратно в содержание",null,"Обратно в содержание",null,"Обратно в содержание",null,"Обратно в содержание",null,"Обратно в содержание",null,"Обратно в содержание",null,"Обратно в содержание",null,"Обратно в содержание",null,"Обратно в содержание",null,"Обратно в содержание",null,"Обратно в содержание",null,"Обратно в содержание",null,"Обратно в содержание",null,"Обратно в содержание",null,"Обратно в содержание",null,"Обратно в содержание",null,"Обратно в содержание",null,"Обратно в содержание",null,"Обратно в содержание",null,"Обратно в содержание",null,"Обратно в содержание",null,"Обратно в содержание",null,"Обратно в содержание",null,"Обратно в содержание",null,"Обратно в содержание",null,"Обратно в содержание",null,"Обратно в содержание",null,"Обратно в содержание",null,"Обратно в содержание",null,"Обратно в содержание",null,"Обратно в содержание",null,"Обратно в содержание",null,"Обратно в содержание",null,"Обратно в содержание",null,"Обратно в содержание",null,"Обратно в содержание",null,"Обратно в содержание",null,"Обратно в содержание",null,"Обратно в содержание",null,"Обратно в содержание",null,"Обратно в содержание",null,"Обратно в содержание",null,"Обратно в содержание",null,"Обратно в содержание",null,"Обратно в содержание",null,"Обратно в содержание",null,"Обратно в содержание",null,"Обратно в содержание",null,"Обратно в содержание",null,"Обратно в содержание",null,"Обратно в содержание",null,"Обратно в содержание",null,"Обратно в содержание",null,"Обратно в содержание",null,"Обратно в содержание",null,"Обратно в содержание",null,"Обратно в содержание",null,"Обратно в содержание",null,"Обратно в содержание",null,"Обратно в содержание",null,"Обратно в содержание",null,"Обратно в содержание",null,"Обратно в содержание",null,"Обратно в содержание",null,"Обратно в содержание",null,"Обратно в содержание",null,"Обратно в содержание",null,"Обратно в содержание",null,"Обратно в содержание",null,"Обратно в содержание",null,"Обратно в содержание",null,"Обратно в содержание",null,"Обратно в содержание",null,"Обратно в содержание",null,"Обратно в содержание",null,"Обратно в содержание",null,"Обратно в содержание",null,"Обратно в содержание",null,"Обратно в содержание",null,"Обратно в содержание",null,"Обратно в содержание",null,"Обратно в содержание",null,"Обратно в содержание",null,"Обратно в содержание",null,"Обратно в содержание",null,"Обратно в содержание",null,"Обратно в содержание",null,"Обратно в содержание",null,"Обратно в содержание",null,"Обратно в содержание",null,"Обратно в содержание",null,"Обратно в содержание",null,"Обратно в содержание",null,"Обратно в содержание",null,"Обратно в содержание",null,"Обратно в содержание",null,"Обратно в содержание",null,"Обратно в содержание",null,"Обратно в содержание",null,"Обратно в содержание",null,"Обратно в содержание",null,"Обратно в содержание",null,"Обратно в содержание",null,"Обратно в содержание",null,"Обратно в содержание",null,"Обратно в содержание",null,"Обратно в содержание",null,"Обратно в содержание",null,"Обратно в содержание",null,"Обратно в содержание",null,"Обратно в содержание",null,"Обратно в содержание",null,"Обратно в содержание",null,"Обратно в содержание",null,"Обратно в содержание",null,"Обратно в содержание",null,"Обратно в содержание",null,"Обратно в содержание",null,"Обратно в содержание",null,"Обратно в содержание",null,"Обратно в содержание",null,"Обратно в содержание",null,"Обратно в содержание",null,"Обратно в содержание",null,"Обратно в содержание",null,"Обратно в содержание",null,"Обратно в содержание",null,"Обратно в содержание",null,"Обратно в содержание",null,"Обратно в содержание",null,"Обратно в содержание",null,"Обратно в содержание",null,"Обратно в содержание",null,"Обратно в содержание",null,"Обратно в содержание",null,"Обратно в содержание",null,"Обратно в содержание",null,"Обратно в содержание",null,"Обратно в содержание",null,"Обратно в содержание",null,"Обратно в содержание",null,"Обратно в содержание",null,"Обратно в содержание",null,"Обратно в содержание",null,"Обратно в содержание",null,"Обратно в содержание",null,"Обратно в содержание",null,"Обратно в содержание",null,"Обратно в содержание",null,"Обратно в содержание",null,"Обратно в содержание",null,"Обратно в содержание",null,"Обратно в содержание",null,"Обратно в содержание",null,"Обратно в содержание",null,"Обратно в содержание",null,"Обратно в содержание",null,"Обратно в содержание",null,"Обратно в содержание",null,"Обратно в содержание",null,"Обратно в содержание",null,"Обратно в содержание",null,"Обратно в содержание",null,"Обратно в содержание",null,"Обратно в содержание",null,"Обратно в содержание",null,"Обратно в содержание",null,"Обратно в содержание",null,"Обратно в содержание",null,"Обратно в содержание",null,"Обратно в содержание",null,"Обратно в содержание",null,"Обратно в содержание",null,"Обратно в содержание",null,"Обратно в содержание",null,"Обратно в содержание",null,"Обратно в содержание",null,"Обратно в содержание",null,"Обратно в содержание",null,"Обратно в содержание",null,"Обратно в содержание",null,"Обратно в содержание",null,"Обратно в содержание",null,"Обратно в содержание",null,"Обратно в содержание",null,"Обратно в содержание",null,"Обратно в содержание",null,"Обратно в содержание",null,"Обратно в содержание",null,"Обратно в содержание",null,"Обратно в содержание",null,"Обратно в содержание",null,"Обратно в содержание",null,"Обратно в содержание",null,"Обратно в содержание",null,"Обратно в содержание",null,"Обратно в содержание",null,"Обратно в содержание",null,"Обратно в содержание",null,"Обратно в содержание",null,"Обратно в содержание",null,"Обратно в содержание",null,"Обратно в содержание",null,"Обратно в содержание",null,"Обратно в содержание",null,"Обратно в содержание",null,"Обратно в содержание",null,"Обратно в содержание",null,"Обратно в содержание",null,"Обратно в содержание",null,"Обратно в содержание",null,"Обратно в содержание",null,"Обратно в содержание",null,"Обратно в содержание",null,"Обратно в содержание",null,"Обратно в содержание",null,"Обратно в содержание",null,"Обратно в содержание",null,"Обратно в содержание",null,"Обратно в содержание",null,"Обратно в содержание",null,"Обратно в содержание",null,"Обратно в содержание",null,"Обратно в содержание",null,"Обратно в содержание",null,"Обратно в содержание",null,"Обратно в содержание",null,"Обратно в содержание",null,"Обратно в содержание",null,"Обратно в содержание",null,"Обратно в содержание",null,"Обратно в содержание",null,"Обратно в содержание",null,"Обратно в содержание",null,"Обратно в содержание",null,"Обратно в содержание",null,"Обратно в содержание",null,"Обратно в содержание",null,"Обратно в содержание",null,"Обратно в содержание",null,"Обратно в содержание",null,"Обратно в содержание",null,"Обратно в содержание",null,"Обратно в содержание",null,"Обратно в содержание",null,"Обратно в содержание",null,"Обратно в содержание",null,"Обратно в содержание",null,"Обратно в содержание",null,"Обратно в содержание",null,"Обратно в содержание",null,"Обратно в содержание",null,"Обратно в содержание",null,"Обратно в содержание",null,"Обратно в содержание",null,"Обратно в содержание",null,"Обратно в содержание",null,"Обратно в содержание",null,"Обратно в содержание",null,"Обратно в содержание",null,"Обратно в содержание",null,"Обратно в содержание",null,"Обратно в содержание",null,"Обратно в содержание",null,"Обратно в содержание",null,"Обратно в содержание",null,"Обратно в содержание",null,"Обратно в содержание",null,"Обратно в содержание",null,"Обратно в содержание",null,"Обратно в содержание",null,"Обратно в содержание",null,"Обратно в содержание",null,"Обратно в содержание",null,"Обратно в содержание",null,"Обратно в содержание",null,"Обратно в содержание",null,"Обратно в содержание",null,"Обратно в содержание",null,"Обратно в содержание",null,"Обратно в содержание",null,"Обратно в содержание",null,"Обратно в содержание",null,"Обратно в содержание",null,"Обратно в содержание",null,"Обратно в содержание",null,"Обратно в содержание",null,"Обратно в содержание",null,"Обратно в содержание",null,"Обратно в содержание",null,"Обратно в содержание",null,"Обратно в содержание",null,"Обратно в содержание",null,"Обратно в содержание",null,"Обратно в содержание",null,"Обратно в содержание",null,"Обратно в содержание",null,"Обратно в содержание",null,"Обратно в содержание",null,"Обратно в содержание",null,"Обратно в содержание",null,"Обратно в содержание",null,"Обратно в содержание",null,"Обратно в содержание",null,"Обратно в содержание",null,"Обратно в содержание",null,"Обратно в содержание",null,"Обратно в содержание",null,"Обратно в содержание",null,"Обратно в содержание",null,"Обратно в содержание",null,"Обратно в содержание",null,"Обратно в содержание",null,"Обратно в содержание",null,"Обратно в содержание",null,"Обратно в содержание",null,"Обратно в содержание",null,"Обратно в содержание",null,"Обратно в содержание",null,"Обратно в содержание",null,"Обратно в содержание",null,"Обратно в содержание",null,"Обратно в содержание",null,"Обратно в содержание",null,"Обратно в содержание",null,"Обратно в содержание",null,"Обратно в содержание",null,"Обратно в содержание",null,"Обратно в содержание",null,"Обратно в содержание",null,"Обратно в содержание",null,"Обратно в содержание",null,"Обратно в содержание",null,"Обратно в содержание",null,"Обратно в содержание",null,"Обратно в содержание",null,"Обратно в содержание",null,"Обратно в содержание",null,"Обратно в содержание",null,"Обратно в содержание",null,"Обратно в содержание",null,"Обратно в содержание",null,"Обратно в содержание",null,"Обратно в содержание",null,"Обратно в содержание",null,"Обратно в содержание",null,"Обратно в содержание",null,"Обратно в содержание",null,"Обратно в содержание",null,"Обратно в содержание",null,"Обратно в содержание",null,"Обратно в содержание",null,"Обратно в содержание",null,"Обратно в содержание",null,"Обратно в содержание",null,"Обратно в содержание",null,"Обратно в содержание",null,"Обратно в содержание",null,"Обратно в содержание",null,"Обратно в содержание",null,"Обратно в содержание",null,"Обратно в содержание",null,"Обратно в содержание",null,"Обратно в содержание",null,"Обратно в содержание",null,"Обратно в содержание",null,"Обратно в содержание",null,"Обратно в содержание",null,"Обратно в содержание",null,"Обратно в содержание",null,"Обратно в содержание",null,"Обратно в содержание",null,"Обратно в содержание",null,"Обратно в содержание",null,"Обратно в содержание",null,"Обратно в содержание",null,"Обратно в содержание",null,"Обратно в содержание",null,"Обратно в содержание",null,"Обратно в содержание",null,"Обратно в содержание",null,"Обратно в содержание",null,"Обратно в содержание",null,"Обратно в содержание",null,"Обратно в содержание",null,"Обратно в содержание",null,"Обратно в содержание",null,"Обратно в содержание",null,"Обратно в содержание",null,"Обратно в содержание",null,"Обратно в содержание",null,"Обратно в содержание",null,"Обратно в содержание",null,"Обратно в содержание",null,"Обратно в содержание",null,"Обратно в содержание",null,"Обратно в содержание",null,"Обратно в содержание",null,"Обратно в содержание",null,"Обратно в содержание",null,"Обратно в содержание",null,"Обратно в содержание",null,"Обратно в содержание",null,"Обратно в содержание",null,"Обратно в содержание",null,"Обратно в содержание",null,"Обратно в содержание",null,"Обратно в содержание",null,"Обратно в содержание",null,"Обратно в содержание",null,"Обратно в содержание",null,"Обратно в содержание",null,"Обратно в содержание",null,"Обратно в содержание",null,"Обратно в содержание",null,"Обратно в содержание",null,"Обратно в содержание",null,"Обратно в содержание",null,"Обратно в содержание",null,"Обратно в содержание",null,"Обратно в содержание",null,"Обратно в содержание",null,"Обратно в содержание",null,"Обратно в содержание",null,"Обратно в содержание",null,"Обратно в содержание",null,"Обратно в содержание",null,"Обратно в содержание",null,"Обратно в содержание",null,"Обратно в содержание",null,"Обратно в содержание",null,"Обратно в содержание",null,"Обратно в содержание",null,"Обратно в содержание",null,"Обратно в содержание",null,"Обратно в содержание",null,"Обратно в содержание",null,"Обратно в содержание",null,"Обратно в содержание",null,"Обратно в содержание",null,"Обратно в содержание",null,"Обратно в содержание",null,"Обратно в содержание",null,"Обратно в содержание",null,"Обратно в содержание",null,"Обратно в содержание",null,"Обратно в содержание",null,"Обратно в содержание",null,"Обратно в содержание",null,"Обратно в содержание",null,"Обратно в содержание",null,"Обратно в содержание",null,"Обратно в содержание",null,"Обратно в содержание",null,"Обратно в содержание",null,"Обратно в содержание",null,"Обратно в содержание",null,"Обратно в содержание",null,"Обратно в содержание",null,"Обратно в содержание",null,"Обратно в содержание",null,"Обратно в содержание",null,"Обратно в содержание",null,"Обратно в содержание",null,"Обратно в содержание",null,"Обратно в содержание",null,"Обратно в содержание",null,"Обратно в содержание",null,"Обратно в содержание",null,"Обратно в содержание",null,"Обратно в содержание",null,"Обратно в содержание",null,"Обратно в содержание",null,"Обратно в содержание",null,"Обратно в содержание",null,"Обратно в содержание",null,"Обратно в содержание",null,"Обратно в содержание",null,"Обратно в содержание",null,"Обратно в содержание",null,"Обратно в содержание",null,"Обратно в содержание",null,"Обратно в содержание",null,"Обратно в содержание",null,"Обратно в содержание",null,"Обратно в содержание",null,"Обратно в содержание",null,"Обратно в содержание",null,"Обратно в содержание",null,"Обратно в содержание",null,"Обратно в содержание",null,"Обратно в содержание",null,"Обратно в содержание",null,"Обратно в содержание",null,"Обратно в содержание",null,"Обратно в содержание",null,"Обратно в содержание",null,"Обратно в содержание",null,"Обратно в содержание",null,"Обратно в содержание",null,"Обратно в содержание",null,"Обратно в содержание",null,"Обратно в содержание",null,"Обратно в содержание",null,"Обратно в содержание",null,"Обратно в содержание",null,"Обратно в содержание",null,"Обратно в содержание",null,"Обратно в содержание",null,"Обратно в содержание",null,"Обратно в содержание",null,"Обратно в содержание",null,"Обратно в содержание",null,"Обратно в содержание",null,"Обратно в содержание",null,"Обратно в содержание",null,"Обратно в содержание",null,"Обратно в содержание",null,"Обратно в содержание",null,"Обратно в содержание",null,"Обратно в содержание",null,"Обратно в содержание",null,"Обратно в содержание",null,"Обратно в содержание",null,"Обратно в содержание",null,"Обратно в содержание",null,"Обратно в содержание",null,"Обратно в содержание",null,"Обратно в содержание",null,"Обратно в содержание",null,"Обратно в содержание",null,"Обратно в содержание",null,"Обратно в содержание",null,"Обратно в содержание",null,"Обратно в содержание",null,"Обратно в содержание",null,"Обратно в содержание",null,"Обратно в содержание",null,"Обратно в содержание",null,"Обратно в содержание",null,"Обратно в содержание",null,"Обратно в содержание",null,"Обратно в содержание",null,"Обратно в содержание",null,"Обратно в содержание",null,"Обратно в содержание",null,"Обратно в содержание",null,"Обратно в содержание",null,"Обратно в содержание",null,"Обратно в содержание",null,"Обратно в содержание",null,"Обратно в содержание",null,"Обратно в содержание",null,"Обратно в содержание",null,"Обратно в содержание",null,"Обратно в содержание",null,"Обратно в содержание",null,"Обратно в содержание",null,"Обратно в содержание",null,"Обратно в содержание",null,"Обратно в содержание",null,"Обратно в содержание",null,"Обратно в содержание",null,"Обратно в содержание",null,"Обратно в содержание",null,"Обратно в содержание",null,"Обратно в содержание",null,"Обратно в содержание",null,"Обратно в содержание",null,"Обратно в содержание",null,"Обратно в содержание",null,"Обратно в содержание",null,"Обратно в содержание",null,"Обратно в содержание",null,"Обратно в содержание",null,"Обратно в содержание",null,"Обратно в содержание",null,"Обратно в содержание",null,"Обратно в содержание",null,"Обратно в содержание",null,"Обратно в содержание",null,"Обратно в содержание",null,"Обратно в содержание",null,"Обратно в содержание",null,"Обратно в содержание",null,"Обратно в содержание",null,"Обратно в содержание",null,"Обратно в содержание",null,"Обратно в содержание",null,"Обратно в содержание",null,"Обратно в содержание",null,"Обратно в содержание",null,"Обратно в содержание",null,"Обратно в содержание",null,"Обратно в содержание",null,"Обратно в содержание",null,"Обратно в содержание",null,"Обратно в содержание",null,"Обратно в содержание",null,"Обратно в содержание",null,"Обратно в содержание",null,"Обратно в содержание",null,"Обратно в содержание",null,"Обратно в содержание",null,"Обратно в содержание",null,"Обратно в содержание",null,"Обратно в содержание",null,"Обратно в содержание",null,"Обратно в содержание",null,"Обратно в содержание",null,"Обратно в содержание",null,"Обратно в содержание",null,"Обратно в содержание",null,"Обратно в содержание",null,"Обратно в содержание",null,"Обратно в содержание",null,"Обратно в содержание",null,"Обратно в содержание",null,"Обратно в содержание",null,"Обратно в содержание",null,"Обратно в содержание",null,"Обратно в содержание",null,"Обратно в содержание",null,"Обратно в содержание",null,"Обратно в содержание",null,"Обратно в содержание",null,"Обратно в содержание",null,"Обратно в содержание",null,"Обратно в содержание",null,"Обратно в содержание",null,"Обратно в содержание",null,"Обратно в содержание",null,"Обратно в содержание",null,"Обратно в содержание",null,"Обратно в содержание",null,"Обратно в содержание",null,"Обратно в содержание",null,"Обратно в содержание",null,"Обратно в содержание",null,"Обратно в содержание",null,"Обратно в содержание",null,"Обратно в содержание",null,"Обратно в содержание",null,"Обратно в содержание",null,"Обратно в содержание",null,"Обратно в содержание",null,"Обратно в содержание",null,"Обратно в содержание",null,"Обратно в содержание",null,"Обратно в содержание",null,"Обратно в содержание",null,"Обратно в содержание",null,"Обратно в содержание",null,"Обратно в содержание",null,"Обратно в содержание",null,"Обратно в содержание",null,"Обратно в содержание",null,"Обратно в содержание",null,"Обратно в содержание",null,"Обратно в содержание",null,"Обратно в содержание",null,"Обратно в содержание",null,"Обратно в содержание",null,"Обратно в содержание",null,"Обратно в содержание",null,"Обратно в содержание",null,"Обратно в содержание",null,"Обратно в содержание",null,"Обратно в содержание",null,"Обратно в содержание",null,"Обратно в содержание",null,"Обратно в содержание",null,"Обратно в содержание",null,"Обратно в содержание",null,"Обратно в содержание",null,"Обратно в содержание",null,"Обратно в содержание",null,"Обратно в содержание",null,"Обратно в содержание",null,"Обратно в содержание",null,"Обратно в содержание",null,"Обратно в содержание",null,"Обратно в содержание",null,"Обратно в содержание",null,"Обратно в содержание",null,"Обратно в содержание",null,"Обратно в содержание",null,"Обратно в содержание",null,"Обратно в содержание",null,"Обратно в содержание",null,"Обратно в содержание",null,"Обратно в содержание",null,"Обратно в содержание",null,"Обратно в содержание",null,"Обратно в содержание",null,"Обратно в содержание",null,"Обратно в содержание",null,"Обратно в содержание",null,"Обратно в содержание",null,"Обратно в содержание",null,"Обратно в содержание",null,"Обратно в содержание",null,"Обратно в содержание",null,"Обратно в содержание",null,"Обратно в содержание",null,"Обратно в содержание",null,"Обратно в содержание",null,"Обратно в содержание",null,"Обратно в содержание",null,"Обратно в содержание",null,"Обратно в содержание",null,"Обратно в содержание",null,"Обратно в содержание",null,"Обратно в содержание",null,"Обратно в содержание",null,"Обратно в содержание",null,"Обратно в содержание",null,"Обратно в содержание",null,"Обратно в содержание",null,"Обратно в содержание",null,"Обратно в содержание",null,"Обратно в содержание",null,"Обратно в содержание",null,"Обратно в содержание",null,"Обратно в содержание",null,"Обратно в содержание",null,"Обратно в содержание",null,"Обратно в содержание",null,"Обратно в содержание",null,"Обратно в содержание",null,"Обратно в содержание",null,"Обратно в содержание",null,"Обратно в содержание",null,"Обратно в содержание",null,"Обратно в содержание",null,"Обратно в содержание",null,"Обратно в содержание",null,"Обратно в содержание",null,"Обратно в содержание",null,"Обратно в содержание",null,"Обратно в содержание",null,"Обратно в содержание",null,"Обратно в содержание",null,"Обратно в содержание",null,"Обратно в содержание",null,"Обратно в содержание",null,"Обратно в содержание",null,"Обратно в содержание",null,"Обратно в содержание",null,"Обратно в содержание",null,"Обратно в содержание",null,"Обратно в содержание",null,"Обратно в содержание",null,"Обратно в содержание",null,"Обратно в содержание",null,"Обратно в содержание",null,"Обратно в содержание",null,"Обратно в содержание",null,"Обратно в содержание",null,"Обратно в содержание",null,"Обратно в содержание",null,"Обратно в содержание",null,"Обратно в содержание",null,"Обратно в содержание",null,"Обратно в содержание",null,"Обратно в содержание",null,"Обратно в содержание",null,"Обратно в содержание",null,"Обратно в содержание",null,"Обратно в содержание",null,"Обратно в содержание",null,"Обратно в содержание",null,"Обратно в содержание",null,"Обратно в содержание",null,"Обратно в содержание",null,"Обратно в содержание",null,"Обратно в содержание",null,"Обратно в содержание",null,"Обратно в содержание",null,"Обратно в содержание",null,"Обратно в содержание",null,"Обратно в содержание",null,"Обратно в содержание",null,"Обратно в содержание",null,"Обратно в содержание",null,"Обратно в содержание",null,"Обратно в содержание",null,"Обратно в содержание",null,"Обратно в содержание",null,"Обратно в содержание",null,"Обратно в содержание",null,"Обратно в содержание",null,"Обратно в содержание",null,"Обратно в содержание",null,"Обратно в содержание",null,"Обратно в содержание",null,"Обратно в содержание",null,"Обратно в содержание",null,"Обратно в содержание",null,"Обратно в содержание",null,"Обратно в содержание",null,"Обратно в содержание",null,"Обратно в содержание",null,"Обратно в содержание",null,"Обратно в содержание",null,"Обратно в содержание",null,"Обратно в содержание",null,"Обратно в содержание",null,"Обратно в содержание",null,"Обратно в содержание",null,"Обратно в содержание",null,"Обратно в содержание",null,"Обратно в содержание",null,"Обратно в содержание",null,"Обратно в содержание",null,"Обратно в содержание",null,"Обратно в содержание",null,"Обратно в содержание",null,"Обратно в содержание",null,"Обратно в содержание",null,"Обратно в содержание",null,"Обратно в содержание",null,"Обратно в содержание",null,"Обратно в содержание",null,"Обратно в содержание",null,"Обратно в содержание",null,"Обратно в содержание",null,"Обратно в содержание",null,"Обратно в содержание",null,"Обратно в содержание",null,"Обратно в содержание",null,"Обратно в содержание",null,"Обратно в содержание",null,"Обратно в содержание",null,"Обратно в содержание",null,"Обратно в содержание",null,"Обратно в содержание",null,"Обратно в содержание",null,"Обратно в содержание",null,"Обратно в содержание",null,"Обратно в содержание",null,"Обратно в содержание",null,"Обратно в содержание",null,"Обратно в содержание",null,"Обратно в содержание",null,"Обратно в содержание",null,"Обратно в содержание",null,"Обратно в содержание",null,"Обратно в содержание",null,"Обратно в содержание",null,"Обратно в содержание",null,"Обратно в содержание",null,"Обратно в содержание",null,"Обратно в содержание",null,"Обратно в содержание",null,"Обратно в содержание",null,"Обратно в содержание",null,"Обратно в содержание",null,"Обратно в содержание",null,"Обратно в содержание",null,"Обратно в содержание",null,"Обратно в содержание",null,"Обратно в содержание",null,"Обратно в содержание",null,"Обратно в содержание",null,"Обратно в содержание",null,"Обратно в содержание",null,"Обратно в содержание",null,"Обратно в содержание",null,"Обратно в содержание",null,"Обратно в содержание",null,"Обратно в содержание",null,"Обратно в содержание",null,"Обратно в содержание",null,"Обратно в содержание",null,"Обратно в содержание",null,"Обратно в содержание",null,"Обратно в содержание",null,"Обратно в содержание",null,"Обратно в содержание",null,"Обратно в содержание",null,"Обратно в содержание",null,"Обратно в содержание",null,"Обратно в содержание",null,"Обратно в содержание",null,"Обратно в содержание",null,"Обратно в содержание",null,"Обратно в содержание",null,"Обратно в содержание",null,"Обратно в содержание",null,"Обратно в содержание",null,"Обратно в содержание",null,"Обратно в содержание",null,"Обратно в содержание",null,"Обратно в содержание",null,"Обратно в содержание",null,"Обратно в содержание",null,"Обратно в содержание",null,"Обратно в содержание",null,"Обратно в содержание",null,"Обратно в содержание",null,"Обратно в содержание",null,"Обратно в содержание",null,"Обратно в содержание",null,"Обратно в содержание",null,"Обратно в содержание",null,"Обратно в содержание",null,"Обратно в содержание",null,"Обратно в содержание",null,"Обратно в содержание",null,"Обратно в содержание",null,"Обратно в содержание",null,"Обратно в содержание",null,"Обратно в содержание",null,"Обратно в содержание",null,"Обратно в содержание",null,"Обратно в содержание",null,"Обратно в содержание",null,"Обратно в содержание",null,"Обратно в содержание",null,"Обратно в содержание",null,"Обратно в содержание",null,"Обратно в содержание",null,"Обратно в содержание",null,"Обратно в содержание",null,"Обратно в содержание",null,"Обратно в содержание",null,"Обратно в содержание",null,"Обратно в содержание",null,"Обратно в содержание",null,"Обратно в содержание",null,"Обратно в содержание",null,"Обратно в содержание",null,"Обратно в содержание",null,"Обратно в содержание",null,"Обратно в содержание",null,"Обратно в содержание",null,"Обратно в содержание",null,"Обратно в содержание",null,"Обратно в содержание",null,"Обратно в содержание",null,"Обратно в содержание",null,"Обратно в содержание",null,"Обратно в содержание",null,"Обратно в содержание",null,"Обратно в содержание",null,"Обратно в содержание",null,"Обратно в содержание",null,"Обратно в содержание",null,"Обратно в содержание",null,"Обратно в содержание",null,"Обратно в содержание",null,"Обратно в содержание",null,"Обратно в содержание",null,"Обратно в содержание",null,"Обратно в содержание",null,"Обратно в содержание",null,"Обратно в содержание",null,"Обратно в содержание",null,"Обратно в содержание",null,"Обратно в содержание",null,"Обратно в содержание",null,"Обратно в содержание",null,"Обратно в содержание",null,"Обратно в содержание",null,"Обратно в содержание",null,"Обратно в содержание",null,"Обратно в содержание",null,"Обратно в содержание",null,"Обратно в содержание",null,"Обратно в содержание",null,"Обратно в содержание",null,"Обратно в содержание",null,"Обратно в содержание",null,"Обратно в содержание",null,"Обратно в содержание",null,"Обратно в содержание",null,"Обратно в содержание",null,"Обратно в содержание",null,"Обратно в содержание",null,"Обратно в содержание",null,"Обратно в содержание",null,"Обратно в содержание",null,"Обратно в содержание",null,"Обратно в содержание",null,"Обратно в содержание",null,"Обратно в содержание",null,"Обратно в содержание",null,"Обратно в содержание",null,"Обратно в содержание",null,"Обратно в содержание",null,"Обратно в содержание",null,"Обратно в содержание",null,"Обратно в содержание",null,"Обратно в содержание",null,"Обратно в содержание",null,"Обратно в содержание",null,"Обратно в содержание",null,"Обратно в содержание",null,"Обратно в содержание",null,"Обратно в содержание",null,"Обратно в содержание",null,"Обратно в содержание",null,"Обратно в содержание",null,"Обратно в содержание",null,"Обратно в содержание",null,"Обратно в содержание",null,"Обратно в содержание",null,"Обратно в содержание",null,"Обратно в содержание",null,"Обратно в содержание",null,"Обратно в содержание",null,"Обратно в содержание",null,"Обратно в содержание",null,"Обратно в содержание",null,"Обратно в содержание",null,"Обратно в содержание",null,"Обратно в содержание",null,"Обратно в содержание",null,"Обратно в содержание",null,"Обратно в содержание",null,"Обратно в содержание",null,"Обратно в содержание",null,"Обратно в содержание",null,"Обратно в содержание",null,"Обратно в содержание",null,"Обратно в содержание",null,"Обратно в содержание",null,"Обратно в содержание",null,"Обратно в содержание",null,"Обратно в содержание",null,"Обратно в содержание",null,"Обратно в содержание",null,"Обратно в содержание",null,"Обратно в содержание",null,"Обратно в содержание",null,"Обратно в содержание",null,"Обратно в содержание",null,"Обратно в содержание",null,"Обратно в содержание",null,"Обратно в содержание",null,"Обратно в содержание",null,"Обратно в содержание",null,"Обратно в содержание",null,"Обратно в содержание",null,"Обратно в содержание",null,"Обратно в содержание",null,"Обратно в содержание",null,"Обратно в содержание",null,"Обратно в содержание",null,"Обратно в содержание",null,"Обратно в содержание",null,"Обратно в содержание",null,"Обратно в содержание",null,"Обратно в содержание",null,"Обратно в содержание",null,"Обратно в содержание",null,"Обратно в содержание",null,"Обратно в содержание",null,"Обратно в содержание",null,"Обратно в содержание",null,"Обратно в содержание",null,"Обратно в содержание",null,"Обратно в содержание",null,"Обратно в содержание",null,"Обратно в содержание",null,"Обратно в содержание",null,"Обратно в содержание",null,"Обратно в содержание",null,"Обратно в содержание",null,"Обратно в содержание",null,"Обратно в содержание",null,"Обратно в содержание",null,"Обратно в содержание",null,"Обратно в содержание",null,"Обратно в содержание",null,"Обратно в содержание",null,"Обратно в содержание",null,"Обратно в содержание",null,"Обратно в содержание",null,"Обратно в содержание",null,"Обратно в содержание",null,"Обратно в содержание",null,"Обратно в содержание",null,"Обратно в содержание",null,"Обратно в содержание",null,"Обратно в содержание",null,"Обратно в содержание",null,"Обратно в содержание",null,"Обратно в содержание",null,"Обратно в содержание",null,"Обратно в содержание",null,"Обратно в содержание",null,"Обратно в содержание",null,"Обратно в содержание",null,"Обратно в содержание",null,"Обратно в содержание",null,"Обратно в содержание",null,"Обратно в содержание",null,"Обратно в содержание",null,"Обратно в содержание",null,"Обратно в содержание",null,"Обратно в содержание",null,"Обратно в содержание",null,"Обратно в содержание",null,"Обратно в содержание",null,"Обратно в содержание",null,"Обратно в содержание",null,"Обратно в содержание",null,"Обратно в содержание",null,"Обратно в содержание",null,"Обратно в содержание",null,"Обратно в содержание",null,"Обратно в содержание",null,"Обратно в содержание",null,"Обратно в содержание",null,"Обратно в содержание",null,"Обратно в содержание",null,"Обратно в содержание",null,"Обратно в содержание",null,"Обратно в содержание",null,"Обратно в содержание",null,"Обратно в содержание",null,"Обратно в содержание",null,"Обратно в содержание",null,"Обратно в содержание",null,"Обратно в содержание",null,"Обратно в содержание",null,"Обратно в содержание",null,"Обратно в содержание",null,"Обратно в содержание",null,"Обратно в содержание",null,"Обратно в содержание",null,"Обратно в содержание",null,"Обратно в содержание",null,"Обратно в содержание",null,"Обратно в содержание",null,"Обратно в содержание",null,"Обратно в содержание",null,"Обратно в содержание",null,"Обратно в содержание",null,"Обратно в содержание",null,"Обратно в содержание",null,"Обратно в содержание",null,"Обратно в содержание",null,"Обратно в содержание",null,"Обратно в содержание",null,"Обратно в содержание",null,"Обратно в содержание",null,"Обратно в содержание",null,"Обратно в содержание",null,"Обратно в содержание",null,"Обратно в содержание",null,"Обратно в содержание",null,"Обратно в содержание",null,"Обратно в содержание",null,"Обратно в содержание",null,"Обратно в содержание",null,"Обратно в содержание",null,"Обратно в содержание",null,"Обратно в содержание",null,"Обратно в содержание",null,"Обратно в содержание",null,"Обратно в содержание",null,"Обратно в содержание",null,"Обратно в содержание",null,"Обратно в содержание",null,"Обратно в содержание",null,"Обратно в содержание",null,"Обратно в содержание",null,"Обратно в содержание",null,"Обратно в содержание",null,"Обратно в содержание",null,"Обратно в содержание",null,"Обратно в содержание",null,"Обратно в содержание",null,"Обратно в содержание",null,"Обратно в содержание",null,"Обратно в содержание",null,"Обратно в содержание",null,"Обратно в содержание",null,"Обратно в содержание",null,"Обратно в содержание",null,"Обратно в содержание",null,"Обратно в содержание",null,"Обратно в содержание",null,"Обратно в содержание",null,"Обратно в содержание",null,"Обратно в содержание",null,"Обратно в содержание",null,"Обратно в содержание",null,"Обратно в содержание",null,"Обратно в содержание",null,"Обратно в содержание",null,"Обратно в содержание",null,"Обратно в содержание",null,"Обратно в содержание",null,"Обратно в содержание",null,"Обратно в содержание",null,"Обратно в содержание",null,"Обратно в содержание",null,"Обратно в содержание",null,"Обратно в содержание",null,"Обратно в содержание",null,"Обратно в содержание",null,"Обратно в содержание",null,"Обратно в содержание",null,"Обратно в содержание",null,"Обратно в содержание",null,"Обратно в содержание",null,"Обратно в содержание",null,"Обратно в содержание",null,"Обратно в содержание",null,"Обратно в содержание",null,"Обратно в содержание",null,"Обратно в содержание",null,"Обратно в содержание",null,"Обратно в содержание",null,"Обратно в содержание",null,"Обратно в содержание",null,"Обратно в содержание",null,"Обратно в содержание",null,"Обратно в содержание",null,"Обратно в содержание",null,"Обратно в содержание",null,"Обратно в содержание",null,"Обратно в содержание",null,"Обратно в содержание",null,"Обратно в содержание",null,"Обратно в содержание",null,"Обратно в содержание",null,"Обратно в содержание",null,"Обратно в содержание",null,"Обратно в содержание",null,"Обратно в содержание",null,"Обратно в содержание",null,"Обратно в содержание",null,"Обратно в содержание",null,"Обратно в содержание",null,"Обратно в содержание",null,"Обратно в содержание",null,"Обратно в содержание",null,"Обратно в содержание",null,"Обратно в содержание",null,"Обратно в содержание",null,"Обратно в содержание",null,"Обратно в содержание",null,"Обратно в содержание",null,"Обратно в содержание",null,"Обратно в содержание",null,"Обратно в содержание",null,"Обратно в содержание",null,"Обратно в содержание",null,"Обратно в содержание",null,"Обратно в содержание",null,"Обратно в содержание",null,"Обратно в содержание",null,"Обратно в содержание",null,"Обратно в содержание",null,"Обратно в содержание",null,"Обратно в содержание",null,"Обратно в содержание",null,"Обратно в содержание",null,"Обратно в содержание",null,"Обратно в содержание",null,"Обратно в содержание",null,"Обратно в содержание",null,"Обратно в содержание",null,"Обратно в содержание",null,"Обратно в содержание",null,"Обратно в содержание",null,"Обратно в содержание",null,"Обратно в содержание",null,"Обратно в содержание",null,"Обратно в содержание",null,"Обратно в содержание",null,"Обратно в содержание",null,"Обратно в содержание",null,"Обратно в содержание",null,"Обратно в содержание",null,"Обратно в содержание",null,"Обратно в содержание",null,"Обратно в содержание",null,"Обратно в содержание",null,"Обратно в содержание",null,"Обратно в содержание",null,"Обратно в содержание",null,"Обратно в содержание",null,"Обратно в содержание",null,"Обратно в содержание",null,"Обратно в содержание",null,"Обратно в содержание",null,"Обратно в содержание",null,"Обратно в содержание",null,"Обратно в содержание",null,"Обратно в содержание",null,"Обратно в содержание",null,"Обратно в содержание",null,"Обратно в содержание",null,"Обратно в содержание",null,"Обратно в содержание",null,"Обратно в содержание",null,"Обратно в содержание",null,"Обратно в содержание",null,"Обратно в содержание",null,"Обратно в содержание",null,"Обратно в содержание",null,"Обратно в содержание",null,"Обратно в содержание",null,"Обратно в содержание",null,"Обратно в содержание",null,"Обратно в содержание",null,"Обратно в содержание",null,"Обратно в содержание",null,"Обратно в содержание",null,"Обратно в содержание",null,"Обратно в содержание",null,"Обратно в содержание",null,"Обратно в содержание",null,"Обратно в содержание",null,"Обратно в содержание",null,"Обратно в содержание",null,"Обратно в содержание",null,"Обратно в содержание",null,"Обратно в содержание",null,"Обратно в содержание",null,"Обратно в содержание",null,"Обратно в содержание",null,"Обратно в содержание",null,"Обратно в содержание",null,"Обратно в содержание",null,"Обратно в содержание",null,"Обратно в содержание",null,"Обратно в содержание",null,"Обратно в содержание",null,"Обратно в содержание",null,"Обратно в содержание",null,"Обратно в содержание",null,"Обратно в содержание",null,"Обратно в содержание",null,"Обратно в содержание",null,"Обратно в содержание",null,"Обратно в содержание",null,"Обратно в содержание",null,"Обратно в содержание",null,"Обратно в содержание",null,"Обратно в содержание",null,"Обратно в содержание",null,"Обратно в содержание",null,"Обратно в содержание",null,"Обратно в содержание",null,"Обратно в содержание",null,"Обратно в содержание",null,"Обратно в содержание",null,"Обратно в содержание",null,"Обратно в содержание",null,"Обратно в содержание",null,"Обратно в содержание",null,"Обратно в содержание",null,"Обратно в содержание",null,"Обратно в содержание",null,"Обратно в содержание",null,"Обратно в содержание",null,"Обратно в содержание",null,"Обратно в содержание",null,"Обратно в содержание",null,"Обратно в содержание",null,"Обратно в содержание",null,"Обратно в содержание",null,"Обратно в содержание",null,"Обратно в содержание",null,"Обратно в содержание",null,"Обратно в содержание",null,"Обратно в содержание",null,"Обратно в содержание",null,"Обратно в содержание",null,"Обратно в содержание",null,"Обратно в содержание",null,"Обратно в содержание",null,"Обратно в содержание",null,"Обратно в содержание",null,"Обратно в содержание",null,"Обратно в содержание",null,"Обратно в содержание",null,"Обратно в содержание",null,"Обратно в содержание",null,"Обратно в содержание",null,"Обратно в содержание",null,"Обратно в содержание",null,"Обратно в содержание",null,"Обратно в содержание",null,"Обратно в содержание",null,"Обратно в содержание",null,"Обратно в содержание",null,"Обратно в содержание",null,"Обратно в содержание",null,"Обратно в содержание",null,"Обратно в содержание",null,"Обратно в содержание",null,"Обратно в содержание",null,"Обратно в содержание",null,"Обратно в содержание",null,"Обратно в содержание",null,"Обратно в содержание",null,"Обратно в содержание",null,"Обратно в содержание",null,"Обратно в содержание",null,"Обратно в содержание",null,"Обратно в содержание",null,"Обратно в содержание",null,"Обратно в содержание",null,"Обратно в содержание",null,"Обратно в содержание",null,"Обратно в содержание",null,"Обратно в содержание",null,"Обратно в содержание",null,"Обратно в содержание",null,"Обратно в содержание",null,"Обратно в содержание",null,"Обратно в содержание",null,"Обратно в содержание",null,"Обратно в содержание",null,"Обратно в содержание",null,"Обратно в содержание",null,"Обратно в содержание",null,"Обратно в содержание",null,"Обратно в содержание",null,"Обратно в содержание",null,"Обратно в содержание",null,"Обратно в содержание",null,"Обратно в содержание",null,"Обратно в содержание",null,"Обратно в содержание",null,"Обратно в содержание",null,"Обратно в содержание",null,"Обратно в содержание",null,"Обратно в содержание",null,"Обратно в содержание",null,"Обратно в содержание",null,"Обратно в содержание",null,"Обратно в содержание",null,"Обратно в содержание",null,"Обратно в содержание",null,"Обратно в содержание",null,"Обратно в содержание",null,"Обратно в содержание",null,"Обратно в содержание",null,"Обратно в содержание",null,"Обратно в содержание",null,"Обратно в содержание",null,"Обратно в содержание",null,"Обратно в содержание",null,"Обратно в содержание",null,"Обратно в содержание",null,"Обратно в содержание",null,"Обратно в содержание",null,"Обратно в содержание",null,"Обратно в содержание",null,"Обратно в содержание",null,"Обратно в содержание",null,"Обратно в содержание",null,"Обратно в содержание",null,"Обратно в содержание",null,"Обратно в содержание",null,"Обратно в содержание",null,"Обратно в содержание",null,"Обратно в содержание",null,"Обратно в содержание",null,"Обратно в содержание",null,"Обратно в содержание",null,"Обратно в содержание",null,"Обратно в содержание",null,"Обратно в содержание",null,"Обратно в содержание",null,"Обратно в содержание",null,"Обратно в содержание",null,"Обратно в содержание",null,"Обратно в содержание",null,"Обратно в содержание",null,"Обратно в содержание",null,"Обратно в содержание",null,"Обратно в содержание",null,"Обратно в содержание",null,"Обратно в содержание",null,"Обратно в содержание",null,"Обратно в содержание",null,"Обратно в содержание",null,"Обратно в содержание",null,"Обратно в содержание",null,"Обратно в содержание",null,"Обратно в содержание",null,"Обратно в содержание",null,"Обратно в содержание",null,"Обратно в содержание",null,"Обратно в содержание",null,"Обратно в содержание",null,"Обратно в содержание",null,"Обратно в содержание",null,"Обратно в содержание",null,"Обратно в содержание",null,"Обратно в содержание",null,"Обратно в содержание",null,"Обратно в содержание",null,"Обратно в содержание",null,"Обратно в содержание",null,"Обратно в содержание",null,"Обратно в содержание",null,"Обратно в содержание",null,"Обратно в содержание",null,"Обратно в содержание",null,"Обратно в содержание",null,"Обратно в содержание",null,"Обратно в содержание",null,"Обратно в содержание",null,"Обратно в содержание",null,"Обратно в содержание",null,"Обратно в содержание",null,"Обратно в содержание",null,"Обратно в содержание",null,"Обратно в содержание",null,"Обратно в содержание",null,"Обратно в содержание",null,"Обратно в содержание",null,"Обратно в содержание",null,"Обратно в содержание",null,"Обратно в содержание",null,"Обратно в содержание",null,"Обратно в содержание",null,"Обратно в содержание",null,"Обратно в содержание",null,"Обратно в содержание",null,"Обратно в содержание",null,"Обратно в содержание",null,"Обратно в содержание",null,"Обратно в содержание",null,"Обратно в содержание",null,"Обратно в содержание",null,"Обратно в содержание",null,"Обратно в содержание",null,"Обратно в содержание",null,"Обратно в содержание",null,"Обратно в содержание",null,"Обратно в содержание",null,"Обратно в содержание",null,"Обратно в содержание",null,"Обратно в содержание",null,"Обратно в содержание",null,"Обратно в содержание",null,"Обратно в содержание",null,"Обратно в содержание",null,"Обратно в содержание",null,"Обратно в содержание",null,"Обратно в содержание",null,"Обратно в содержание",null,"Обратно в содержание",null,"Обратно в содержание",null,"Обратно в содержание",null,"Обратно в содержание",null,"Обратно в содержание",null,"Обратно в содержание",null,"Обратно в содержание",null,"Обратно в содержание",null,"Обратно в содержание",null,"Обратно в содержание",null,"Обратно в содержание",null,"Обратно в содержание",null,"Обратно в содержание",null,"Обратно в содержание",null,"Обратно в содержание",null,"Обратно в содержание",null,"Обратно в содержание",null,"Обратно в содержание",null,"Обратно в содержание",null,"Обратно в содержание",null,"Обратно в содержание",null,"Обратно в содержание",null,"Обратно в содержание",null,"Обратно в содержание",null,"Обратно в содержание",null,"Обратно в содержание",null,"Обратно в содержание",null,"Обратно в содержание",null,"Обратно в содержание",null,"Обратно в содержание",null,"Обратно в содержание",null,"Обратно в содержание",null,"Обратно в содержание",null,"Обратно в содержание",null,"Обратно в содержание",null,"Обратно в содержание",null,"Обратно в содержание",null,"Обратно в содержание",null,"Обратно в содержание",null,"Обратно в содержание",null,"Обратно в содержание",null,"Обратно в содержание",null,"Обратно в содержание",null,"Обратно в содержание",null,"Обратно в содержание",null,"Обратно в содержание",null,"Обратно в содержание",null,"Обратно в содержание",null,"Обратно в содержание",null,"Обратно в содержание",null,"Обратно в содержание",null,"Обратно в содержание",null,"Обратно в содержание",null,"Обратно в содержание",null,"Обратно в содержание",null,"Обратно в содержание",null,"Обратно в содержание",null,"Обратно в содержание",null,"Обратно в содержание",null,"Обратно в содержание",null,"Обратно в содержание",null,"Обратно в содержание",null,"Обратно в содержание",null,"Обратно в содержание",null,"Обратно в содержание",null,"Обратно в содержание",null,"Обратно в содержание",null,"Обратно в содержание",null,"Обратно в содержание",null,"Обратно в содержание",null,"Обратно в содержание",null,"Обратно в содержание",null,"Обратно в содержание",null,"Обратно в содержание",null,"Обратно в содержание",null,"Обратно в содержание",null,"Обратно в содержание",null,"Обратно в содержание",null,"Обратно в содержание",null,"Обратно в содержание",null,"Обратно в содержание",null,"Обратно в содержание",null,"Обратно в содержание",null,"Обратно в содержание",null,"Обратно в содержание",null,"Обратно в содержание",null,"Обратно в содержание",null,"Обратно в содержание",null,"Обратно в содержание",null,"Обратно в содержание",null,"Обратно в содержание",null,"Обратно в содержание",null,"Обратно в содержание",null,"Обратно в содержание",null,"Обратно в содержание",null,"Обратно в содержание",null,"Обратно в содержание",null,"Обратно в содержание",null,"Обратно в содержание",null,"Обратно в содержание",null,"Обратно в содержание",null,"Обратно в содержание",null,"Обратно в содержание",null,"Обратно в содержание",null,"Обратно в содержание",null,"Обратно в содержание",null,"Обратно в содержание",null,"Обратно в содержание",null,"Обратно в содержание",null,"Обратно в содержание",null,"Обратно в содержание",null,"Обратно в содержание",null,"Обратно в содержание",null,"Обратно в содержание",null,"Обратно в содержание",null,"Обратно в содержание",null,"Обратно в содержание",null,"Обратно в содержание",null,"Обратно в содержание",null,"Обратно в содержание",null,"Обратно в содержание",null,"Обратно в содержание",null,"Обратно в содержание",null,"Обратно в содержание",null,"Обратно в содержание",null,"Обратно в содержание",null,"Обратно в содержание",null,"Обратно в содержание",null,"Обратно в содержание",null,"Обратно в содержание",null,"Обратно в содержание",null,"Обратно в содержание",null,"Обратно в содержание",null,"Обратно в содержание",null,"Обратно в содержание",null,"Обратно в содержание",null,"Обратно в содержание",null,"Обратно в содержание",null,"Обратно в содержание",null,"Обратно в содержание",null,"Обратно в содержание",null,"Обратно в содержание",null,"Обратно в содержание",null,"Обратно в содержание",null,"Обратно в содержание",null,"Обратно в содержание",null,"Обратно в содержание",null,"Обратно в содержание",null,"Обратно в содержание",null,"Обратно в содержание",null,"Обратно в содержание",null,"Обратно в содержание",null,"Обратно в содержание",null,"Обратно в содержание",null,"Обратно в содержание",null,"Обратно в содержание",null,"Обратно в содержание",null,"Обратно в содержание",null,"Обратно в содержание",null,"Обратно в содержание",null,"Обратно в содержание",null,"Обратно в содержание",null,"Обратно в содержание",null,"Обратно в содержание",null,"Обратно в содержание",null,"Обратно в содержание",null,"Обратно в содержание",null,"Обратно в содержание",null,"Обратно в содержание",null,"Обратно в содержание",null,"Обратно в содержание",null,"Обратно в содержание",null,"Обратно в содержание",null,"Обратно в содержание",null,"Обратно в содержание",null,"Обратно в содержание",null,"Обратно в содержание",null,"Обратно в содержание",null,"Обратно в содержание",null,"Обратно в содержание",null,"Обратно в содержание",null,"Обратно в содержание",null,"Обратно в содержание",null,"Обратно в содержание",null,"Обратно в содержание",null,"Обратно в содержание",null,"Обратно в содержание",null,"Обратно в содержание",null,"Обратно в содержание",null,"Обратно в содержание",null,"Обратно в содержание",null,"Обратно в содержание",null,"Обратно в содержание",null,"Обратно в содержание",null,"Обратно в содержание",null,"Обратно в содержание",null,"Обратно в содержание",null,"Обратно в содержание",null,"Обратно в содержание",null,"Обратно в содержание",null,"Обратно в содержание",null,"Обратно в содержание",null,"Обратно в содержание",null,"Обратно в содержание",null,"Обратно в содержание",null,"Обратно в содержание",null,"Обратно в содержание",null,"Обратно в содержание",null,"Обратно в содержание",null,"Обратно в содержание",null,"Обратно в содержание",null,"Обратно в содержание",null,"Обратно в содержание",null,"Обратно в содержание",null,"Обратно в содержание",null,"Обратно в содержание",null,"Обратно в содержание",null,"Обратно в содержание",null,"Обратно в содержание",null,"Обратно в содержание",null,"Обратно в содержание",null,"Обратно в содержание",null,"Обратно в содержание",null,"Обратно в содержание",null,"Обратно в содержание",null,"Обратно в содержание",null,"Обратно в содержание",null,"Обратно в содержание",null,"Обратно в содержание",null,"Обратно в содержание",null,"Обратно в содержание",null,"Обратно в содержание",null,"Обратно в содержание",null,"Обратно в содержание",null,"Обратно в содержание",null,"Обратно в содержание",null,"Обратно в содержание",null,"Обратно в содержание",null,"Обратно в содержание",null,"Обратно в содержание",null,"Обратно в содержание",null,"Обратно в содержание",null,"Обратно в содержание",null,"Обратно в содержание",null,"Обратно в содержание",null,"Обратно в содержание",null,"Обратно в содержание",null,"Обратно в содержание",null,"Обратно в содержание",null,"Обратно в содержание",null,"Обратно в содержание",null,"Обратно в содержание",null,"Обратно в содержание",null,"Обратно в содержание",null,"Обратно в содержание",null,"Обратно в содержание",null,"Обратно в содержание",null,"Обратно в содержание",null,"Обратно в содержание",null,"Обратно в содержание",null,"Обратно в содержание",null,"Обратно в содержание",null,"Обратно в содержание",null,"Обратно в содержание",null,"Обратно в содержание",null,"Обратно в содержание",null,"Обратно в содержание",null,"Обратно в содержание",null,"Обратно в содержание",null,"Обратно в содержание",null,"Обратно в содержание",null,"Обратно в содержание",null,"Обратно в содержание",null,"Обратно в содержание",null,"Обратно в содержание",null,"Обратно в содержание",null,"Обратно в содержание",null,"Обратно в содержание",null,"Обратно в содержание",null,"Обратно в содержание",null,"Обратно в содержание",null,"Обратно в содержание",null,"Обратно в содержание",null,"Обратно в содержание",null,"Обратно в содержание",null,"Обратно в содержание",null,"Обратно в содержание",null,"Обратно в содержание",null,"Обратно в содержание",null,"Обратно в содержание",null,"Обратно в содержание",null,"Обратно в содержание",null,"Обратно в содержание",null,"Обратно в содержание",null,"Обратно в содержание",null,"Обратно в содержание",null,"Обратно в содержание",null,"Обратно в содержание",null,"Обратно в содержание",null,"Обратно в содержание",null,"Обратно в содержание",null,"Обратно в содержание",null,"Обратно в содержание",null,"Обратно в содержание",null,"Обратно в содержание",null,"Обратно в содержание",null,"Обратно в содержание",null,"Обратно в содержание",null,"Обратно в содержание",null,"Обратно в содержание",null,"Обратно в содержание",null,"Обратно в содержание",null,"Обратно в содержание",null,"Обратно в содержание",null,"Обратно в содержание",null,"Обратно в содержание",null,"Обратно в содержание",null,"Обратно в содержание",null,"Обратно в содержание",null,"Обратно в содержание",null,"Обратно в содержание",null,"Обратно в содержание",null,"Обратно в содержание",null,"Обратно в содержание",null,"Обратно в содержание",null,"Обратно в содержание",null,"Обратно в содержание",null,"Обратно в содержание",null,"Обратно в содержание",null,"Обратно в содержание",null,"Обратно в содержание",null,"Обратно в содержание",null,"Обратно в содержание",null,"Обратно в содержание",null,"Обратно в содержание",null,"Обратно в содержание",null,"Обратно в содержание",null,"Обратно в содержание",null,"Обратно в содержание",null,"Обратно в содержание",null,"Обратно в содержание",null,"Обратно в содержание",null,"Обратно в содержание",null,"Обратно в содержание",null,"Обратно в содержание",null,"Обратно в содержание",null,"Обратно в содержание",null,"Обратно в содержание",null,"Обратно в содержание",null,"Обратно в содержание",null,"Обратно в содержание",null,"Обратно в содержание",null,"Обратно в содержание",null,"Обратно в содержание",null,"Обратно в содержание",null,"Обратно в содержание",null,"Обратно в содержание",null,"Обратно в содержание",null,"Обратно в содержание",null,"Обратно в содержание",null,"Обратно в содержание",null,"Обратно в содержание",null,"Обратно в содержание",null,"Обратно в содержание",null,"Обратно в содержание",null,"Обратно в содержание",null,"Обратно в содержание",null,"Обратно в содержание",null,"Обратно в содержание",null,"Обратно в содержание",null,"Обратно в содержание",null,"Обратно в содержание",null,"Обратно в содержание",null,"Обратно в содержание",null,"Обратно в содержание",null,"Обратно в содержание",null,"Обратно в содержание",null,"Обратно в содержание",null,"Обратно в содержание",null,"Обратно в содержание",null,"Обратно в содержание",null,"Обратно в содержание",null,"Обратно в содержание",null,"Обратно в содержание",null,"Обратно в содержание",null,"Обратно в содержание",null,"Обратно в содержание",null,"Обратно в содержание",null,"Обратно в содержание",null,"Обратно в содержание",null,"Обратно в содержание",null,"Обратно в содержание",null,"Обратно в содержание",null,"Обратно в содержание",null,"Обратно в содержание",null,"Обратно в содержание",null,"Обратно в содержание",null,"Обратно в содержание",null,"Обратно в содержание",null,"Обратно в содержание",null,"Обратно в содержание",null,"Обратно в содержание",null,"Обратно в содержание",null,"Обратно в содержание",null,"Обратно в содержание",null,"Обратно в содержание",null,"Обратно в содержание",null,"Обратно в содержание",null,"Обратно в содержание",null,"Обратно в содержание",null,"Обратно в содержание",null,"Обратно в содержание",null,"Обратно в содержание",null,"Обратно в содержание",null,"Обратно в содержание",null,"Обратно в содержание",null,"Обратно в содержание",null,"Обратно в содержание",null,"Обратно в содержание",null,"Обратно в содержание",null,"Обратно в содержание",null,"Обратно в содержание",null,"Обратно в содержание",null,"Обратно в содержание",null,"Обратно в содержание",null,"Обратно в содержание",null,"Обратно в содержание",null,"Обратно в содержание",null,"Обратно в содержание",null,"Обратно в содержание",null,"Обратно в содержание",null,"Обратно в содержание",null,"Обратно в содержание",null,"Обратно в содержание",null,"Обратно в содержание",null,"Обратно в содержание",null,"Обратно в содержание",null,"Обратно в содержание",null,"Обратно в содержание",null,"Обратно в содержание",null,"Обратно в содержание",null,"Обратно в содержание",null,"Обратно в содержание",null,"Обратно в содержание",null,"Обратно в содержание",null,"Обратно в содержание",null,"Обратно в содержание",null,"Обратно в содержание",null,"Обратно в содержание",null,"Обратно в содержание",null,"Обратно в содержание",null,"Обратно в содержание",null,"Обратно в содержание",null,"Обратно в содержание",null,"Обратно в содержание",null,"Обратно в содержание",null,"Обратно в содержание",null,"Обратно в содержание",null,"Обратно в содержание",null,"Обратно в содержание",null,"Обратно в содержание",null,"Обратно в содержание",null,"Обратно в содержание",null,"Обратно в содержание",null,"Обратно в содержание",null,"Обратно в содержание",null,"Обратно в содержание",null,"Обратно в содержание",null,"Обратно в содержание",null,"Обратно в содержание",null,"Обратно в содержание",null,"Обратно в содержание",null,"Обратно в содержание",null,"Обратно в содержание",null,"Обратно в содержание",null,"Обратно в содержание",null,"Обратно в содержание",null,"Обратно в содержание",null,"Обратно в содержание",null,"Обратно в содержание",null,"Обратно в содержание",null,"Обратно в содержание",null,"Обратно в содержание",null,"Обратно в содержание",null,"Обратно в содержание",null,"Обратно в содержание",null,"Обратно в содержание",null,"Обратно в содержание",null,"Обратно в содержание",null,"Обратно в содержание",null,"Обратно в содержание",null,"Обратно в содержание",null,"Обратно в содержание",null,"Обратно в содержание",null,"Обратно в содержание",null,"Обратно в содержание",null,"Обратно в содержание",null,"Обратно в содержание",null,"Обратно в содержание",null,"Обратно в содержание",null,"Обратно в содержание",null,"Обратно в содержание",null,"Обратно в содержание",null,"Обратно в содержание",null,"Обратно в содержание",null,"Обратно в содержание",null,"Обратно в содержание",null,"Обратно в содержание",null,"Обратно в содержание",null,"Обратно в содержание",null,"Обратно в содержание",null,"Обратно в содержание",null,"Обратно в содержание",null,"Обратно в содержание",null,"Обратно в содержание",null,"Обратно в содержание",null,"Обратно в содержание",null,"Обратно в содержание",null,"Обратно в содержание",null,"Обратно в содержание",null,"Обратно в содержание",null,"Обратно в содержание",null,"Обратно в содержание",null,"Обратно в содержание",null,"Обратно в содержание",null,"Обратно в содержание",null,"Обратно в содержание",null,"Обратно в содержание",null,"Обратно в содержание",null,"Обратно в содержание",null,"Обратно в содержание",null,"Обратно в содержание",null,"Обратно в содержание",null,"Обратно в содержание",null,"Обратно в содержание",null,"Обратно в содержание",null,"Обратно в содержание",null,"Обратно в содержание",null,"Обратно в содержание",null,"Обратно в содержание",null,"Обратно в содержание",null,"Обратно в содержание",null,"Обратно в содержание",null,"Обратно в содержание",null,"Обратно в содержание",null,"Обратно в содержание",null,"Обратно в содержание",null,"Обратно в содержание",null,"Обратно в содержание",null,"Обратно в содержание",null,"Обратно в содержание",null,"Обратно в содержание",null,"Обратно в содержание",null,"Обратно в содержание",null,"Обратно в содержание",null,"Обратно в содержание",null,"Обратно в содержание",null,"Обратно в содержание",null,"Обратно в содержание",null,"Обратно в содержание",null,"Обратно в содержание",null,"Обратно в содержание",null,"Обратно в содержание",null,"Обратно в содержание",null,"Обратно в содержание",null,"Обратно в содержание",null,"Обратно в содержание",null,"Обратно в содержание",null,"Обратно в содержание",null,"Обратно в содержание",null,"Обратно в содержание",null,"Обратно в содержание",null,"Обратно в содержание",null,"Обратно в содержание",null,"Обратно в содержание",null,"Обратно в содержание",null,"Обратно в содержание",null,"Обратно в содержание",null,"Обратно в содержание",null,"Обратно в содержание",null,"Обратно в содержание",null,"Обратно в содержание",null,"Обратно в содержание",null,"Обратно в содержание",null,"Обратно в содержание",null,"Обратно в содержание",null,"Обратно в содержание",null,"Обратно в содержание",null,"Обратно в содержание",null,"Обратно в содержание",null,"Обратно в содержание",null,"Обратно в содержание",null,"Обратно в содержание",null,"Обратно в содержание",null,"Обратно в содержание",null,"Обратно в содержание",null,"Обратно в содержание",null,"Обратно в содержание",null,"Обратно в содержание",null,"Обратно в содержание",null,"Обратно в содержание",null,"Обратно в содержание",null,"Обратно в содержание",null,"Обратно в содержание",null,"Обратно в содержание",null,"Обратно в содержание",null,"Обратно в содержание",null,"Обратно в содержание",null,"Обратно в содержание",null,"Обратно в содержание",null,"Обратно в содержание",null,"Обратно в содержание",null,"Обратно в содержание",null,"Обратно в содержание",null,"Обратно в содержание",null,"Обратно в содержание",null,"Обратно в содержание",null,"Обратно в содержание",null,"Обратно в содержание",null,"Обратно в содержание",null,"Обратно в содержание",null,"Обратно в содержание",null,"Обратно в содержание",null,"Обратно в содержание",null,"Обратно в содержание",null,"Обратно в содержание",null,"Обратно в содержание",null,"Обратно в содержание",null,"Обратно в содержание",null,"Обратно в содержание",null,"Обратно в содержание",null,"Обратно в содержание",null,"Обратно в содержание",null,"Обратно в содержание",null,"Обратно в содержание",null,"Обратно в содержание",null,"Обратно в содержание",null,"Обратно в содержание",null,"Обратно в содержание",null,"Обратно в содержание",null,"Обратно в содержание",null,"Обратно в содержание",null,"Обратно в содержание",null,"Обратно в содержание",null,"Обратно в содержание",null,"Обратно в содержание",null,"Обратно в содержание",null,"Обратно в содержание",null,"Обратно в содержание",null,"Обратно в содержание",null,"Обратно в содержание",null,"Обратно в содержание",null,"Обратно в содержание",null,"Обратно в содержание",null,"Обратно в содержание",null,"Обратно в содержание",null,"Обратно в содержание",null,"Обратно в содержание",null,"Обратно в содержание",null,"Обратно в содержание",null,"Обратно в содержание",null,"Обратно в содержание",null,"Обратно в содержание",null,"Обратно в содержание",null,"Обратно в содержание",null,"Обратно в содержание",null,"Обратно в содержание",null,"Обратно в содержание",null,"Обратно в содержание",null,"Обратно в содержание",null,"Обратно в содержание",null,"Обратно в содержание",null,"Обратно в содержание",null,"Обратно в содержание",null,"Обратно в содержание",null,"Обратно в содержание",null,"Обратно в содержание",null,"Обратно в содержание",null,"Обратно в содержание",null,"Обратно в содержание",null,"Обратно в содержание",null,"Обратно в содержание",null,"Обратно в содержание",null,"Обратно в содержание",null,"Обратно в содержание",null,"Обратно в содержание",null,"Обратно в содержание",null,"Обратно в содержание",null,"Обратно в содержание",null,"Обратно в содержание",null,"Обратно в содержание",null,"Обратно в содержание",null,"Обратно в содержание",null,"Обратно в содержание",null,"Обратно в содержание",null,"Обратно в содержание",null,"Обратно в содержание",null,"Обратно в содержание",null,"Обратно в содержание",null,"Обратно в содержание",null,"Обратно в содержание",null,"Обратно в содержание",null,"Обратно в содержание",null,"Обратно в содержание",null,"Обратно в содержание",null,"Обратно в содержание",null,"Обратно в содержание",null,"Обратно в содержание",null,"Обратно в содержание",null,"Обратно в содержание",null,"Обратно в содержание",null,"Обратно в содержание",null,"Обратно в содержание",null,"Обратно в содержание",null,"Обратно в содержание",null,"Обратно в содержание",null,"Обратно в содержание",null,"Обратно в содержание",null,"Обратно в содержание",null,"Обратно в содержание",null,"Обратно в содержание",null,"Обратно в содержание",null,"Обратно в содержание",null,"Обратно в содержание",null,"Обратно в содержание",null,"Обратно в содержание",null,"Обратно в содержание",null,"Обратно в содержание",null,"Обратно в содержание",null,"Обратно в содержание",null,"Обратно в содержание",null,"Обратно в содержание",null,"Обратно в содержание",null,"Обратно в содержание",null,"Обратно в содержание",null,"Обратно в содержание",null,"Обратно в содержание",null,"Обратно в содержание",null,"Обратно в содержание",null,"Обратно в содержание",null,"Обратно в содержание",null,"Обратно в содержание",null,"Обратно в содержание",null,"Обратно в содержание",null,"Обратно в содержание",null,"Обратно в содержание",null,"Обратно в содержание",null,"Обратно в содержание",null,"Обратно в содержание",null,"Обратно в содержание",null,"Обратно в содержание",null,"Обратно в содержание",null,"Обратно в содержание",null,"Обратно в содержание",null,"Обратно в содержание",null,"Обратно в содержание",null,"Обратно в содержание",null,"Обратно в содержание",null,"Обратно в содержание",null,"Обратно в содержание",null,"Обратно в содержание",null,"Обратно в содержание",null,"Обратно в содержание",null,"Обратно в содержание",null,"Обратно в содержание",null,"Обратно в содержание",null,"Обратно в содержание",null,"Обратно в содержание",null,"Обратно в содержание",null,"Обратно в содержание",null,"Обратно в содержание",null,"Обратно в содержание",null,"Обратно в содержание",null,"Обратно в содержание",null,"Обратно в содержание",null,"Обратно в содержание",null,"Обратно в содержание",null,"Обратно в содержание",null,"Обратно в содержание",null,"Обратно в содержание",null,"Обратно в содержание",null,"Обратно в содержание",null,"Обратно в содержание",null,"Обратно в содержание",null,"Обратно в содержание",null,"Обратно в содержание",null,"Обратно в содержание",null,"Обратно в содержание",null,"Обратно в содержание",null,"Обратно в содержание",null,"Обратно в содержание",null,"Обратно в содержание",null,"Обратно в содержание",null,"Обратно в содержание",null,"Обратно в содержание",null,"Обратно в содержание",null,"Обратно в содержание",null,"Обратно в содержание",null,"Обратно в содержание",null,"Обратно в содержание",null,"Обратно в содержание",null,"Обратно в содержание",null,"Обратно в содержание",null,"Обратно в содержание",null,"Обратно в содержание",null,"Обратно в содержание",null,"Обратно в содержание",null,"Обратно в содержание",null,"Обратно в содержание",null,"Обратно в содержание",null,"Обратно в содержание",null,"Обратно в содержание",null,"Обратно в содержание",null,"Обратно в содержание",null,"Обратно в содержание",null,"Обратно в содержание",null,"Обратно в содержание",null,"Обратно в содержание",null,"Обратно в содержание",null,"Обратно в содержание",null,"Обратно в содержание",null,"Обратно в содержание",null,"Обратно в содержание",null,"Обратно в содержание",null,"Обратно в содержание",null,"Обратно в содержание",null,"Обратно в содержание",null,"Обратно в содержание",null,"Обратно в содержание",null,"Обратно в содержание",null,"Обратно в содержание",null,"Обратно в содержание",null,"Обратно в содержание",null,"Обратно в содержание",null,"Обратно в содержание",null,"Обратно в содержание",null,"Обратно в содержание",null,"Обратно в содержание",null,"Обратно в содержание",null,"Обратно в содержание",null,"Обратно в содержание",null,"Обратно в содержание",null,"Обратно в содержание",null,"Обратно в содержание",null,"Обратно в содержание",null,"Обратно в содержание",null,"Обратно в содержание",null,"Обратно в содержание",null,"Обратно в содержание",null,"Обратно в содержание",null,"Обратно в содержание",null,"Обратно в содержание",null,"Обратно в содержание",null,"Обратно в содержание",null,"Обратно в содержание",null,"Обратно в содержание",null,"Обратно в содержание",null,"Обратно в содержание",null,"Обратно в содержание",null,"Обратно в содержание",null,"Обратно в содержание",null,"Обратно в содержание",null,"Обратно в содержание",null,"Обратно в содержание",null,"Обратно в содержание",null,"Обратно в содержание",null,"Обратно в содержание",null,"Обратно в содержание",null,"Обратно в содержание",null,"Обратно в содержание",null,"Обратно в содержание",null,"Обратно в содержание",null,"Обратно в содержание",null,"Обратно в содержание",null,"Обратно в содержание",null,"Обратно в содержание",null,"Обратно в содержание",null,"Обратно в содержание",null,"Обратно в содержание",null,"Обратно в содержание",null,"Обратно в содержание",null,"Обратно в содержание",null,"Обратно в содержание",null,"Обратно в содержание",null,"Обратно в содержание",null,"Обратно в содержание",null,"Обратно в содержание",null,"Обратно в содержание",null,"Обратно в содержание",null,"Обратно в содержание",null,"Обратно в содержание",null,"Обратно в содержание",null,"Обратно в содержание",null,"Обратно в содержание",null,"Обратно в содержание",null,"Обратно в содержание",null,"Обратно в содержание",null,"Обратно в содержание",null,"Обратно в содержание",null,"Обратно в содержание",null,"Обратно в содержание",null,"Обратно в содержание",null,"Обратно в содержание",null,"Обратно в содержание",null,"Обратно в содержание",null,"Обратно в содержание",null,"Обратно в содержание",null,"Обратно в содержание",null,"Обратно в содержание",null,"Обратно в содержание",null,"Обратно в содержание",null,"Обратно в содержание",null,"Обратно в содержание",null,"Обратно в содержание",null,"Обратно в содержание",null,"Обратно в содержание",null,"Обратно в содержание",null,"Обратно в содержание",null,"Обратно в содержание",null,"Обратно в содержание",null,"Обратно в содержание",null,"Обратно в содержание",null,"Обратно в содержание",null,"Обратно в содержание",null,"Обратно в содержание",null,"Обратно в содержание",null,"Обратно в содержание",null,"Обратно в содержание",null,"Обратно в содержание",null,"Обратно в содержание",null,"Обратно в содержание",null,"Обратно в содержание",null,"Обратно в содержание",null,"Обратно в содержание",null,"Обратно в содержание",null,"Обратно в содержание",null,"Обратно в содержание",null,"Обратно в содержание",null,"Обратно в содержание",null,"Обратно в содержание",null,"Обратно в содержание",null,"Обратно в содержание",null,"Обратно в содержание",null,"Обратно в содержание",null,"Обратно в содержание",null,"Обратно в содержание",null,"Обратно в содержание",null,"Обратно в содержание",null,"Обратно в содержание",null,"Обратно в содержание",null,"Обратно в содержание",null,"Обратно в содержание",null,"Обратно в содержание",null,"Обратно в содержание",null,"Обратно в содержание",null,"Обратно в содержание",null,"Обратно в содержание",null,"Обратно в содержание",null,"Обратно в содержание",null,"Обратно в содержание",null,"Обратно в содержание",null,"Обратно в содержание",null,"Обратно в содержание",null,"Обратно в содержание",null,"Обратно в содержание",null,"Обратно в содержание",null,"Обратно в содержание",null,"Обратно в содержание",null,"Обратно в содержание",null,"Обратно в содержание",null,"Обратно в содержание",null,"Обратно в содержание",null,"Обратно в содержание",null,"Обратно в содержание",null,"Обратно в содержание",null,"Обратно в содержание",null,"Обратно в содержание",null,"Обратно в содержание",null,"Обратно в содержание",null,"Обратно в содержание",null,"Обратно в содержание",null,"Обратно в содержание",null,"Обратно в содержание",null,"Обратно в содержание",null,"Обратно в содержание",null,"Обратно в содержание",null,"Обратно в содержание",null,"Обратно в содержание",null,"Обратно в содержание",null,"Обратно в содержание",null,"Обратно в содержание",null,"Обратно в содержание",null,"Обратно в содержание",null,"Обратно в содержание",null,"Обратно в содержание",null,"Обратно в содержание",null,"Обратно в содержание",null,"Обратно в содержание",null,"Обратно в содержание",null,"Обратно в содержание",null,"Обратно в содержание",null,"Обратно в содержание",null,"Обратно в содержание",null,"Обратно в содержание",null,"Обратно в содержание",null,"Обратно в содержание",null,"Обратно в содержание",null,"Обратно в содержание",null,"Обратно в содержание",null,"Обратно в содержание",null,"Обратно в содержание",null,"Обратно в содержание",null,"Обратно в содержание",null,"Обратно в содержание",null,"Обратно в содержание",null,"Обратно в содержание",null,"Обратно в содержание",null,"Обратно в содержание",null,"Обратно в содержание",null,"Обратно в содержание",null,"Обратно в содержание",null,"Обратно в содержание",null,"Обратно в содержание",null,"Обратно в содержание",null,"Обратно в содержание",null,"Обратно в содержание",null,"Обратно в содержание",null,"Обратно в содержание",null,"Обратно в содержание",null,"Обратно в содержание",null,"Обратно в содержание",null,"Обратно в содержание",null,"Обратно в содержание",null,"Обратно в содержание",null,"Обратно в содержание",null,"Обратно в содержание",null,"Обратно в содержание",null,"Обратно в содержание",null,"Обратно в содержание",null,"Обратно в содержание",null,"Обратно в содержание",null,"Обратно в содержание",null,"Обратно в содержание",null,"Обратно в содержание",null,"Обратно в содержание",null,"Обратно в содержание",null,"Обратно в содержание",null,"Обратно в содержание",null,"Обратно в содержание",null,"Обратно в содержание",null,"Обратно в содержание",null,"Обратно в содержание",null,"Обратно в содержание",null,"Обратно в содержание",null,"Обратно в содержание",null,"Обратно в содержание",null,"Обратно в содержание",null,"Обратно в содержание",null,"Обратно в содержание",null,"Обратно в содержание",null,"Обратно в содержание",null,"Обратно в содержание",null,"Обратно в содержание",null,"Обратно в содержание",null,"Обратно в содержание",null,"Обратно в содержание",null,"Обратно в содержание",null,"Обратно в содержание",null,"Обратно в содержание",null,"Обратно в содержание",null,"Обратно в содержание",null,"Обратно в содержание",null,"Обратно в содержание",null,"Обратно в содержание",null,"Обратно в содержание",null,"Обратно в содержание",null,"Обратно в содержание",null,"Обратно в содержание",null,"Обратно в содержание",null,"Обратно в содержание",null,"Обратно в содержание",null,"Обратно в содержание",null,"Обратно в содержание",null,"Обратно в содержание",null,"Обратно в содержание",null,"Обратно в содержание",null,"Обратно в содержание",null,"Обратно в содержание",null,"Обратно в содержание",null,"Обратно в содержание",null,"Обратно в содержание",null,"Обратно в содержание",null,"Обратно в содержание",null,"Обратно в содержание",null,"Обратно в содержание",null,"Обратно в содержание",null,"Обратно в содержание",null,"Обратно в содержание",null,"Обратно в содержание",null,"Обратно в содержание",null,"Обратно в содержание",null,"Обратно в содержание",null,"Обратно в содержание",null,"Обратно в содержание",null,"Обратно в содержание",null,"Обратно в содержание",null,"Обратно в содержание",null,"Обратно в содержание",null,"Обратно в содержание",null,"Обратно в содержание",null,"Обратно в содержание",null,"Обратно в содержание",null,"Обратно в содержание",null,"Обратно в содержание",null,"Обратно в содержание",null,"Обратно в содержание",null,"Обратно в содержание",null,"Обратно в содержание",null,"Обратно в содержание",null,"Обратно в содержание",null,"Обратно в содержание",null,"Обратно в содержание",null,"Обратно в содержание",null,"Обратно в содержание",null,"Обратно в содержание",null,"Обратно в содержание",null,"Обратно в содержание",null,"Обратно в содержание",null,"Обратно в содержание",null,"Обратно в содержание",null,"Обратно в содержание",null,"Обратно в содержание",null,"Обратно в содержание",null,"Обратно в содержание",null,"Обратно в содержание",null,"Обратно в содержание",null,"Обратно в содержание",null,"Обратно в содержание",null,"Обратно в содержание",null,"Обратно в содержание",null,"Обратно в содержание",null,"Обратно в содержание",null,"Обратно в содержание",null,"Обратно в содержание",null,"Обратно в содержание",null,"Обратно в содержание",null,"Обратно в содержание",null,"Обратно в содержание",null,"Обратно в содержание",null,"Обратно в содержание",null,"Обратно в содержание",null,"Обратно в содержание",null,"Обратно в содержание",null,"Обратно в содержание",null,"Обратно в содержание",null,"Обратно в содержание",null,"Обратно в содержание",null,"Обратно в содержание",null,"Обратно в содержание",null,"Обратно в содержание",null,"Обратно в содержание",null,"Обратно в содержание",null,"Обратно в содержание",null,"Обратно в содержание",null,"Обратно в содержание",null,"Обратно в содержание",null,"Обратно в содержание",null,"Обратно в содержание",null,"Обратно в содержание",null,"Обратно в содержание",null,"Обратно в содержание",null,"Обратно в содержание",null,"Обратно в содержание",null,"Обратно в содержание",null,"Обратно в содержание",null,"Обратно в содержание",null,"Обратно в содержание",null,"Обратно в содержание",null,"Обратно в содержание",null,"Обратно в содержание",null,"Обратно в содержание",null,"Обратно в содержание",null,"Обратно в содержание",null,"Обратно в содержание",null,"Обратно в содержание",null,"Обратно в содержание",null,"Обратно в содержание",null,"Обратно в содержание",null,"Обратно в содержание",null,"Обратно в содержание",null,"Обратно в содержание",null,"Обратно в содержание",null,"Обратно в содержание",null,"Обратно в содержание",null,"Обратно в содержание",null,"Обратно в содержание",null,"Обратно в содержание",null,"Обратно в содержание",null,"Обратно в содержание",null,"Обратно в содержание",null,"Обратно в содержание",null,"Обратно в содержание",null,"Обратно в содержание",null,"Обратно в содержание",null,"Обратно в содержание",null,"Обратно в содержание",null,"Обратно в содержание",null,"Обратно в содержание",null,"Обратно в содержание",null,"Обратно в содержание",null,"Обратно в содержание",null,"Обратно в содержание",null,"Обратно в содержание",null,"Обратно в содержание",null,"Обратно в содержание",null,"Обратно в содержание",null,"Обратно в содержание",null,"Обратно в содержание",null,"Обратно в содержание",null,"Обратно в содержание",null,"Обратно в содержание",null,"Обратно в содержание",null,"Обратно в содержание",null,"Обратно в содержание",null,"Обратно в содержание",null,"Обратно в содержание",null,"Обратно в содержание",null,"Обратно в содержание",null,"Обратно в содержание",null,"Обратно в содержание",null,"Обратно в содержание",null,"Обратно в содержание",null,"Обратно в содержание",null,"Обратно в содержание",null,"Обратно в содержание",null,"Обратно в содержание",null,"Обратно в содержание",null,"Обратно в содержание",null,"Обратно в содержание",null,"Обратно в содержание",null,"Обратно в содержание",null,"Обратно в содержание",null,"Обратно в содержание",null,"Обратно в содержание",null,"Обратно в содержание",null,"Обратно в содержание",null,"Обратно в содержание",null,"Обратно в содержание",null,"Обратно в содержание",null,"Обратно в содержание",null,"Обратно в содержание",null,"Обратно в содержание",null,"Обратно в содержание",null,"Обратно в содержание",null,"Обратно в содержание",null,"Обратно в содержание",null,"Обратно в содержание",null,"Обратно в содержание",null,"Обратно в содержание",null,"Обратно в содержание",null,"Обратно в содержание",null,"Обратно в содержание",null,"Обратно в содержание",null,"Обратно в содержание",null,"Обратно в содержание",null,"Обратно в содержание",null,"Обратно в содержание",null,"Обратно в содержание",null,"Обратно в содержание",null,"Обратно в содержание",null,"Обратно в содержание",null,"Обратно в содержание",null,"Обратно в содержание",null,"Обратно в содержание",null,"Обратно в содержание",null,"Обратно в содержание",null,"Обратно в содержание",null,"Обратно в содержание",null,"Обратно в содержание",null,"Обратно в содержание",null,"Обратно в содержание",null,"Обратно в содержание",null,"Обратно в содержание",null,"Обратно в содержание",null,"Обратно в содержание",null,"Обратно в содержание",null,"Обратно в содержание",null,"Обратно в содержание",null,"Обратно в содержание",null,"Обратно в содержание",null,"Обратно в содержание",null,"Обратно в содержание",null,"Обратно в содержание",null,"Обратно в содержание",null,"Обратно в содержание",null,"Обратно в содержание",null,"Обратно в содержание",null,"Обратно в содержание",null,"Обратно в содержание",null,"Обратно в содержание",null,"Обратно в содержание",null,"Обратно в содержание",null,"Обратно в содержание",null,"Обратно в содержание",null,"Обратно в содержание",null,"Обратно в содержание",null,"Обратно в содержание",null,"Обратно в содержание",null,"Обратно в содержание",null,"Обратно в содержание",null,"Обратно в содержание",null,"Обратно в содержание",null,"Обратно в содержание",null,"Обратно в содержание",null,"Обратно в содержание",null,"Обратно в содержание",null,"Обратно в содержание",null,"Обратно в содержание",null,"Обратно в содержание",null,"Обратно в содержание",null,"Обратно в содержание",null,"Обратно в содержание",null,"Обратно в содержание",null,"Обратно в содержание",null,"Обратно в содержание",null,"Обратно в содержание",null,"Обратно в содержание",null,"Обратно в содержание",null,"Обратно в содержание",null,"Обратно в содержание",null,"Обратно в содержание",null,"Обратно в содержание",null,"Обратно в содержание",null,"Обратно в содержание",null,"Обратно в содержание",null,"Обратно в содержание",null,"Обратно в содержание",null,"Обратно в содержание",null,"Обратно в содержание",null,"Обратно в содержание",null,"Обратно в содержание",null,"Обратно в содержание",null,"Обратно в содержание",null,"Обратно в содержание",null,"Обратно в содержание",null,"Обратно в содержание",null,"Обратно в содержание",null,"Обратно в содержание",null,"Обратно в содержание",null,"Обратно в содержание",null,"Обратно в содержание",null,"Обратно в содержание",null,"Обратно в содержание",null,"Обратно в содержание",null,"Обратно в содержание",null,"Обратно в содержание",null,"Обратно в содержание",null,"Обратно в содержание",null,"Обратно в содержание",null,"Обратно в содержание",null,"Обратно в содержание",null,"Обратно в содержание",null,"Обратно в содержание",null,"Обратно в содержание",null,"Обратно в содержание",null,"Обратно в содержание",null,"Обратно в содержание",null,"Обратно в содержание",null,"Обратно в содержание",null,"Обратно в содержание",null,"Обратно в содержание",null,"Обратно в содержание",null,"Обратно в содержание",null,"Обратно в содержание",null,"Обратно в содержание",null,"Обратно в содержание",null,"Обратно в содержание",null,"Обратно в содержание",null,"Обратно в содержание",null,"Обратно в содержание",null,"Обратно в содержание",null,"Обратно в содержание",null,"Обратно в содержание",null,"Обратно в содержание",null,"Обратно в содержание",null,"Обратно в содержание",null,"Обратно в содержание",null,"Обратно в содержание",null,"Обратно в содержание",null,"Обратно в содержание",null,"Обратно в содержание",null,"Обратно в содержание",null,"Обратно в содержание",null,"Обратно в содержание",null,"Обратно в содержание",null,"Обратно в содержание",null,"Обратно в содержание",null,"Обратно в содержание",null,"Обратно в содержание",null,"Обратно в содержание",null,"Обратно в содержание",null,"Обратно в содержание",null,"Обратно в содержание",null,"Обратно в содержание",null,"Обратно в содержание",null,"Обратно в содержание",null,"Обратно в содержание",null,"Обратно в содержание",null,"Обратно в содержание",null,"Обратно в содержание",null,"Обратно в содержание",null,"Обратно в содержание",null,"Обратно в содержание",null,"Обратно в содержание",null,"Обратно в содержание",null,"Обратно в содержание",null,"Обратно в содержание",null,"Обратно в содержание",null,"Обратно в содержание",null,"Обратно в содержание",null,"Обратно в содержание",null,"Обратно в содержание",null,"Обратно в содержание",null,"Обратно в содержание",null,"Обратно в содержание",null,"Обратно в содержание",null,"Обратно в содержание",null,"Обратно в содержание",null,"Обратно в содержание",null,"Обратно в содержание",null,"Обратно в содержание",null,"Обратно в содержание",null,"Обратно в содержание",null,"Обратно в содержание",null,"Обратно в содержание",null,"Обратно в содержание",null,"Обратно в содержание",null,"Обратно в содержание",null,"Обратно в содержание",null,"Обратно в содержание",null,"Обратно в содержание",null,"Обратно в содержание",null,"Обратно в содержание",null,"Обратно в содержание",null,"Обратно в содержание",null,"Обратно в содержание",null,"Обратно в содержание",null,"Обратно в содержание",null,"Обратно в содержание",null,"Обратно в содержание",null,"Обратно в содержание",null,"Обратно в содержание",null,"Обратно в содержание",null,"Обратно в содержание",null,"Обратно в содержание",null,"Обратно в содержание",null,"Обратно в содержание",null,"Обратно в содержание",null,"Обратно в содержание",null,"Обратно в содержание",null,"Обратно в содержание",null,"Обратно в содержание",null,"Обратно в содержание",null,"Обратно в содержание",null,"Обратно в содержание",null,"Обратно в содержание",null,"Обратно в содержание",null,"Обратно в содержание",null,"Обратно в содержание",null,"Обратно в содержание",null,"Обратно в содержание",null,"Обратно в содержание",null,"Обратно в содержание",null,"Обратно в содержание",null,"Обратно в содержание",null,"Обратно в содержание",null,"Обратно в содержание",null,"Обратно в содержание",null,"Обратно в содержание",null,"Обратно в содержание",null,"Обратно в содержание",null,"Обратно в содержание",null,"Обратно в содержание",null,"Обратно в содержание",null,"Обратно в содержание",null,"Обратно в содержание",null,"Обратно в содержание",null,"Обратно в содержание",null,"Обратно в содержание",null,"Обратно в содержание",null,"Обратно в содержание",null,"Обратно в содержание",null,"Обратно в содержание",null,"Обратно в содержание",null,"Обратно в содержание",null,"Обратно в содержание",null,"Обратно в содержание",null,"Обратно в содержание",null,"Обратно в содержание",null,"Обратно в содержание",null,"Обратно в содержание",null,"Обратно в содержание",null,"Обратно в содержание",null,"Обратно в содержание",null,"Обратно в содержание",null,"Обратно в содержание",null,"Обратно в содержание",null,"Обратно в содержание",null,"Обратно в содержание",null,"Обратно в содержание",null,"Обратно в содержание",null,"Обратно в содержание",null,"Обратно в содержание",null,"Обратно в содержание",null,"Обратно в содержание",null,"Обратно в содержание",null,"Обратно в содержание",null,"Обратно в содержание",null,"Обратно в содержание",null,"Обратно в содержание",null,"Обратно в содержание",null,"Обратно в содержание",null,"Обратно в содержание",null,"Обратно в содержание",null,"Обратно в содержание",null,"Обратно в содержание",null,"Обратно в содержание",null,"Обратно в содержание",null,"Обратно в содержание",null,"Обратно в содержание",null,"Обратно в содержание",null,"Обратно в содержание",null,"Обратно в содержание",null,"Обратно в содержание",null,"Обратно в содержание",null,"Обратно в содержание",null,"Обратно в содержание",null,"Обратно в содержание",null,"Обратно в содержание",null,"Обратно в содержание",null,"Обратно в содержание",null,"Обратно в содержание",null,"Обратно в содержание",null,"Обратно в содержание",null,"Обратно в содержание",null,"Обратно в содержание",null,"Обратно в содержание",null,"Обратно в содержание",null,"Обратно в содержание",null,"Обратно в содержание",null,"Обратно в содержание",null,"Обратно в содержание",null,"Обратно в содержание",null,"Обратно в содержание",null,"Обратно в содержание",null,"Обратно в содержание",null,"Обратно в содержание",null,"Обратно в содержание",null,"Обратно в содержание",null,"Обратно в содержание",null,"Обратно в содержание",null,"Обратно в содержание",null,"Обратно в содержание",null,"Обратно в содержание",null,"Обратно в содержание",null,"Обратно в содержание",null,"Обратно в содержание",null,"Обратно в содержание",null,"Обратно в содержание",null,"Обратно в содержание",null,"Обратно в содержание",null,"Обратно в содержание",null,"Обратно в содержание",null,"Обратно в содержание",null,"Обратно в содержание",null,"Обратно в содержание",null,"Обратно в содержание",null,"Обратно в содержание",null,"Обратно в содержание",null,"Обратно в содержание",null,"Обратно в содержание",null,"Обратно в содержание",null,"Обратно в содержание",null,"Обратно в содержание",null,"Обратно в содержание",null,"Обратно в содержание",null,"Обратно в содержание",null,"Обратно в содержание",null,"Обратно в содержание",null,"Обратно в содержание",null,"Обратно в содержание",null,"Обратно в содержание",null,"Обратно в содержание",null,"Обратно в содержание",null,"Обратно в содержание",null,"Обратно в содержание",null,"Обратно в содержание",null,"Обратно в содержание",null,"Обратно в содержание",null,"Обратно в содержание",null,"Обратно в содержание",null,"Обратно в содержание",null,"Обратно в содержание",null,"Обратно в содержание",null,"Обратно в содержание",null,"Обратно в содержание",null,"Обратно в содержание",null,"Обратно в содержание",null,"Обратно в содержание",null,"Обратно в содержание",null,"Обратно в содержание",null,"Обратно в содержание",null,"Обратно в содержание",null,"Обратно в содержание",null,"Обратно в содержание",null,"Обратно в содержание",null,"Обратно в содержание",null,"Обратно в содержание",null,"Обратно в содержание",null,"Обратно в содержание",null,"Обратно в содержание",null,"Обратно в содержание",null,"Обратно в содержание",null,"Обратно в содержание",null,"Обратно в содержание",null,"Обратно в содержание",null,"Обратно в содержание",null,"Обратно в содержание",null,"Обратно в содержание",null,"Обратно в содержание",null,"Обратно в содержание",null,"Обратно в содержание",null,"Обратно в содержание",null,"Обратно в содержание",null,"Обратно в содержание",null,"Обратно в содержание",null,"Обратно в содержание",null,"Обратно в содержание",null,"Обратно в содержание",null,"Обратно в содержание",null,"Обратно в содержание",null,"Обратно в содержание",null,"Обратно в содержание",null,"Обратно в содержание",null,"Обратно в содержание",null,"Обратно в содержание",null,"Обратно в содержание",null,"Обратно в содержание",null,"Обратно в содержание",null,"Обратно в содержание",null,"Обратно в содержание",null,"Обратно в содержание",null,"Обратно в содержание",null,"Обратно в содержание",null,"Обратно в содержание",null,"Обратно в содержание",null,"Обратно в содержание",null,"Обратно в содержание",null,"Обратно в содержание",null,"Обратно в содержание",null,"Обратно в содержание",null,"Обратно в содержание",null,"Обратно в содержание",null,"Обратно в содержание",null,"Обратно в содержание",null,"Обратно в содержание",null,"Обратно в содержание",null,"Обратно в содержание",null,"Обратно в содержание",null,"Обратно в содержание",null,"Обратно в содержание",null,"Обратно в содержание",null,"Обратно в содержание",null,"Обратно в содержание",null,"Обратно в содержание",null,"Обратно в содержание",null,"Обратно в содержание",null,"Обратно в содержание",null,"Обратно в содержание",null,"Обратно в содержание",null,"Обратно в содержание",null,"Обратно в содержание",null,"Обратно в содержание",null,"Обратно в содержание",null,"Обратно в содержание",null,"Обратно в содержание",null,"Обратно в содержание",null,"Обратно в содержание",null,"Обратно в содержание",null,"Обратно в содержание",null,"Обратно в содержание",null,"Обратно в содержание",null,"Обратно в содержание",null,"Обратно в содержание",null,"Обратно в содержание",null,"Обратно в содержание",null,"Обратно в содержание",null,"Обратно в содержание",null,"Обратно в содержание",null,"Обратно в содержание",null,"Обратно в содержание",null,"Обратно в содержание",null,"Обратно в содержание",null,"Обратно в содержание",null,"Обратно в содержание",null,"Обратно в содержание",null,"Обратно в содержание",null,"Обратно в содержание",null,"Обратно в содержание",null,"Обратно в содержание",null,"Обратно в содержание",null,"Обратно в содержание",null,"Обратно в содержание",null,"Обратно в содержание",null,"Обратно в содержание",null,"Обратно в содержание",null,"Обратно в содержание",null,"Обратно в содержание",null,"Обратно в содержание",null,"Обратно в содержание",null,"Обратно в содержание",null,"Обратно в содержание",null,"Обратно в содержание",null,"Обратно в содержание",null,"Обратно в содержание",null,"Обратно в содержание",null,"Обратно в содержание",null,"Обратно в содержание",null,"Обратно в содержание",null,"Обратно в содержание",null,"Обратно в содержание",null,"Обратно в содержание",null,"Обратно в содержание",null,"Обратно в содержание",null,"Обратно в содержание",null,"Обратно в содержание",null,"Обратно в содержание",null,"Обратно в содержание",null,"Обратно в содержание",null,"Обратно в содержание",null,"Обратно в содержание",null,"Обратно в содержание",null,"Обратно в содержание",null,"Обратно в содержание",null,"Обратно в содержание",null,"Обратно в содержание",null,"Обратно в содержание",null,"Обратно в содержание",null,"Обратно в содержание",null,"Обратно в содержание",null,"Обратно в содержание",null,"Обратно в содержание",null,"Обратно в содержание",null,"Обратно в содержание",null,"Обратно в содержание",null,"Обратно в содержание",null,"Обратно в содержание",null,"Обратно в содержание",null,"Обратно в содержание",null,"Обратно в содержание",null,"Обратно в содержание",null,"Обратно в содержание",null,"Обратно в содержание",null,"Обратно в содержание",null,"Обратно в содержание",null,"Обратно в содержание",null,"Обратно в содержание",null,"Обратно в содержание",null,"Обратно в содержание",null,"Обратно в содержание",null,"Обратно в содержание",null,"Обратно в содержание",null,"Обратно в содержание",null,"Обратно в содержание",null,"Обратно в содержание",null,"Обратно в содержание",null,"Обратно в содержание",null,"Обратно в содержание",null,"Обратно в содержание",null,"Обратно в содержание",null,"Обратно в содержание",null,"Обратно в содержание",null,"Обратно в содержание",null,"Обратно в содержание",null,"Обратно в содержание",null,"Обратно в содержание",null,"Обратно в содержание",null,"Обратно в содержание",null,"Обратно в содержание",null,"Обратно в содержание",null,"Обратно в содержание",null,"Обратно в содержание",null,"Обратно в содержание",null,"Обратно в содержание",null,"Обратно в содержание",null,"Обратно в содержание",null,"Обратно в содержание",null,"Обратно в содержание",null,"Обратно в содержание",null,"Обратно в содержание",null,"Обратно в содержание",null,"Обратно в содержание",null,"Обратно в содержание",null,"Обратно в содержание",null,"Обратно в содержание",null,"Обратно в содержание",null,"Обратно в содержание",null,"Обратно в содержание",null,"Обратно в содержание",null,"Обратно в содержание",null,"Обратно в содержание",null,"Обратно в содержание",null,"Обратно в содержание",null,"Обратно в содержание",null,"Обратно в содержание",null,"Обратно в содержание",null,"Обратно в содержание",null,"Обратно в содержание",null,"Обратно в содержание",null,"Обратно в содержание",null,"Обратно в содержание",null,"Обратно в содержание",null,"Обратно в содержание",null,"Обратно в содержание",null,"Обратно в содержание",null,"Обратно в содержание",null,"Обратно в содержание",null,"Обратно в содержание",null,"Обратно в содержание",null,"Обратно в содержание",null,"Обратно в содержание",null,"Обратно в содержание",null,"Обратно в содержание",null,"Обратно в содержание",null,"Обратно в содержание",null,"Обратно в содержание",null,"Обратно в содержание",null,"Обратно в содержание",null,"Обратно в содержание",null,"Обратно в содержание",null,"Обратно в содержание",null,"Обратно в содержание",null,"Обратно в содержание",null,"Обратно в содержание",null,"Обратно в содержание",null,"Обратно в содержание",null,"Обратно в содержание",null,"Обратно в содержание",null,"Обратно в содержание",null,"Обратно в содержание",null,"Обратно в содержание",null,"Обратно в содержание",null,"Обратно в содержание",null,"Обратно в содержание",null,"Обратно в содержание",null,"Обратно в содержание",null,"Обратно в содержание",null,"Обратно в содержание",null,"Обратно в содержание",null,"Обратно в содержание",null,"Обратно в содержание",null,"Обратно в содержание",null,"Обратно в содержание",null,"Обратно в содержание",null,"Обратно в содержание",null,"Обратно в содержание",null,"Обратно в содержание",null,"Обратно в содержание",null,"Обратно в содержание",null,"Обратно в содержание",null,"Обратно в содержание",null,"Обратно в содержание",null,"Обратно в содержание",null,"Обратно в содержание",null,"Обратно в содержание",null,"Обратно в содержание",null,"Обратно в содержание",null,"Обратно в содержание",null,"Обратно в содержание",null,"Обратно в содержание",null,"Обратно в содержание",null,"Обратно в содержание",null,"Обратно в содержание",null,"Обратно в содержание",null,"Обратно в содержание",null,"Обратно в содержание",null,"Обратно в содержание",null,"Обратно в содержание",null,"Обратно в содержание",null,"Обратно в содержание",null,"Обратно в содержание",null,"Обратно в содержание",null,"Обратно в содержание",null,"Обратно в содержание",null,"Обратно в содержание",null,"Обратно в содержание",null,"Обратно в содержание",null,"Обратно в содержание",null,"Обратно в содержание",null,"Обратно в содержание",null,"Обратно в содержание",null,"Обратно в содержание",null,"Обратно в содержание",null,"Обратно в содержание",null,"Обратно в содержание",null,"Обратно в содержание",null,"Обратно в содержание",null,"Обратно в содержание",null,"Обратно в содержание",null,"Обратно в содержание",null,"Обратно в содержание",null,"Обратно в содержание",null,"Обратно в содержание",null,"Обратно в содержание",null,"Обратно в содержание",null,"Обратно в содержание",null,"Обратно в содержание",null,"Обратно в содержание",null,"Обратно в содержание",null,"Обратно в содержание",null,"Обратно в содержание",null,"Обратно в содержание",null,"Обратно в содержание",null,"Обратно в содержание",null,"Обратно в содержание",null,"Обратно в содержание",null,"Обратно в содержание",null,"Обратно в содержание",null,"Обратно в содержание",null,"Обратно в содержание",null,"Обратно в содержание",null,"Обратно в содержание",null,"Обратно в содержание",null,"Обратно в содержание",null,"Обратно в содержание",null,"Обратно в содержание",null,"Обратно в содержание",null,"Обратно в содержание",null,"Обратно в содержание",null,"Обратно в содержание",null,"Обратно в содержание",null,"Обратно в содержание",null,"Обратно в содержание",null,"Обратно в содержание",null,"Обратно в содержание",null,"Обратно в содержание",null,"Обратно в содержание",null,"Обратно в содержание",null,"Обратно в содержание",null,"Обратно в содержание",null,"Обратно в содержание",null,"Обратно в содержание",null,"Обратно в содержание",null,"Обратно в содержание",null,"Обратно в содержание",null,"Обратно в содержание",null,"Обратно в содержание",null,"Обратно в содержание",null,"Обратно в содержание",null,"Обратно в содержание",null,"Обратно в содержание",null,"Обратно в содержание",null,"Обратно в содержание",null,"Обратно в содержание",null,"Обратно в содержание",null,"Обратно в содержание",null,"Обратно в содержание",null,"Обратно в содержание",null,"Обратно в содержание",null,"Обратно в содержание",null,"Обратно в содержание",null,"Обратно в содержание",null,"Обратно в содержание",null,"Обратно в содержание",null,"Обратно в содержание",null,"Обратно в содержание",null,"Обратно в содержание",null,"Обратно в содержание",null,"Обратно в содержание",null,"Обратно в содержание",null,"Обратно в содержание",null,"Обратно в содержание",null,"Обратно в содержание",null,"Обратно в содержание",null,"Обратно в содержание",null,"Обратно в содержание",null,"Обратно в содержание",null,"Обратно в содержание",null,"Обратно в содержание",null,"Обратно в содержание",null,"Обратно в содержание",null,"Обратно в содержание",null,"Обратно в содержание",null,"Обратно в содержание",null,"Обратно в содержание",null,"Обратно в содержание",null,"Обратно в содержание",null,"Обратно в содержание",null,"Обратно в содержание",null,"Обратно в содержание",null,"Обратно в содержание",null,"Обратно в содержание",null,"Обратно в содержание",null,"Обратно в содержание",null,"Обратно в содержание",null,"Обратно в содержание",null,"Обратно в содержание",null,"Обратно в содержание",null,"Обратно в содержание",null,"Обратно в содержание",null,"Обратно в содержание",null,"Обратно в содержание",null,"Обратно в содержание",null,"Обратно в содержание",null,"Обратно в содержание",null,"Обратно в содержание",null,"Обратно в содержание",null,"Обратно в содержание",null,"Обратно в содержание",null,"Обратно в содержание",null,"Обратно в содержание",null,"Обратно в содержание",null,"Обратно в содержание",null,"Обратно в содержание",null,"Обратно в содержание",null,"Обратно в содержание",null,"Обратно в содержание",null,"Обратно в содержание",null,"Обратно в содержание",null,"Обратно в содержание",null,"Обратно в содержание",null,"Обратно в содержание",null,"Обратно в содержание",null,"Обратно в содержание",null,"Обратно в содержание",null,"Обратно в содержание",null,"Обратно в содержание",null,"Обратно в содержание",null,"Обратно в содержание",null,"Обратно в содержание",null,"Обратно в содержание",null,"Обратно в содержание",null,"Обратно в содержание",null,"Обратно в содержание",null,"Обратно в содержание",null,"Обратно в содержание",null,"Обратно в содержание",null,"Обратно в содержание",null,"Обратно в содержание",null,"Обратно в содержание",null,"Обратно в содержание",null,"Обратно в содержание",null,"Обратно в содержание",null,"Обратно в содержание",null,"Обратно в содержание",null,"Обратно в содержание",null,"Обратно в содержание",null,"Обратно в содержание",null,"Обратно в содержание",null,"Обратно в содержание",null,"Обратно в содержание",null,"Обратно в содержание",null,"Обратно в содержание",null,"Обратно в содержание",null,"Обратно в содержание",null,"Обратно в содержание",null,"Обратно в содержание",null,"Обратно в содержание",null,"Обратно в содержание",null,"Обратно в содержание",null,"Обратно в содержание",null,"Обратно в содержание",null,"Обратно в содержание",null,"Обратно в содержание",null,"Обратно в содержание",null,"Обратно в содержание",null,"Обратно в содержание",null,"Обратно в содержание",null,"Обратно в содержание",null,"Обратно в содержание",null,"Обратно в содержание",null,"Обратно в содержание",null,"Обратно в содержание",null,"Обратно в содержание",null,"Обратно в содержание",null,"Обратно в содержание",null,"Обратно в содержание",null,"Обратно в содержание",null,"Обратно в содержание",null,"Обратно в содержание",null,"Обратно в содержание",null,"Обратно в содержание",null,"Обратно в содержание",null,"Обратно в содержание",null,"Обратно в содержание",null,"Обратно в содержание",null,"Обратно в содержание",null,"Обратно в содержание",null,"Обратно в содержание",null,"Обратно в содержание",null,"Обратно в содержание",null,"Обратно в содержание",null,"Обратно в содержание",null,"Обратно в содержание",null,"Обратно в содержание",null,"Обратно в содержание",null,"Обратно в содержание",null,"Обратно в содержание",null,"Обратно в содержание",null,"Обратно в содержание",null,"Обратно в содержание",null,"Обратно в содержание",null,"Обратно в содержание",null,"Обратно в содержание",null,"Обратно в содержание",null,"Обратно в содержание",null,"Обратно в содержание",null,"Обратно в содержание",null,"Обратно в содержание",null,"Обратно в содержание",null,"Обратно в содержание",null,"Обратно в содержание",null,"Обратно в содержание",null,"Обратно в содержание",null,"Обратно в содержание",null,"Обратно в содержание",null,"Обратно в содержание",null,"Обратно в содержание",null,"Обратно в содержание",null,"Обратно в содержание",null,"Обратно в содержание",null,"Обратно в содержание",null,"Обратно в содержание",null,"Обратно в содержание",null,"Обратно в содержание",null,"Обратно в содержание",null,"Обратно в содержание",null,"Обратно в содержание",null,"Обратно в содержание",null,"Обратно в содержание",null,"Обратно в содержание",null,"Обратно в содержание",null,"Обратно в содержание",null,"Обратно в содержание",null,"Обратно в содержание",null,"Обратно в содержание",null,"Обратно в содержание",null,"Обратно в содержание",null,"Обратно в содержание",null,"Обратно в содержание",null,"Обратно в содержание",null,"Обратно в содержание",null,"Обратно в содержание",null,"Обратно в содержание",null,"Обратно в содержание",null,"Обратно в содержание",null,"Обратно в содержание",null,"Обратно в содержание",null,"Обратно в содержание",null,"Обратно в содержание",null,"Обратно в содержание",null,"Обратно в содержание",null,"Обратно в содержание",null,"Обратно в содержание",null,"Обратно в содержание",null,"Обратно в содержание",null,"Обратно в содержание",null,"Обратно в содержание",null,"Обратно в содержание",null,"Обратно в содержание",null,"Обратно в содержание",null,"Обратно в содержание",null,"Обратно в содержание",null,"Обратно в содержание",null,"Обратно в содержание",null,"Обратно в содержание",null,"Обратно в содержание",null,"Обратно в содержание",null,"Обратно в содержание",null,"Обратно в содержание",null,"Обратно в содержание",null,"Обратно в содержание",null,"Обратно в содержание",null,"Обратно в содержание",null,"Обратно в содержание",null,"Обратно в содержание",null,"Обратно в содержание",null,"Обратно в содержание",null,"Обратно в содержание",null,"Обратно в содержание",null,"Обратно в содержание",null,"Обратно в содержание",null,"Обратно в содержание",null,"Обратно в содержание",null,"Обратно в содержание",null,"Обратно в содержание",null,"Обратно в содержание",null,"Обратно в содержание",null,"Обратно в содержание",null,"Обратно в содержание",null,"Обратно в содержание",null,"Обратно в содержание",null,"Обратно в содержание",null,"Обратно в содержание",null,"Обратно в содержание",null,"Обратно в содержание",null,"Обратно в содержание",null,"Обратно в содержание",null,"Обратно в содержание",null,"Обратно в содержание",null,"Обратно в содержание",null,"Обратно в содержание",null,"Обратно в содержание",null,"Обратно в содержание",null,"Обратно в содержание",null,"Обратно в содержание",null,"Обратно в содержание",null,"Обратно в содержание",null,"Обратно в содержание",null,"Обратно в содержание",null,"Обратно в содержание",null,"Обратно в содержание",null,"Обратно в содержание",null,"Обратно в содержание",null,"Обратно в содержание",null,"Обратно в содержание",null,"Обратно в содержание",null,"Обратно в содержание",null,"Обратно в содержание",null,"Обратно в содержание",null,"Обратно в содержание",null,"Обратно в содержание",null,"Обратно в содержание",null,"Обратно в содержание",null,"Обратно в содержание",null,"Обратно в содержание",null,"Обратно в содержание",null,"Обратно в содержание",null,"Обратно в содержание",null,"Обратно в содержание",null,"Обратно в содержание",null,"Обратно в содержание",null,"Обратно в содержание",null,"Обратно в содержание",null,"Обратно в содержание",null,"Обратно в содержание",null,"Обратно в содержание",null,"Обратно в содержание",null,"Обратно в содержание",null,"Обратно в содержание",null,"Обратно в содержание",null,"Обратно в содержание",null,"Обратно в содержание",null,"Обратно в содержание",null,"Обратно в содержание",null,"Обратно в содержание",null,"Обратно в содержание",null,"Обратно в содержание",null,"Обратно в содержание",null,"Обратно в содержание",null,"Обратно в содержание",null,"Обратно в содержание",null,"Обратно в содержание",null,"Обратно в содержание",null,"Обратно в содержание",null,"Обратно в содержание",null,"Обратно в содержание",null,"Обратно в содержание",null,"Обратно в содержание",null,"Обратно в содержание",null,"Обратно в содержание",null,"Обратно в содержание",null,"Обратно в содержание",null,"Обратно в содержание",null,"Обратно в содержание",null,"Обратно в содержание",null,"Обратно в содержание",null,"Обратно в содержание",null,"Обратно в содержание",null,"Обратно в содержание",null,"Обратно в содержание",null,"Обратно в содержание",null,"Обратно в содержание",null,"Обратно в содержание",null,"Обратно в содержание",null,"Обратно в содержание",null,"Обратно в содержание",null,"Обратно в содержание",null,"Обратно в содержание",null,"Обратно в содержание",null,"Обратно в содержание",null,"Обратно в содержание",null,"Обратно в содержание",null,"Обратно в содержание",null,"Обратно в содержание",null,"Обратно в содержание",null,"Обратно в содержание",null,"Обратно в содержание",null,"Обратно в содержание",null,"Обратно в содержание",null,"Обратно в содержание",null,"Обратно в содержание",null,"Обратно в содержание",null,"Обратно в содержание",null,"Обратно в содержание",null,"Обратно в содержание",null,"Обратно в содержание",null,"Обратно в содержание",null,"Обратно в содержание",null,"Обратно в содержание",null,"Обратно в содержание",null,"Обратно в содержание",null,"Обратно в содержание",null,"Обратно в содержание",null,"Обратно в содержание",null,"Обратно в содержание",null,"Обратно в содержание",null,"Обратно в содержание",null,"Обратно в содержание",null,"Обратно в содержание",null,"Обратно в содержание",null,"Обратно в содержание",null,"Обратно в содержание",null,"Обратно в содержание",null,"Обратно в содержание",null,"Обратно в содержание",null,"Обратно в содержание",null,"Обратно в содержание",null,"Обратно в содержание",null,"Обратно в содержание",null,"Обратно в содержание",null,"Обратно в содержание",null,"Обратно в содержание",null,"Обратно в содержание",null,"Обратно в содержание",null,"Обратно в содержание",null,"Обратно в содержание",null,"Обратно в содержание",null,"Обратно в содержание",null,"Обратно в содержание",null,"Обратно в содержание",null,"Обратно в содержание",null,"Обратно в содержание",null,"Обратно в содержание",null,"Обратно в содержание",null,"Обратно в содержание",null,"Обратно в содержание",null,"Обратно в содержание",null,"Обратно в содержание",null,"Обратно в содержание",null,"Обратно в содержание",null,"Обратно в содержание",null,"Обратно в содержание",null,"Обратно в содержание",null,"Обратно в содержание",null,"Обратно в содержание",null,"Обратно в содержание",null,"Обратно в содержание",null,"Обратно в содержание",null,"Обратно в содержание",null,"Обратно в содержание",null,"Обратно в содержание",null,"Обратно в содержание",null,"Обратно в содержание",null,"Обратно в содержание",null,"Обратно в содержание",null,"Обратно в содержание",null,"Обратно в содержание",null,"Обратно в содержание",null,"Обратно в содержание",null,"Обратно в содержание",null,"Обратно в содержание",null,"Обратно в содержание",null,"Обратно в содержание",null,"Обратно в содержание",null,"Обратно в содержание",null,"Обратно в содержание",null,"Обратно в содержание",null,"Обратно в содержание",null,"Обратно в содержание",null,"Обратно в содержание",null,"Обратно в содержание",null,"Обратно в содержание",null,"Обратно в содержание",null,"Обратно в содержание",null,"Обратно в содержание",null,"Обратно в содержание",null,"Обратно в содержание",null,"Обратно в содержание",null,"Обратно в содержание",null,"Обратно в содержание",null,"Обратно в содержание",null,"Обратно в содержание",null,"Обратно в содержание",null,"Обратно в содержание",null,"Обратно в содержание",null,"Обратно в содержание",null,"Обратно в содержание",null,"Обратно в содержание",null,"Обратно в содержание",null,"Обратно в содержание",null,"Обратно в содержание",null,"Обратно в содержание",null,"Обратно в содержание",null,"Обратно в содержание",null,"Обратно в содержание",null,"Обратно в содержание",null,"Обратно в содержание",null,"Обратно в содержание",null,"Обратно в содержание",null,"Обратно в содержание",null,"Обратно в содержание",null,"Обратно в содержание",null,"Обратно в содержание",null,"Обратно в содержание",null,"Обратно в содержание",null,"Обратно в содержание",null,"Обратно в содержание",null,"Обратно в содержание",null,"Обратно в содержание",null,"Обратно в содержание",null,"Обратно в содержание",null,"Обратно в содержание",null,"Обратно в содержание",null,"Обратно в содержание",null,"Обратно в содержание",null,"Обратно в содержание",null,"Обратно в содержание",null,"Обратно в содержание",null,"Обратно в содержание",null,"Обратно в содержание",null,"Обратно в содержание",null,"Обратно в содержание",null,"Обратно в содержание",null,"Обратно в содержание",null,"Обратно в содержание",null,"Обратно в содержание",null,"Обратно в содержание",null,"Обратно в содержание",null,"Обратно в содержание",null,"Обратно в содержание",null,"Обратно в содержание",null,"Обратно в содержание",null,"Обратно в содержание",null,"Обратно в содержание",null,"Обратно в содержание",null,"Обратно в содержание",null,"Обратно в содержание",null,"Обратно в содержание",null,"Обратно в содержание",null,"Обратно в содержание",null,"Обратно в содержание",null,"Обратно в содержание",null,"Обратно в содержание",null,"Обратно в содержание",null,"Обратно в содержание",null,"Обратно в содержание",null,"Обратно в содержание",null,"Обратно в содержание",null,"Обратно в содержание",null,"Обратно в содержание",null,"Обратно в содержание",null,"Обратно в содержание",null,"Обратно в содержание",null,"Обратно в содержание",null,"Обратно в содержание",null,"Обратно в содержание",null,"Обратно в содержание",null,"Обратно в содержание",null,"Обратно в содержание",null,"Обратно в содержание",null,"Обратно в содержание",null,"Обратно в содержание",null,"Обратно в содержание",null,"Обратно в содержание",null,"Обратно в содержание",null,"Обратно в содержание",null,"Обратно в содержание",null,"Обратно в содержание",null,"Обратно в содержание",null,"Обратно в содержание",null,"Обратно в содержание",null,"Обратно в содержание",null,"Обратно в содержание",null,"Обратно в содержание",null,"Обратно в содержание",null,"Обратно в содержание",null,"Обратно в содержание",null,"Обратно в содержание",null,"Обратно в содержание",null,"Обратно в содержание",null,"Обратно в содержание",null,"Обратно в содержание",null,"Обратно в содержание",null,"Обратно в содержание",null,"Обратно в содержание",null,"Обратно в содержание",null,"Обратно в содержание",null,"Обратно в содержание",null,"Обратно в содержание",null,"Обратно в содержание",null,"Обратно в содержание",null,"Обратно в содержание",null,"Обратно в содержание",null,"Обратно в содержание",null,"Обратно в содержание",null,"Обратно в содержание",null,"Обратно в содержание",null,"Обратно в содержание",null,"Обратно в содержание",null,"Обратно в содержание",null,"Обратно в содержание",null,"Обратно в содержание",null,"Обратно в содержание",null,"Обратно в содержание",null,"Обратно в содержание",null,"Обратно в содержание",null,"Обратно в содержание",null,"Обратно в содержание",null,"Обратно в содержание",null,"Обратно в содержание",null,"Обратно в содержание",null,"Обратно в содержание",null,"Обратно в содержание",null,"Обратно в содержание",null,"Обратно в содержание",null,"Обратно в содержание",null,"Обратно в содержание",null,"Обратно в содержание",null,"Обратно в содержание",null,"Обратно в содержание",null,"Обратно в содержание",null,"Обратно в содержание",null,"Обратно в содержание",null,"Обратно в содержание",null,"Обратно в содержание",null,"Обратно в содержание",null,"Обратно в содержание",null,"Обратно в содержание",null,"Обратно в содержание",null,"Обратно в содержание",null,"Обратно в содержание",null,"Обратно в содержание",null,"Обратно в содержание",null,"Обратно в содержание",null,"Обратно в содержание",null,"Обратно в содержание",null,"Обратно в содержание",null,"Обратно в содержание",null,"Обратно в содержание",null,"Обратно в содержание",null,"Обратно в содержание",null,"Обратно в содержание",null,"Обратно в содержание",null,"Обратно в содержание",null,"Обратно в содержание",null,"Обратно в содержание",null,"Обратно в содержание",null,"Обратно в содержание",null,"Обратно в содержание",null,"Обратно в содержание",null,"Обратно в содержание",null,"Обратно в содержание",null,"Обратно в содержание",null,"Обратно в содержание",null,"Обратно в содержание",null,"Обратно в содержание",null,"Обратно в содержание",null,"Обратно в содержание",null,"Обратно в содержание",null,"Обратно в содержание",null,"Обратно в содержание",null,"Обратно в содержание",null,"Обратно в содержание",null,"Обратно в содержание",null,"Обратно в содержание",null,"Обратно в содержание",null,"Обратно в содержание",null,"Обратно в содержание",null,"Обратно в содержание",null,"Обратно в содержание",null,"Обратно в содержание",null,"Обратно в содержание",null,"Обратно в содержание",null,"Обратно в содержание",null,"Обратно в содержание",null,"Обратно в содержание",null,"Обратно в содержание",null,"Обратно в содержание",null,"Обратно в содержание",null,"Обратно в содержание",null,"Обратно в содержание",null,"Обратно в содержание",null,"Обратно в содержание",null,"Обратно в содержание",null,"Обратно в содержание",null,"Обратно в содержание",null,"Обратно в содержание",null,"Обратно в содержание",null,"Обратно в содержание",null,"Обратно в содержание",null,"Обратно в содержание",null,"Обратно в содержание",null,"Обратно в содержание",null,"Обратно в содержание",null,"Обратно в содержание",null,"Обратно в содержание",null,"Обратно в содержание",null,"Обратно в содержание",null,"Обратно в содержание",null,"Обратно в содержание",null,"Обратно в содержание",null,"Обратно в содержание",null,"Обратно в содержание",null,"Обратно в содержание",null,"Обратно в содержание",null,"Обратно в содержание",null,"Обратно в содержание",null,"Обратно в содержание",null,"Обратно в содержание",null,"Обратно в содержание",null,"Обратно в содержание",null,"Обратно в содержание",null,"Обратно в содержание",null,"Обратно в содержание",null,"Обратно в содержание",null,"Обратно в содержание",null,"Обратно в содержание",null,"Обратно в содержание",null,"Обратно в содержание",null,"Обратно в содержание",null,"Обратно в содержание",null,"Обратно в содержание",null,"Обратно в содержание",null,"Обратно в содержание",null,"Обратно в содержание",null,"Обратно в содержание",null,"Обратно в содержание",null,"Обратно в содержание",null,"Обратно в содержание",null,"Обратно в содержание",null,"Обратно в содержание",null,"Обратно в содержание",null,"Обратно в содержание",null,"Обратно в содержание",null,"Обратно в содержание",null,"Обратно в содержание",null,"Обратно в содержание",null,"Обратно в содержание",null,"Обратно в содержание",null,"Обратно в содержание",null,"Обратно в содержание",null,"Обратно в содержание",null,"Обратно в содержание",null,"Обратно в содержание",null,"Обратно в содержание",null,"Обратно в содержание",null,"Обратно в содержание",null,"Обратно в содержание",null,"Обратно в содержание",null,"Обратно в содержание",null,"Обратно в содержание",null,"Обратно в содержание",null,"Обратно в содержание",null,"Обратно в содержание",null,"Обратно в содержание",null,"Обратно в содержание",null,"Обратно в содержание",null,"Обратно в содержание",null,"Обратно в содержание",null,"Обратно в содержание",null,"Обратно в содержание",null,"Обратно в содержание",null,"Обратно в содержание",null,"Обратно в содержание",null,"Обратно в содержание",null,"Обратно в содержание",null,"Обратно в содержание",null,"Обратно в содержание",null,"Обратно в содержание",null,"Обратно в содержание",null,"Обратно в содержание",null,"Обратно в содержание",null,"Обратно в содержание",null,"Обратно в содержание",null,"Обратно в содержание",null,"Обратно в содержание",null,"Обратно в содержание",null,"Обратно в содержание",null,"Обратно в содержание",null,"Обратно в содержание",null,"Обратно в содержание",null,"Обратно в содержание",null,"Обратно в содержание",null,"Обратно в содержание",null,"Обратно в содержание",null,"Обратно в содержание",null,"Обратно в содержание",null,"Обратно в содержание",null,"Обратно в содержание",null,"Обратно в содержание",null,"Обратно в содержание",null,"Обратно в содержание",null,"Обратно в содержание",null,"Обратно в содержание",null,"Обратно в содержание",null,"Обратно в содержание",null,"Обратно в содержание",null,"Обратно в содержание",null,"Обратно в содержание",null,"Обратно в содержание",null,"Обратно в содержание",null,"Обратно в содержание",null,"Обратно в содержание",null,"Обратно в содержание",null,"Обратно в содержание",null,"Обратно в содержание",null,"Обратно в содержание",null,"Обратно в содержание",null,"Обратно в содержание",null,"Обратно в содержание",null,"Обратно в содержание",null,"Обратно в содержание",null,"Обратно в содержание",null,"Обратно в содержание",null,"Обратно в содержание",null,"Обратно в содержание",null,"Обратно в содержание",null,"Обратно в содержание",null,"Обратно в содержание",null,"Обратно в содержание",null,"Обратно в содержание",null,"Обратно в содержание",null,"Обратно в содержание",null,"Обратно в содержание",null,"Обратно в содержание",null,"Обратно в содержание",null,"Обратно в содержание",null,"Обратно в содержание",null,"Обратно в содержание",null,"Обратно в содержание",null,"Обратно в содержание",null,"Обратно в содержание",null,"Обратно в содержание",null,"Обратно в содержание",null,"Обратно в содержание",null,"Обратно в содержание",null,"Обратно в содержание",null,"Обратно в содержание",null,"Обратно в содержание",null,"Обратно в содержание",null,"Обратно в содержание",null,"Обратно в содержание",null,"Обратно в содержание",null,"Обратно в содержание",null,"Обратно в содержание",null,"Обратно в содержание",null,"Обратно в содержание",null,"Обратно в содержание",null,"Обратно в содержание",null,"Обратно в содержание",null,"Обратно в содержание",null,"Обратно в содержание",null,"Обратно в содержание",null,"Обратно в содержание",null,"Обратно в содержание",null,"Обратно в содержание",null,"Обратно в содержание",null,"Обратно в содержание",null,"Обратно в содержание",null,"Обратно в содержание",null,"Обратно в содержание",null,"Обратно в содержание",null,"Обратно в содержание",null,"Обратно в содержание",null,"Обратно в содержание",null,"Обратно в содержание",null,"Обратно в содержание",null,"Обратно в содержание",null,"Обратно в содержание",null,"Обратно в содержание",null,"Обратно в содержание",null,"Обратно в содержание",null,"Обратно в содержание",null,"Обратно в содержание",null,"Обратно в содержание",null,"Обратно в содержание",null,"Обратно в содержание",null,"Обратно в содержание",null,"Обратно в содержание",null,"Обратно в содержание",null,"Обратно в содержание",null,"Обратно в содержание",null,"Обратно в содержание",null,"Обратно в содержание",null,"Обратно в содержание",null,"Обратно в содержание",null,"Обратно в содержание",null,"Обратно в содержание",null,"Обратно в содержание",null,"Обратно в содержание",null,"Обратно в содержание",null,"Обратно в содержание",null,"Обратно в содержание",null,"Обратно в содержание",null,"Обратно в содержание",null,"Обратно в содержание",null,"Обратно в содержание",null,"Обратно в содержание",null,"Обратно в содержание",null,"Обратно в содержание",null,"Обратно в содержание",null,"Обратно в содержание",null,"Обратно в содержание",null,"Обратно в содержание",null,"Обратно в содержание",null,"Обратно в содержание",null,"Обратно в содержание",null,"Обратно в содержание",null,"Обратно в содержание",null,"Обратно в содержание",null,"Обратно в содержание",null,"Обратно в содержание",null,"Обратно в содержание",null,"Обратно в содержание",null,"Обратно в содержание",null,"Обратно в содержание",null,"Обратно в содержание",null,"Обратно в содержание",null,"Обратно в содержание",null,"Обратно в содержание",null,"Обратно в содержание",null,"Обратно в содержание",null,"Обратно в содержание",null,"Обратно в содержание",null,"Обратно в содержание",null,"Обратно в содержание",null,"Обратно в содержание",null,"Обратно в содержание",null,"Обратно в содержание",null,"Обратно в содержание",null,"Обратно в содержание",null,"Обратно в содержание",null,"Обратно в содержание",null,"Обратно в содержание",null,"Обратно в содержание",null,"Обратно в содержание",null,"Обратно в содержание",null,"Обратно в содержание",null,"Обратно в содержание",null,"Обратно в содержание",null,"Обратно в содержание",null,"Обратно в содержание",null,"Обратно в содержание",null,"Обратно в содержание",null,"Обратно в содержание",null,"Обратно в содержание",null,"Обратно в содержание",null,"Обратно в содержание",null,"Обратно в содержание",null,"Обратно в содержание",null,"Обратно в содержание",null,"Обратно в содержание",null,"Обратно в содержание",null,"Обратно в содержание",null,"Обратно в содержание",null,"Обратно в содержание",null,"Обратно в содержание",null,"Обратно в содержание",null,"Обратно в содержание",null,"Обратно в содержание",null,"Обратно в содержание",null,"Обратно в содержание",null,"Обратно в содержание",null,"Обратно в содержание",null,"Обратно в содержание",null,"Обратно в содержание",null,"Обратно в содержание",null,"Обратно в содержание",null,"Обратно в содержание",null,"Обратно в содержание",null,"Обратно в содержание",null,"Обратно в содержание",null,"Обратно в содержание",null,"Обратно в содержание",null,"Обратно в содержание",null,"Обратно в содержание",null,"Обратно в содержание",null,"Обратно в содержание",null,"Обратно в содержание",null,"Обратно в содержание",null,"Обратно в содержание",null,"Обратно в содержание",null,"Обратно в содержание",null,"Обратно в содержание",null,"Обратно в содержание",null,"Обратно в содержание",null,"Обратно в содержание",null,"Обратно в содержание",null,"Обратно в содержание",null,"Обратно в содержание",null,"Обратно в содержание",null,"Обратно в содержание",null,"Обратно в содержание",null,"Обратно в содержание",null,"Обратно в содержание",null,"Обратно в содержание",null,"Обратно в содержание",null,"Обратно в содержание",null,"Обратно в содержание",null,"Обратно в содержание",null,"Обратно в содержание",null,"Обратно в содержание",null,"Обратно в содержание",null,"Обратно в содержание",null,"Обратно в содержание",null,"Обратно в содержание",null,"Обратно в содержание",null,"Обратно в содержание",null,"Обратно в содержание",null,"Обратно в содержание",null,"Обратно в содержание",null,"Обратно в содержание",null,"Обратно в содержание",null,"Обратно в содержание",null,"Обратно в содержание",null,"Обратно в содержание",null,"Обратно в содержание",null,"Обратно в содержание",null,"Обратно в содержание",null,"Обратно в содержание",null,"Обратно в содержание",null,"Обратно в содержание",null,"Обратно в содержание",null,"Обратно в содержание",null,"Обратно в содержание",null,"Обратно в содержание",null,"Обратно в содержание",null,"Обратно в содержание",null,"Обратно в содержание",null,"Обратно в содержание",null,"Обратно в содержание",null,"Обратно в содержание",null,"Обратно в содержание",null,"Обратно в содержание",null,"Обратно в содержание",null,"Обратно в содержание",null,"Обратно в содержание",null,"Обратно в содержание",null,"Обратно в содержание",null,"Обратно в содержание",null,"Обратно в содержание",null,"Обратно в содержание",null,"Обратно в содержание",null,"Обратно в содержание",null,"Обратно в содержание",null,"Обратно в содержание",null,"Обратно в содержание",null,"Обратно в содержание",null,"Обратно в содержание",null,"Обратно в содержание",null,"Обратно в содержание",null,"Обратно в содержание",null,"Обратно в содержание",null,"Обратно в содержание",null,"Обратно в содержание",null,"Обратно в содержание",null,"Обратно в содержание",null,"Обратно в содержание",null,"Обратно в содержание",null,"Обратно в содержание",null,"Обратно в содержание",null,"Обратно в содержание",null,"Обратно в содержание",null,"Обратно в содержание",null,"Обратно в содержание",null,"Обратно в содержание",null,"Обратно в содержание",null,"Обратно в содержание",null,"Обратно в содержание",null,"Обратно в содержание",null,"Обратно в содержание",null,"Обратно в содержание",null,"Обратно в содержание",null,"Обратно в содержание",null,"Обратно в содержание",null,"Обратно в содержание",null,"Обратно в содержание",null,"Обратно в содержание",null,"Обратно в содержание",null,"Обратно в содержание",null,"Обратно в содержание",null,"Обратно в содержание",null,"Обратно в содержание",null,"Обратно в содержание",null,"Обратно в содержание",null,"Обратно в содержание",null,"Обратно в содержание",null,"Обратно в содержание",null,"Обратно в содержание",null,"Обратно в содержание",null,"Обратно в содержание",null,"Обратно в содержание",null,"Обратно в содержание",null,"Обратно в содержание",null,"Обратно в содержание",null,"Обратно в содержание",null,"Обратно в содержание",null,"Обратно в содержание",null,"Обратно в содержание",null,"Обратно в содержание",null,"Обратно в содержание",null,"Обратно в содержание",null,"Обратно в содержание",null,"Обратно в содержание",null,"Обратно в содержание",null,"Обратно в содержание",null,"Обратно в содержание",null,"Обратно в содержание",null,"Обратно в содержание",null,"Обратно в содержание",null,"Обратно в содержание",null,"Обратно в содержание",null,"Обратно в содержание",null,"Обратно в содержание",null,"Обратно в содержание",null,"Обратно в содержание",null,"Обратно в содержание",null,"Обратно в содержание",null,"Обратно в содержание",null,"Обратно в содержание",null,"Обратно в содержание",null,"Обратно в содержание",null,"Обратно в содержание",null,"Обратно в содержание",null,"Обратно в содержание",null,"Обратно в содержание",null,"Обратно в содержание",null,"Обратно в содержание",null,"Обратно в содержание",null,"Обратно в содержание",null,"Обратно в содержание",null,"Обратно в содержание",null,"Обратно в содержание",null,"Обратно в содержание",null,"Обратно в содержание",null,"Обратно в содержание",null,"Обратно в содержание",null,"Обратно в содержание",null,"Обратно в содержание",null,"Обратно в содержание",null,"Обратно в содержание",null,"Обратно в содержание",null,"Обратно в содержание",null,"Обратно в содержание",null,"Обратно в содержание",null,"Обратно в содержание",null,"Обратно в содержание",null,"Обратно в содержание",null,"Обратно в содержание",null,"Обратно в содержание",null,"Обратно в содержание",null,"Обратно в содержание",null,"Обратно в содержание",null,"Обратно в содержание",null,"Обратно в содержание",null,"Обратно в содержание",null,"Обратно в содержание",null,"Обратно в содержание",null,"Обратно в содержание",null,"Обратно в содержание",null,"Обратно в содержание",null,"Обратно в содержание",null,"Обратно в содержание",null,"Обратно в содержание",null,"Обратно в содержание",null,"Обратно в содержание",null,"Обратно в содержание",null,"Обратно в содержание",null,"Обратно в содержание",null,"Обратно в содержание",null,"Обратно в содержание",null,"Обратно в содержание",null,"Обратно в содержание",null,"Обратно в содержание",null,"Обратно в содержание",null,"Обратно в содержание",null,"Обратно в содержание",null,"Обратно в содержание",null,"Обратно в содержание",null,"Обратно в содержание",null,"Обратно в содержание",null,"Обратно в содержание",null,"Обратно в содержание",null,"Обратно в содержание",null,"Обратно в содержание",null,"Обратно в содержание",null,"Обратно в содержание",null,"Обратно в содержание",null,"Обратно в содержание",null,"Обратно в содержание",null,"Обратно в содержание",null,"Обратно в содержание",null,"Обратно в содержание",null,"Обратно в содержание",null,"Обратно в содержание",null,"Обратно в содержание",null,"Обратно в содержание",null,"Обратно в содержание",null,"Обратно в содержание",null,"Обратно в содержание",null,"Обратно в содержание",null,"Обратно в содержание",null,"Обратно в содержание",null,"Обратно в содержание",null,"Обратно в содержание",null,"Обратно в содержание",null,"Обратно в содержание",null,"Обратно в содержание",null,"Обратно в содержание",null,"Обратно в содержание",null,"Обратно в содержание",null,"Обратно в содержание",null,"Обратно в содержание",null,"Обратно в содержание",null,"Обратно в содержание",null,"Обратно в содержание",null,"Обратно в содержание",null,"Обратно в содержание",null,"Обратно в содержание",null,"Обратно в содержание",null,"Обратно в содержание",null,"Обратно в содержание",null,"Обратно в содержание",null,"Обратно в содержание",null,"Обратно в содержание",null,"Обратно в содержание",null,"Обратно в содержание",null,"Обратно в содержание",null,"Обратно в содержание",null,"Обратно в содержание",null,"Обратно в содержание",null,"Обратно в содержание",null,"Обратно в содержание",null,"Обратно в содержание",null,"Обратно в содержание",null,"Обратно в содержание",null,"Обратно в содержание",null,"Обратно в содержание",null,"Обратно в содержание",null,"Обратно в содержание",null,"Обратно в содержание",null,"Обратно в содержание",null,"Обратно в содержание",null,"Обратно в содержание",null,"Обратно в содержание",null,"Обратно в содержание",null,"Обратно в содержание",null,"Обратно в содержание",null,"Обратно в содержание",null,"Обратно в содержание",null,"Обратно в содержание",null,"Обратно в содержание",null,"Обратно в содержание",null,"Обратно в содержание",null,"Обратно в содержание",null,"Обратно в содержание",null,"Обратно в содержание",null,"Обратно в содержание",null,"Обратно в содержание",null,"Обратно в содержание",null,"Обратно в содержание",null,"Обратно в содержание",null,"Обратно в содержание",null,"Обратно в содержание",null,"Обратно в содержание",null,"Обратно в содержание",null,"Обратно в содержание",null,"Обратно в содержание",null,"Обратно в содержание",null,"Обратно в содержание",null,"Обратно в содержание",null,"Обратно в содержание",null,"Обратно в содержание",null,"Обратно в содержание",null,"Обратно в содержание",null,"Обратно в содержание",null,"Обратно в содержание",null,"Обратно в содержание",null,"Обратно в содержание",null,"Обратно в содержание",null,"Обратно в содержание",null,"Обратно в содержание",null,"Обратно в содержание",null,"Обратно в содержание",null,"Обратно в содержание",null,"Обратно в содержание",null,"Обратно в содержание",null,"Обратно в содержание",null,"Обратно в содержание",null,"Обратно в содержание",null,"Обратно в содержание",null,"Обратно в содержание",null,"Обратно в содержание",null,"Обратно в содержание",null,"Обратно в содержание",null,"Обратно в содержание",null,"Обратно в содержание",null,"Обратно в содержание",null,"Обратно в содержание",null,"Обратно в содержание",null,"Обратно в содержание",null,"Обратно в содержание",null,"Обратно в содержание",null,"Обратно в содержание",null,"Обратно в содержание",null,"Обратно в содержание",null,"Обратно в содержание",null,"Обратно в содержание",null,"Обратно в содержание",null,"Обратно в содержание",null,"Обратно в содержание",null,"Обратно в содержание",null,"Обратно в содержание",null,"Обратно в содержание",null,"Обратно в содержание",null,"Обратно в содержание",null,"Обратно в содержание",null,"Обратно в содержание",null,"Обратно в содержание",null,"Обратно в содержание",null,"Обратно в содержание",null,"Обратно в содержание",null,"Обратно в содержание",null,"Обратно в содержание",null,"Обратно в содержание",null,"Обратно в содержание",null,"Обратно в содержание",null,"Обратно в содержание",null,"Обратно в содержание",null,"Обратно в содержание",null,"Обратно в содержание",null,"Обратно в содержание",null,"Обратно в содержание",null,"Обратно в содержание",null,"Обратно в содержание",null,"Обратно в содержание",null,"Обратно в содержание",null,"Обратно в содержание",null,"Обратно в содержание",null,"Обратно в содержание",null,"Обратно в содержание",null,"Обратно в содержание",null,"Обратно в содержание",null,"Обратно в содержание",null,"Обратно в содержание",null,"Обратно в содержание",null,"Обратно в содержание",null,"Обратно в содержание",null,"Обратно в содержание",null,"Обратно в содержание",null,"Обратно в содержание",null,"Обратно в содержание",null,"Обратно в содержание",null,"Обратно в содержание",null,"Обратно в содержание",null,"Обратно в содержание",null,"Обратно в содержание",null,"Обратно в содержание",null,"Обратно в содержание",null,"Обратно в содержание",null,"Обратно в содержание",null,"Обратно в содержание",null,"Обратно в содержание",null,"Обратно в содержание",null,"Обратно в содержание",null,"Обратно в содержание",null,"Обратно в содержание",null,"Обратно в содержание",null,"Обратно в содержание",null,"Обратно в содержание",null,"Обратно в содержание",null,"Обратно в содержание",null,"Обратно в содержание",null,"Обратно в содержание",null,"Обратно в содержание",null,"Обратно в содержание",null,"Обратно в содержание",null,"Обратно в содержание",null,"Обратно в содержание",null,"Обратно в содержание",null,"Обратно в содержание",null,"Обратно в содержание",null,"Обратно в содержание",null,"Обратно в содержание",null,"Обратно в содержание",null,"Обратно в содержание",null,"Обратно в содержание",null,"Обратно в содержание",null,"Обратно в содержание",null,"Обратно в содержание",null,"Обратно в содержание",null,"Обратно в содержание",null,"Обратно в содержание",null,"Обратно в содержание",null,"Обратно в содержание",null,"Обратно в содержание",null,"Обратно в содержание",null,"Обратно в содержание",null,"Обратно в содержание",null,"Обратно в содержание",null,"Обратно в содержание",null,"Обратно в содержание",null,"Обратно в содержание",null,"Обратно в содержание",null,"Обратно в содержание",null,"Обратно в содержание",null,"Обратно в содержание",null,"Обратно в содержание",null,"Обратно в содержание",null,"Обратно в содержание",null,"Обратно в содержание",null,"Обратно в содержание",null,"Обратно в содержание",null,"Обратно в содержание",null,"Обратно в содержание",null,"Обратно в содержание",null,"Обратно в содержание",null,"Обратно в содержание",null,"Обратно в содержание",null,"Обратно в содержание",null,"Обратно в содержание",null,"Обратно в содержание",null,"Обратно в содержание",null,"Обратно в содержание",null,"Обратно в содержание",null,"Обратно в содержание",null,"Обратно в содержание",null,"Обратно в содержание",null,"Обратно в содержание",null,"Обратно в содержание",null,"Обратно в содержание",null,"Обратно в содержание",null,"Обратно в содержание",null,"Обратно в содержание",null,"Обратно в содержание",null,"Обратно в содержание",null,"Обратно в содержание",null,"Обратно в содержание",null,"Обратно в содержание",null,"Обратно в содержание",null,"Обратно в содержание",null,"Обратно в содержание",null,"Обратно в содержание",null,"Обратно в содержание",null,"Обратно в содержание",null,"Обратно в содержание",null,"Обратно в содержание",null,"Обратно в содержание",null,"Обратно в содержание",null,"Обратно в содержание",null,"Обратно в содержание",null,"Обратно в содержание",null,"Обратно в содержание",null,"Обратно в содержание",null,"Обратно в содержание",null,"Обратно в содержание",null,"Обратно в содержание",null,"Обратно в содержание",null,"Обратно в содержание",null,"Обратно в содержание",null,"Обратно в содержание",null,"Обратно в содержание",null,"Обратно в содержание",null,"Обратно в содержание",null,"Обратно в содержание",null,"Обратно в содержание",null,"Обратно в содержание",null,"Обратно в содержание",null,"Обратно в содержание",null,"Обратно в содержание",null,"Обратно в содержание",null,"Обратно в содержание",null,"Обратно в содержание",null,"Обратно в содержание",null,"Обратно в содержание",null,"Обратно в содержание",null,"Обратно в содержание",null,"Обратно в содержание",null,"Обратно в содержание",null,"Обратно в содержание",null,"Обратно в содержание",null,"Обратно в содержание",null,"Обратно в содержание",null,"Обратно в содержание",null,"Обратно в содержание",null,"Обратно в содержание",null,"Обратно в содержание",null,"Обратно в содержание",null,"Обратно в содержание",null,"Обратно в содержание",null,"Обратно в содержание",null,"Обратно в содержание",null,"Обратно в содержание",null,"Обратно в содержание",null,"Обратно в содержание",null,"Обратно в содержание",null,"Обратно в содержание",null,"Обратно в содержание",null,"Обратно в содержание",null,"Обратно в содержание",null,"Обратно в содержание",null,"Обратно в содержание",null,"Обратно в содержание",null,"Обратно в содержание",null,"Обратно в содержание",null,"Обратно в содержание",null,"Обратно в содержание",null,"Обратно в содержание",null,"Обратно в содержание",null,"Обратно в содержание",null,"Обратно в содержание",null,"Обратно в содержание",null,"Обратно в содержание",null,"Обратно в содержание",null,"Обратно в содержание",null,"Обратно в содержание",null,"Обратно в содержание",null,"Обратно в содержание",null,"Обратно в содержание",null,"Обратно в содержание",null,"Обратно в содержание",null,"Обратно в содержание",null,"Обратно в содержание",null,"Обратно в содержание",null,"Обратно в содержание",null,"Обратно в содержание",null,"Обратно в содержание",null,"Обратно в содержание",null,"Обратно в содержание",null,"Обратно в содержание",null,"Обратно в содержание",null,"Обратно в содержание",null,"Обратно в содержание",null,"Обратно в содержание",null,"Обратно в содержание",null,"Обратно в содержание",null,"Обратно в содержание",null,"Обратно в содержание",null,"Обратно в содержание",null,"Обратно в содержание",null,"Обратно в содержание",null,"Обратно в содержание",null,"Обратно в содержание",null,"Обратно в содержание",null,"Обратно в содержание",null,"Обратно в содержание",null,"Обратно в содержание",null,"Обратно в содержание",null,"Обратно в содержание",null,"Обратно в содержание",null,"Обратно в содержание",null,"Обратно в содержание",null,"Обратно в содержание",null,"Обратно в содержание",null,"Обратно в содержание",null,"Обратно в содержание",null,"Обратно в содержание",null,"Обратно в содержание",null,"Обратно в содержание",null,"Обратно в содержание",null,"Обратно в содержание",null,"Обратно в содержание",null,"Обратно в содержание",null,"Обратно в содержание",null,"Обратно в содержание",null,"Обратно в содержание",null,"Обратно в содержание",null,"Обратно в содержание",null,"Обратно в содержание",null,"Обратно в содержание",null,"Обратно в содержание",null,"Обратно в содержание",null,"Обратно в содержание",null,"Обратно в содержание",null,"Обратно в содержание",null,"Обратно в содержание",null,"Обратно в содержание",null,"Обратно в содержание",null,"Обратно в содержание",null,"Обратно в содержание",null,"Обратно в содержание",null,"Обратно в содержание",null,"Обратно в содержание",null,"Обратно в содержание",null,"Обратно в содержание",null,"Обратно в содержание",null,"Обратно в содержание",null,"Обратно в содержание",null,"Обратно в содержание",null,"Обратно в содержание",null,"Обратно в содержание",null,"Обратно в содержание",null,"Обратно в содержание",null,"Обратно в содержание",null,"Обратно в содержание",null,"Обратно в содержание",null,"Обратно в содержание",null,"Обратно в содержание",null,"Обратно в содержание",null,"Обратно в содержание",null,"Обратно в содержание",null,"Обратно в содержание",null,"Обратно в содержание",null,"Обратно в содержание",null,"Обратно в содержание",null,"Обратно в содержание",null,"Обратно в содержание",null,"Обратно в содержание",null,"Обратно в содержание",null,"Обратно в содержание",null,"Обратно в содержание",null,"Обратно в содержание",null,"Обратно в содержание",null,"Обратно в содержание",null,"Обратно в содержание",null,"Обратно в содержание",null,"Обратно в содержание",null,"Обратно в содержание",null,"Обратно в содержание",null,"Обратно в содержание",null,"Обратно в содержание",null,"Обратно в содержание",null,"Обратно в содержание",null,"Обратно в содержание",null,"Обратно в содержание",null,"Обратно в содержание",null,"Обратно в содержание",null,"Обратно в содержание",null,"Обратно в содержание",null,"Обратно в содержание",null,"Обратно в содержание",null,"Обратно в содержание",null,"Обратно в содержание",null,"Обратно в содержание",null,"Обратно в содержание",null,"Обратно в содержание",null,"Обратно в содержание",null,"Обратно в содержание",null,"Обратно в содержание",null,"Обратно в содержание",null,"Обратно в содержание",null,"Обратно в содержание",null,"Обратно в содержание",null,"Обратно в содержание",null,"Обратно в содержание",null,"Обратно в содержание",null,"Обратно в содержание",null,"Обратно в содержание",null,"Обратно в содержание",null,"Обратно в содержание",null,"Обратно в содержание",null,"Обратно в содержание",null,"Обратно в содержание",null,"Обратно в содержание",null,"Обратно в содержание",null,"Обратно в содержание",null,"Обратно в содержание",null,"Обратно в содержание",null,"Обратно в содержание",null,"Обратно в содержание",null,"Обратно в содержание",null,"Обратно в содержание",null,"Обратно в содержание",null,"Обратно в содержание",null,"Обратно в содержание",null,"Обратно в содержание",null,"Обратно в содержание",null,"Обратно в содержание",null,"Обратно в содержание",null,"Обратно в содержание",null,"Обратно в содержание",null,"Обратно в содержание",null,"Обратно в содержание",null,"Обратно в содержание",null,"Обратно в содержание",null,"Обратно в содержание",null,"Обратно в содержание",null,"Обратно в содержание",null,"Обратно в содержание",null,"Обратно в содержание",null,"Обратно в содержание",null,"Обратно в содержание",null,"Обратно в содержание",null,"Обратно в содержание",null,"Обратно в содержание",null,"Обратно в содержание",null,"Обратно в содержание",null,"Обратно в содержание",null,"Обратно в содержание",null,"Обратно в содержание",null,"Обратно в содержание",null,"Обратно в содержание",null,"Обратно в содержание",null,"Обратно в содержание",null,"Обратно в содержание",null,"Обратно в содержание",null,"Обратно в содержание",null,"Обратно в содержание",null,"Обратно в содержание",null,"Обратно в содержание",null,"Обратно в содержание",null,"Обратно в содержание",null,"Обратно в содержание",null,"Обратно в содержание",null,"Обратно в содержание",null,"Обратно в содержание",null,"Обратно в содержание",null,"Обратно в содержание",null,"Обратно в содержание",null,"Обратно в содержание",null,"Обратно в содержание",null,"Обратно в содержание",null,"Обратно в содержание",null,"Обратно в содержание",null,"Обратно в содержание",null,"Обратно в содержание",null,"Обратно в содержание",null,"Обратно в содержание",null,"Обратно в содержание",null,"Обратно в содержание",null,"Обратно в содержание",null,"Обратно в содержание",null,"Обратно в содержание",null,"Обратно в содержание",null,"Обратно в содержание",null,"Обратно в содержание",null,"Обратно в содержание",null,"Обратно в содержание",null,"Обратно в содержание",null,"Обратно в содержание",null,"Обратно в содержание",null,"Обратно в содержание",null,"Обратно в содержание",null,"Обратно в содержание",null,"Обратно в содержание",null,"Обратно в содержание",null,"Обратно в содержание",null,"Обратно в содержание",null,"Обратно в содержание",null,"Обратно в содержание",null,"Обратно в содержание",null,"Обратно в содержание",null,"Обратно в содержание",null,"Обратно в содержание",null,"Обратно в содержание",null,"Обратно в содержание",null,"Обратно в содержание",null,"Обратно в содержание",null,"Обратно в содержание",null,"Обратно в содержание",null,"Обратно в содержание",null,"Обратно в содержание",null,"Обратно в содержание",null,"Обратно в содержание",null,"Обратно в содержание",null,"Обратно в содержание",null,"Обратно в содержание",null,"Обратно в содержание",null,"Обратно в содержание",null,"Обратно в содержание",null,"Обратно в содержание",null,"Обратно в содержание",null,"Обратно в содержание",null,"Обратно в содержание",null,"Обратно в содержание",null,"Обратно в содержание",null,"Обратно в содержание",null,"Обратно в содержание",null,"Обратно в содержание",null,"Обратно в содержание",null,"Обратно в содержание",null,"Обратно в содержание",null,"Обратно в содержание",null,"Обратно в содержание",null,"Обратно в содержание",null,"Обратно в содержание",null,"Обратно в содержание",null,"Обратно в содержание",null,"Обратно в содержание",null,"Обратно в содержание",null,"Обратно в содержание",null,"Обратно в содержание",null,"Обратно в содержание",null,"Обратно в содержание",null,"Обратно в содержание",null,"Обратно в содержание",null,"Обратно в содержание",null,"Обратно в содержание",null,"Обратно в содержание",null,"Обратно в содержание",null,"Обратно в содержание",null,"Обратно в содержание",null,"Обратно в содержание",null,"Обратно в содержание",null,"Обратно в содержание",null,"Обратно в содержание",null,"Обратно в содержание",null,"Обратно в содержание",null,"Обратно в содержание",null,"Обратно в содержание",null,"Обратно в содержание",null,"Обратно в содержание",null,"Обратно в содержание",null,"Обратно в содержание",null,"Обратно в содержание",null,"Обратно в содержание",null,"Обратно в содержание",null,"Обратно в содержание",null,"Обратно в содержание",null,"Обратно в содержание",null,"Обратно в содержание",null,"Обратно в содержание",null,"Обратно в содержание",null,"Обратно в содержание",null,"Обратно в содержание",null,"Обратно в содержание",null,"Обратно в содержание",null,"Обратно в содержание",null,"Обратно в содержание",null,"Обратно в содержание",null,"Обратно в содержание",null,"Обратно в содержание",null,"Обратно в содержание",null,"Обратно в содержание",null,"Обратно в содержание",null,"Обратно в содержание",null,"Обратно в содержание",null,"Обратно в содержание",null,"Обратно в содержание",null,"Обратно в содержание",null,"Обратно в содержание",null,"Обратно в содержание",null,"Обратно в содержание",null,"Обратно в содержание",null,"Обратно в содержание",null,"Обратно в содержание",null,"Обратно в содержание",null,"Обратно в содержание",null,"Обратно в содержание",null,"Обратно в содержание",null,"Обратно в содержание",null,"Обратно в содержание",null,"Обратно в содержание",null,"Обратно в содержание",null,"Обратно в содержание",null,"Обратно в содержание",null,"Обратно в содержание",null,"Обратно в содержание",null,"Обратно в содержание",null,"Обратно в содержание",null,"Обратно в содержание",null,"Обратно в содержание",null,"Обратно в содержание",null,"Обратно в содержание",null,"Обратно в содержание",null,"Обратно в содержание",null,"Обратно в содержание",null,"Обратно в содержание",null,"Обратно в содержание",null,"Обратно в содержание",null,"Обратно в содержание",null,"Обратно в содержание",null,"Обратно в содержание",null,"Обратно в содержание",null,"Обратно в содержание",null,"Обратно в содержание",null,"Обратно в содержание",null,"Обратно в содержание",null,"Обратно в содержание",null,"Обратно в содержание",null,"Обратно в содержание",null,"Обратно в содержание",null,"Обратно в содержание",null,"Обратно в содержание",null,"Обратно в содержание",null,"Обратно в содержание",null,"Обратно в содержание",null,"Обратно в содержание",null,"Обратно в содержание",null,"Обратно в содержание",null,"Обратно в содержание",null,"Обратно в содержание",null,"Обратно в содержание",null,"Обратно в содержание",null,"Обратно в содержание",null,"Обратно в содержание",null,"Обратно в содержание",null,"Обратно в содержание",null,"Обратно в содержание",null,"Обратно в содержание",null,"Обратно в содержание",null,"Обратно в содержание",null,"Обратно в содержание",null,"Обратно в содержание",null,"Обратно в содержание",null,"Обратно в содержание",null,"Обратно в содержание",null,"Обратно в содержание",null,"Обратно в содержание",null,"Обратно в содержание",null,"Обратно в содержание",null,"Обратно в содержание",null,"Обратно в содержание",null,"Обратно в содержание",null,"Обратно в содержание",null,"Обратно в содержание",null,"Обратно в содержание",null,"Обратно в содержание",null,"Обратно в содержание",null,"Обратно в содержание",null,"Обратно в содержание",null,"Обратно в содержание",null,"Обратно в содержание",null,"Обратно в содержание",null,"Обратно в содержание",null,"Обратно в содержание",null,"Обратно в содержание",null,"Обратно в содержание",null,"Обратно в содержание",null,"Обратно в содержание",null,"Обратно в содержание",null,"Обратно в содержание",null,"Обратно в содержание",null,"Обратно в содержание",null,"Обратно в содержание",null,"Обратно в содержание",null,"Обратно в содержание",null,"Обратно в содержание",null,"Обратно в содержание",null,"Обратно в содержание",null,"Обратно в содержание",null,"Обратно в содержание",null,"Обратно в содержание",null,"Обратно в содержание",null,"Обратно в содержание",null,"Обратно в содержание",null,"Обратно в содержание",null,"Обратно в содержание",null,"Обратно в содержание",null,"Обратно в содержание",null,"Обратно в содержание",null,"Обратно в содержание",null,"Обратно в содержание",null,"Обратно в содержание",null,"Обратно в содержание",null,"Обратно в содержание",null,"Обратно в содержание",null,"Обратно в содержание",null,"Обратно в содержание",null,"Обратно в содержание",null,"Обратно в содержание",null,"Обратно в содержание",null,"Обратно в содержание",null,"Обратно в содержание",null,"Обратно в содержание",null,"Обратно в содержание",null,"Обратно в содержание",null,"Обратно в содержание",null,"Обратно в содержание",null,"Обратно в содержание",null,"Обратно в содержание",null,"Обратно в содержание",null,"Обратно в содержание",null,"Обратно в содержание",null,"Обратно в содержание",null,"Обратно в содержание",null,"Обратно в содержание",null,"Обратно в содержание",null,"Обратно в содержание",null,"Обратно в содержание",null,"Обратно в содержание",null,"Обратно в содержание",null,"Обратно в содержание",null,"Обратно в содержание",null,"Обратно в содержание",null,"Обратно в содержание",null,"Обратно в содержание",null,"Обратно в содержание",null,"Обратно в содержание",null,"Обратно в содержание",null,"Обратно в содержание",null,"Обратно в содержание",null,"Обратно в содержание",null,"Обратно в содержание",null,"Обратно в содержание",null,"Обратно в содержание",null,"Обратно в содержание",null,"Обратно в содержание",null,"Обратно в содержание",null,"Обратно в содержание",null,"Обратно в содержание",null,"Обратно в содержание",null,"Обратно в содержание",null,"Обратно в содержание",null,"Обратно в содержание",null,"Обратно в содержание",null,"Обратно в содержание",null,"Обратно в содержание",null,"Обратно в содержание",null,"Обратно в содержание",null,"Обратно в содержание",null,"Обратно в содержание",null,"Обратно в содержание",null,"Обратно в содержание",null,"Обратно в содержание",null,"Обратно в содержание",null,"Обратно в содержание",null,"Обратно в содержание",null,"Обратно в содержание",null,"Обратно в содержание",null,"Обратно в содержание",null,"Обратно в содержание",null,"Обратно в содержание",null,"Обратно в содержание",null,"Обратно в содержание",null,"Обратно в содержание",null,"Обратно в содержание",null,"Обратно в содержание",null,"Обратно в содержание",null,"Обратно в содержание",null,"Обратно в содержание",null,"Обратно в содержание",null,"Обратно в содержание",null,"Обратно в содержание",null,"Обратно в содержание",null,"Обратно в содержание",null,"Обратно в содержание",null,"Обратно в содержание",null,"Обратно в содержание",null,"Обратно в содержание",null,"Обратно в содержание",null,"Обратно в содержание",null,"Обратно в содержание",null,"Обратно в содержание",null,"Обратно в содержание",null,"Обратно в содержание",null,"Обратно в содержание",null,"Обратно в содержание",null,"Обратно в содержание",null,"Обратно в содержание",null,"Обратно в содержание",null,"Обратно в содержание",null,"Обратно в содержание",null,"Обратно в содержание",null,"Обратно в содержание",null,"Обратно в содержание",null,"Обратно в содержание",null,"Обратно в содержание",null,"Обратно в содержание",null,"Обратно в содержание",null,"Обратно в содержание",null,"Обратно в содержание",null,"Обратно в содержание",null,"Обратно в содержание",null,"Обратно в содержание",null,"Обратно в содержание",null,"Обратно в содержание",null,"Обратно в содержание",null,"Обратно в содержание",null,"Обратно в содержание",null,"Обратно в содержание",null,"Обратно в содержание",null,"Обратно в содержание",null,"Обратно в содержание",null,"Обратно в содержание",null,"Обратно в содержание",null,"Обратно в содержание",null,"Обратно в содержание",null,"Обратно в содержание",null,"Обратно в содержание",null,"Обратно в содержание",null,"Обратно в содержание",null,"Обратно в содержание",null,"Обратно в содержание",null,"Обратно в содержание",null,"Обратно в содержание",null,"Обратно в содержание",null,"Обратно в содержание",null,"Обратно в содержание",null,"Обратно в содержание",null,"Обратно в содержание",null,"Обратно в содержание",null,"Обратно в содержание",null,"Обратно в содержание",null,"Обратно в содержание",null,"Обратно в содержание",null,"Обратно в содержание",null,"Обратно в содержание",null,"Обратно в содержание",null,"Обратно в содержание",null,"Обратно в содержание",null,"Обратно в содержание",null,"Обратно в содержание",null,"Обратно в содержание",null,"Обратно в содержание",null,"Обратно в содержание",null,"Обратно в содержание",null,"Обратно в содержание",null,"Обратно в содержание",null,"Обратно в содержание",null,"Обратно в содержание",null,"Обратно в содержание",null,"Обратно в содержание",null,"Обратно в содержание",null,"Обратно в содержание",null,"Обратно в содержание",null,"Обратно в содержание",null,"Обратно в содержание",null,"Обратно в содержание",null,"Обратно в содержание",null,"Обратно в содержание",null,"Обратно в содержание",null,"Обратно в содержание",null,"Обратно в содержание",null,"Обратно в содержание",null,"Обратно в содержание",null,"Обратно в содержание",null,"Обратно в содержание",null,"Обратно в содержание",null,"Обратно в содержание",null,"Обратно в содержание",null,"Обратно в содержание",null,"Обратно в содержание",null,"Обратно в содержание",null,"Обратно в содержание",null,"Обратно в содержание",null,"Обратно в содержание",null,"Обратно в содержание",null,"Обратно в содержание",null,"Обратно в содержание",null,"Обратно в содержание",null,"Обратно в содержание",null,"Обратно в содержание",null,"Обратно в содержание",null,"Обратно в содержание",null,"Обратно в содержание",null,"Обратно в содержание",null,"Обратно в содержание",null,"Обратно в содержание",null,"Обратно в содержание",null,"Обратно в содержание",null,"Обратно в содержание",null,"Обратно в содержание",null,"Обратно в содержание",null,"Обратно в содержание",null,"Обратно в содержание",null,"Обратно в содержание",null,"Обратно в содержание",null,"Обратно в содержание",null,"Обратно в содержание",null,"Обратно в содержание",null,"Обратно в содержание",null,"Обратно в содержание",null,"Обратно в содержание",null,"Обратно в содержание",null,"Обратно в содержание",null,"Обратно в содержание",null,"Обратно в содержание",null,"Обратно в содержание",null,"Обратно в содержание",null,"Обратно в содержание",null,"Обратно в содержание",null,"Обратно в содержание",null,"Обратно в содержание",null,"Обратно в содержание",null,"Обратно в содержание",null,"Обратно в содержание",null,"Обратно в содержание",null,"Обратно в содержание",null,"Обратно в содержание",null,"Обратно в содержание",null,"Обратно в содержание",null,"Обратно в содержание",null,"Обратно в содержание",null,"Обратно в содержание",null,"Обратно в содержание",null,"Обратно в содержание",null,"Обратно в содержание",null,"Обратно в содержание",null,"Обратно в содержание",null,"Обратно в содержание",null,"Обратно в содержание",null,"Обратно в содержание",null,"Обратно в содержание",null,"Обратно в содержание",null,"Обратно в содержание",null,"Обратно в содержание",null,"Обратно в содержание",null,"Обратно в содержание",null,"Обратно в содержание",null,"Обратно в содержание",null,"Обратно в содержание",null,"Обратно в содержание",null,"Обратно в содержание",null,"Обратно в содержание",null,"Обратно в содержание",null,"Обратно в содержание",null,"Обратно в содержание",null,"Обратно в содержание",null,"Обратно в содержание",null,"Обратно в содержание",null,"Обратно в содержание",null,"Обратно в содержание",null,"Обратно в содержание",null,"Обратно в содержание",null,"Обратно в содержание",null,"Обратно в содержание",null,"Обратно в содержание",null,"Обратно в содержание",null,"Обратно в содержание",null,"Обратно в содержание",null,"Обратно в содержание",null,"Обратно в содержание",null,"Обратно в содержание",null,"Обратно в содержание",null,"Обратно в содержание",null,"Обратно в содержание",null,"Обратно в содержание",null,"Обратно в содержание",null,"Обратно в содержание",null,"Обратно в содержание",null,"Обратно в содержание",null,"Обратно в содержание",null,"Обратно в содержание",null,"Обратно в содержание",null,"Обратно в содержание",null,"Обратно в содержание",null,"Обратно в содержание",null,"Обратно в содержание",null,"Обратно в содержание",null,"Обратно в содержание",null,"Обратно в содержание",null,"Обратно в содержание",null,"Обратно в содержание",null,"Обратно в содержание",null,"Обратно в содержание",null,"Обратно в содержание",null,"Обратно в содержание",null,"Обратно в содержание",null,"Обратно в содержание",null,"Обратно в содержание",null,"Обратно в содержание",null,"Обратно в содержание",null,"Обратно в содержание",null,"Обратно в содержание",null,"Обратно в содержание",null,"Обратно в содержание",null,"Обратно в содержание",null,"Обратно в содержание",null,"Обратно в содержание",null,"Обратно в содержание",null,"Обратно в содержание",null,"Обратно в содержание",null,"Обратно в содержание",null,"Обратно в содержание",null,"Обратно в содержание",null,"Обратно в содержание",null,"Обратно в содержание",null,"Обратно в содержание",null,"Обратно в содержание",null,"Обратно в содержание",null,"Обратно в содержание",null,"Обратно в содержание",null,"Обратно в содержание",null,"Обратно в содержание",null,"Обратно в содержание",null,"Обратно в содержание",null,"Обратно в содержание",null,"Обратно в содержание",null,"Обратно в содержание",null,"Обратно в содержание",null,"Обратно в содержание",null,"Обратно в содержание",null,"Обратно в содержание",null,"Обратно в содержание",null,"Обратно в содержание",null,"Обратно в содержание",null,"Обратно в содержание",null,"Обратно в содержание",null,"Обратно в содержание",null,"Обратно в содержание",null,"Обратно в содержание",null,"Обратно в содержание",null,"Обратно в содержание",null,"Обратно в содержание",null,"Обратно в содержание",null,"Обратно в содержание",null,"Обратно в содержание",null,"Обратно в содержание",null,"Обратно в содержание",null,"Обратно в содержание",null,"Обратно в содержание",null,"Обратно в содержание",null,"Обратно в содержание",null,"Обратно в содержание",null,"Обратно в содержание",null,"Обратно в содержание",null,"Обратно в содержание",null,"Обратно в содержание",null,"Обратно в содержание",null,"Обратно в содержание",null,"Обратно в содержание",null,"Обратно в содержание",null,"Обратно в содержание",null,"Обратно в содержание",null,"Обратно в содержание",null,"Обратно в содержание",null,"Обратно в содержание",null,"Обратно в содержание",null,"Обратно в содержание",null,"Обратно в содержание",null,"Обратно в содержание",null,"Обратно в содержание",null,"Обратно в содержание",null,"Обратно в содержание",null,"Обратно в содержание",null,"Обратно в содержание",null,"Обратно в содержание",null,"Обратно в содержание",null,"Обратно в содержание",null,"Обратно в содержание",null,"Обратно в содержание",null,"Обратно в содержание",null,"Обратно в содержание",null,"Обратно в содержание",null,"Обратно в содержание",null,"Обратно в содержание",null,"Обратно в содержание",null,"Обратно в содержание",null,"Обратно в содержание",null,"Обратно в содержание",null,"Обратно в содержание",null,"Обратно в содержание",null,"Обратно в содержание",null,"Обратно в содержание",null,"Обратно в содержание",null,"Обратно в содержание",null,"Обратно в содержание",null,"Обратно в содержание",null,"Обратно в содержание",null,"Обратно в содержание",null,"Обратно в содержание",null,"Обратно в содержание",null,"Обратно в содержание",null,"Обратно в содержание",null,"Обратно в содержание",null,"Обратно в содержание",null,"Обратно в содержание",null,"Обратно в содержание",null,"Обратно в содержание",null,"Обратно в содержание",null,"Обратно в содержание",null,"Обратно в содержание",null,"Обратно в содержание",null,"Обратно в содержание",null,"Обратно в содержание",null,"Обратно в содержание",null,"Обратно в содержание",null,"Обратно в содержание",null,"Обратно в содержание",null,"Обратно в содержание",null,"Обратно в содержание",null,"Обратно в содержание",null,"Обратно в содержание",null,"Обратно в содержание",null,"Обратно в содержание",null,"Обратно в содержание",null,"Обратно в содержание",null,"Обратно в содержание",null,"Обратно в содержание",null,"Обратно в содержание",null,"Обратно в содержание",null,"Обратно в содержание",null,"Обратно в содержание",null,"Обратно в содержание",null,"Обратно в содержание",null,"Обратно в содержание",null,"Обратно в содержание",null,"Обратно в содержание",null,"Обратно в содержание",null,"Обратно в содержание",null,"Обратно в содержание",null,"Обратно в содержание",null,"Обратно в содержание",null,"Обратно в содержание",null,"Обратно в содержание",null,"Обратно в содержание",null,"Обратно в содержание",null,"Обратно в содержание",null,"Обратно в содержание",null,"Обратно в содержание",null,"Обратно в содержание",null,"Обратно в содержание",null,"Обратно в содержание",null,"Обратно в содержание",null,"Обратно в содержание",null,"Обратно в содержание",null,"Обратно в содержание",null,"Обратно в содержание",null,"Обратно в содержание",null,"Обратно в содержание",null,"Обратно в содержание",null,"Обратно в содержание",null,"Обратно в содержание",null,"Обратно в содержание",null,"Обратно в содержание",null,"Обратно в содержание",null,"Обратно в содержание",null,"Обратно в содержание",null,"Обратно в содержание",null,"Обратно в содержание",null,"Обратно в содержание",null,"Обратно в содержание",null,"Обратно в содержание",null,"Обратно в содержание",null,"Обратно в содержание",null,"Обратно в содержание",null,"Обратно в содержание",null,"Обратно в содержание",null,"Обратно в содержание",null,"Обратно в содержание",null,"Обратно в содержание",null,"Обратно в содержание",null,"Обратно в содержание",null,"Обратно в содержание",null,"Обратно в содержание",null,"Обратно в содержание",null,"Обратно в содержание",null,"Обратно в содержание",null,"Обратно в содержание",null,"Обратно в содержание",null,"Обратно в содержание",null,"Обратно в содержание",null,"Обратно в содержание",null,"Обратно в содержание",null,"Обратно в содержание",null,"Обратно в содержание",null,"Обратно в содержание",null,"Обратно в содержание",null,"Обратно в содержание",null,"Обратно в содержание",null,"Обратно в содержание",null,"Обратно в содержание",null,"Обратно в содержание",null,"Обратно в содержание",null,"Обратно в содержание",null,"Обратно в содержание",null,"Обратно в содержание",null,"Обратно в содержание",null,"Обратно в содержание",null,"Обратно в содержание",null,"Обратно в содержание",null,"Обратно в содержание",null,"Обратно в содержание",null,"Обратно в содержание",null,"Обратно в содержание",null,"Обратно в содержание",null,"Обратно в содержание",null,"Обратно в содержание",null,"Обратно в содержание",null,"Обратно в содержание",null,"Обратно в содержание",null,"Обратно в содержание",null,"Обратно в содержание",null,"Обратно в содержание",null,"Обратно в содержание",null,"Обратно в содержание",null,"Обратно в содержание",null,"Обратно в содержание",null,"Обратно в содержание",null,"Обратно в содержание",null,"Обратно в содержание",null,"Обратно в содержание",null,"Обратно в содержание",null,"Обратно в содержание",null,"Обратно в содержание",null,"Обратно в содержание",null,"Обратно в содержание",null,"Обратно в содержание",null,"Обратно в содержание",null,"Обратно в содержание",null,"Обратно в содержание",null,"Обратно в содержание",null,"Обратно в содержание",null,"Обратно в содержание",null,"Обратно в содержание",null,"Обратно в содержание",null,"Обратно в содержание",null,"Обратно в содержание",null,"Обратно в содержание",null,"Обратно в содержание",null,"Обратно в содержание",null,"Обратно в содержание",null,"Обратно в содержание",null,"Обратно в содержание",null,"Обратно в содержание",null,"Обратно в содержание",null,"Обратно в содержание",null,"Обратно в содержание",null,"Обратно в содержание",null,"Обратно в содержание",null,"Обратно в содержание",null,"Обратно в содержание",null,"Обратно в содержание",null,"Обратно в содержание",null,"Обратно в содержание",null,"Обратно в содержание",null,"Обратно в содержание",null,"Обратно в содержание",null,"Обратно в содержание",null,"Обратно в содержание",null,"Обратно в содержание",null,"Обратно в содержание",null,"Обратно в содержание",null,"Обратно в содержание",null,"Обратно в содержание",null,"Обратно в содержание",null,"Обратно в содержание",null,"Обратно в содержание",null,"Обратно в содержание",null,"Обратно в содержание",null,"Обратно в содержание",null,"Обратно в содержание",null,"Обратно в содержание",null,"Обратно в содержание",null,"Обратно в содержание",null,"Обратно в содержание",null,"Обратно в содержание",null,"Обратно в содержание",null,"Обратно в содержание",null,"Обратно в содержание",null,"Обратно в содержание",null,"Обратно в содержание",null,"Обратно в содержание",null,"Обратно в содержание",null,"Обратно в содержание",null,"Обратно в содержание",null,"Обратно в содержание",null,"Обратно в содержание",null,"Обратно в содержание",null,"Обратно в содержание",null,"Обратно в содержание",null,"Обратно в содержание",null,"Обратно в содержание",null,"Обратно в содержание",null,"Обратно в содержание",null,"Обратно в содержание",null,"Обратно в содержание",null,"Обратно в содержание",null,"Обратно в содержание",null,"Обратно в содержание",null,"Обратно в содержание",null,"Обратно в содержание",null,"Обратно в содержание",null,"Обратно в содержание",null,"Обратно в содержание",null,"Обратно в содержание",null,"Обратно в содержание",null,"Обратно в содержание",null,"Обратно в содержание",null,"Обратно в содержание",null,"Обратно в содержание",null,"Обратно в содержание",null,"Обратно в содержание",null,"Обратно в содержание",null,"Обратно в содержание",null,"Обратно в содержание",null,"Обратно в содержание",null,"Обратно в содержание",null,"Обратно в содержание",null,"Обратно в содержание",null,"Обратно в содержание",null,"Обратно в содержание",null,"Обратно в содержание",null,"Обратно в содержание",null,"Обратно в содержание",null,"Обратно в содержание",null,"Обратно в содержание",null,"Обратно в содержание",null,"Обратно в содержание",null,"Обратно в содержание",null,"Обратно в содержание",null,"Обратно в содержание",null,"Обратно в содержание",null,"Обратно в содержание",null,"Обратно в содержание",null,"Обратно в содержание",null,"Обратно в содержание",null,"Обратно в содержание",null,"Обратно в содержание",null,"Обратно в содержание",null,"Обратно в содержание",null,"Обратно в содержание",null,"Обратно в содержание",null,"Обратно в содержание",null,"Обратно в содержание",null,"Обратно в содержание",null,"Обратно в содержание",null,"Обратно в содержание",null,"Обратно в содержание",null,"Обратно в содержание",null,"Обратно в содержание",null,"Обратно в содержание",null,"Обратно в содержание",null,"Обратно в содержание",null,"Обратно в содержание",null,"Обратно в содержание",null,"Обратно в содержание",null,"Обратно в содержание",null,"Обратно в содержание",null,"Обратно в содержание",null,"Обратно в содержание",null,"Обратно в содержание",null,"Обратно в содержание",null,"Обратно в содержание",null,"Обратно в содержание",null,"Обратно в содержание",null,"Обратно в содержание",null,"Обратно в содержание",null,"Обратно в содержание",null,"Обратно в содержание",null,"Обратно в содержание",null,"Обратно в содержание",null,"Обратно в содержание",null,"Обратно в содержание",null,"Обратно в содержание",null,"Обратно в содержание",null,"Обратно в содержание",null,"Обратно в содержание",null,"Обратно в содержание",null,"Обратно в содержание",null,"Обратно в содержание",null,"Обратно в содержание",null,"Обратно в содержание",null,"Обратно в содержание",null,"Обратно в содержание",null,"Обратно в содержание",null,"Обратно в содержание",null,"Обратно в содержание",null,"Обратно в содержание",null,"Обратно в содержание",null,"Обратно в содержание",null,"Обратно в содержание",null,"Обратно в содержание",null,"Обратно в содержание",null,"Обратно в содержание",null,"Обратно в содержание",null,"Обратно в содержание",null,"Обратно в содержание",null,"Обратно в содержание",null,"Обратно в содержание",null,"Обратно в содержание",null,"Обратно в содержание",null,"Обратно в содержание",null,"Обратно в содержание",null,"Обратно в содержание",null,"Обратно в содержание",null,"Обратно в содержание",null,"Обратно в содержание",null,"Обратно в содержание",null,"Обратно в содержание",null,"Обратно в содержание",null,"Обратно в содержание",null,"Обратно в содержание",null,"Обратно в содержание",null,"Обратно в содержание",null,"Обратно в содержание",null,"Обратно в содержание",null,"Обратно в содержание",null,"Обратно в содержание",null,"Обратно в содержание",null,"Обратно в содержание",null,"Обратно в содержание",null,"Обратно в содержание",null,"Обратно в содержание",null,"Обратно в содержание",null,"Обратно в содержание",null,"Обратно в содержание",null,"Обратно в содержание",null,"Обратно в содержание",null,"Обратно в содержание",null,"Обратно в содержание",null,"Обратно в содержание",null,"Обратно в содержание",null,"Обратно в содержание",null,"Обратно в содержание",null,"Обратно в содержание",null,"Обратно в содержание",null,"Обратно в содержание",null,"Обратно в содержание",null,"Обратно в содержание",null,"Обратно в содержание",null,"Обратно в содержание",null,"Обратно в содержание",null,"Обратно в содержание",null,"Обратно в содержание",null,"Обратно в содержание",null,"Обратно в содержание",null,"Обратно в содержание",null,"Обратно в содержание",null,"Обратно в содержание",null,"Обратно в содержание",null,"Обратно в содержание",null,"Обратно в содержание",null,"Обратно в содержание",null,"Обратно в содержание",null,"Обратно в содержание",null,"Обратно в содержание",null,"Обратно в содержание",null,"Обратно в содержание",null,"Обратно в содержание",null,"Обратно в содержание",null,"Обратно в содержание",null,"Обратно в содержание",null,"Обратно в содержание",null,"Обратно в содержание",null,"Обратно в содержание",null,"Обратно в содержание",null,"Обратно в содержание",null,"Обратно в содержание",null,"Обратно в содержание",null,"Обратно в содержание",null,"Обратно в содержание",null,"Обратно в содержание",null,"Обратно в содержание",null,"Обратно в содержание",null,"Обратно в содержание",null,"Обратно в содержание",null,"Обратно в содержание",null,"Обратно в содержание",null,"Обратно в содержание",null,"Обратно в содержание",null,"Обратно в содержание",null,"Обратно в содержание",null,"Обратно в содержание",null,"Обратно в содержание",null,"Обратно в содержание",null,"Обратно в содержание",null,"Обратно в содержание",null,"Обратно в содержание",null,"Обратно в содержание",null,"Обратно в содержание",null,"Обратно в содержание",null,"Обратно в содержание",null,"Обратно в содержание",null,"Обратно в содержание",null,"Обратно в содержание",null,"Обратно в содержание",null,"Обратно в содержание",null,"Обратно в содержание",null,"Обратно в содержание",null,"Обратно в содержание",null,"Обратно в содержание",null,"Обратно в содержание",null,"Обратно в содержание",null,"Обратно в содержание",null,"Обратно в содержание",null,"Обратно в содержание",null,"Обратно в содержание",null,"Обратно в содержание",null,"Обратно в содержание",null,"Обратно в содержание",null,"Обратно в содержание",null,"Обратно в содержание",null,"Обратно в содержание",null,"Обратно в содержание",null,"Обратно в содержание",null,"Обратно в содержание",null,"Обратно в содержание",null,"Обратно в содержание",null,"Обратно в содержание",null,"Обратно в содержание",null,"Обратно в содержание",null,"Обратно в содержание",null,"Обратно в содержание",null,"Обратно в содержание",null,"Обратно в содержание",null,"Обратно в содержание",null,"Обратно в содержание",null,"Обратно в содержание",null,"Обратно в содержание",null,"Обратно в содержание",null,"Обратно в содержание",null,"Обратно в содержание",null,"Обратно в содержание",null,"Обратно в содержание",null,"Обратно в содержание",null,"Обратно в содержание",null,"Обратно в содержание",null,"Обратно в содержание",null,"Обратно в содержание",null,"Обратно в содержание",null,"Обратно в содержание",null,"Обратно в содержание",null,"Обратно в содержание",null,"Обратно в содержание",null,"Обратно в содержание",null,"Обратно в содержание",null,"Обратно в содержание",null,"Обратно в содержание",null,"Обратно в содержание",null,"Обратно в содержание",null,"Обратно в содержание",null,"Обратно в содержание",null,"Обратно в содержание",null,"Обратно в содержание",null,"Обратно в содержание",null,"Обратно в содержание",null,"Обратно в содержание",null,"Обратно в содержание",null,"Обратно в содержание",null,"Обратно в содержание",null,"Обратно в содержание",null,"Обратно в содержание",null,"Обратно в содержание",null,"Обратно в содержание",null,"Обратно в содержание",null,"Обратно в содержание",null,"Обратно в содержание",null,"Обратно в содержание",null,"Обратно в содержание",null,"Обратно в содержание",null,"Обратно в содержание",null,"Обратно в содержание",null,"Обратно в содержание",null,"Обратно в содержание",null,"Обратно в содержание",null,"Обратно в содержание",null,"Обратно в содержание",null,"Обратно в содержание",null,"Обратно в содержание",null,"Обратно в содержание",null,"Обратно в содержание",null,"Обратно в содержание",null,"Обратно в содержание",null,"Обратно в содержание",null,"Обратно в содержание",null,"Обратно в содержание",null,"Обратно в содержание",null,"Обратно в содержание",null,"Обратно в содержание",null,"Обратно в содержание",null,"Обратно в содержание",null,"Обратно в содержание",null,"Обратно в содержание",null,"Обратно в содержание",null,"Обратно в содержание",null,"Обратно в содержание",null,"Обратно в содержание",null,"Обратно в содержание",null,"Обратно в содержание",null,"Обратно в содержание",null,"Обратно в содержание",null,"Обратно в содержание",null,"Обратно в содержание",null,"Обратно в содержание",null,"Обратно в содержание",null,"Обратно в содержание",null,"Обратно в содержание",null,"Обратно в содержание",null,"Обратно в содержание",null,"Обратно в содержание",null,"Обратно в содержание",null,"Обратно в содержание",null,"Обратно в содержание",null,"Обратно в содержание",null,"Обратно в содержание",null,"Обратно в содержание",null,"Обратно в содержание",null,"Обратно в содержание",null,"Обратно в содержание",null,"Обратно в содержание",null,"Обратно в содержание",null,"Обратно в содержание",null,"Обратно в содержание",null,"Обратно в содержание",null,"Обратно в содержание",null,"Обратно в содержание",null,"Обратно в содержание",null,"Обратно в содержание",null,"Обратно в содержание",null,"Обратно в содержание",null,"Обратно в содержание",null,"Обратно в содержание",null,"Обратно в содержание",null,"Обратно в содержание",null,"Обратно в содержание",null,"Обратно в содержание",null,"Обратно в содержание",null,"Обратно в содержание",null,"Обратно в содержание",null,"Обратно в содержание",null,"Обратно в содержание",null,"Обратно в содержание",null,"Обратно в содержание",null,"Обратно в содержание",null,"Обратно в содержание",null,"Обратно в содержание",null,"Обратно в содержание",null,"Обратно в содержание",null,"Обратно в содержание",null,"Обратно в содержание",null,"Обратно в содержание",null,"Обратно в содержание",null,"Обратно в содержание",null,"Обратно в содержание",null,"Обратно в содержание",null,"Обратно в содержание",null,"Обратно в содержание",null,"Обратно в содержание",null,"Обратно в содержание",null,"Обратно в содержание",null,"Обратно в содержание",null,"Обратно в содержание",null,"Обратно в содержание",null,"Обратно в содержание",null,"Обратно в содержание",null,"Обратно в содержание",null,"Обратно в содержание",null,"Обратно в содержание",null,"Обратно в содержание",null,"Обратно в содержание",null,"Обратно в содержание",null,"Обратно в содержание",null,"Обратно в содержание",null,"Обратно в содержание",null,"Обратно в содержание",null,"Обратно в содержание",null,"Обратно в содержание",null,"Обратно в содержание",null,"Обратно в содержание",null,"Обратно в содержание",null,"Обратно в содержание",null,"Обратно в содержание",null,"Обратно в содержание",null,"Обратно в содержание",null,"Обратно в содержание",null,"Обратно в содержание",null,"Обратно в содержание",null,"Обратно в содержание",null,"Обратно в содержание",null,"Обратно в содержание",null,"Обратно в содержание",null,"Обратно в содержание",null,"Обратно в содержание",null,"Обратно в содержание",null,"Обратно в содержание",null,"Обратно в содержание",null,"Обратно в содержание",null,"Обратно в содержание",null,"Обратно в содержание",null,"Обратно в содержание",null,"Обратно в содержание",null,"Обратно в содержание",null,"Обратно в содержание",null,"Обратно в содержание",null,"Обратно в содержание",null,"Обратно в содержание",null,"Обратно в содержание",null,"Обратно в содержание",null,"Обратно в содержание",null,"Обратно в содержание",null,"Обратно в содержание",null,"Обратно в содержание",null,"Обратно в содержание",null,"Обратно в содержание",null,"Обратно в содержание",null,"Обратно в содержание",null,"Обратно в содержание",null,"Обратно в содержание",null,"Обратно в содержание",null,"Обратно в содержание",null,"Обратно в содержание",null,"Обратно в содержание",null,"Обратно в содержание",null,"Обратно в содержание",null,"Обратно в содержание",null,"Обратно в содержание",null,"Обратно в содержание",null,"Обратно в содержание",null,"Обратно в содержание",null,"Обратно в содержание",null,"Обратно в содержание",null,"Обратно в содержание",null,"Обратно в содержание",null,"Обратно в содержание",null,"Обратно в содержание",null,"Обратно в содержание",null,"Обратно в содержание",null,"Обратно в содержание",null,"Обратно в содержание",null,"Обратно в содержание",null,"Обратно в содержание",null,"Обратно в содержание",null,"Обратно в содержание",null,"Обратно в содержание",null,"Обратно в содержание",null,"Обратно в содержание",null,"Обратно в содержание",null,"Обратно в содержание",null,"Обратно в содержание",null,"Обратно в содержание",null,"Обратно в содержание",null,"Обратно в содержание",null,"Обратно в содержание",null,"Обратно в содержание",null,"Обратно в содержание",null,"Обратно в содержание",null,"Обратно в содержание",null,"Обратно в содержание",null,"Обратно в содержание",null,"Обратно в содержание",null,"Обратно в содержание",null,"Обратно в содержание",null,"Обратно в содержание",null,"Обратно в содержание",null,"Обратно в содержание",null,"Обратно в содержание",null,"Обратно в содержание",null,"Обратно в содержание",null,"Обратно в содержание",null,"Обратно в содержание",null,"Обратно в содержание",null,"Обратно в содержание",null,"Обратно в содержание",null,"Обратно в содержание",null,"Обратно в содержание",null,"Обратно в содержание",null,"Обратно в содержание",null,"Обратно в содержание",null,"Обратно в содержание",null,"Обратно в содержание",null,"Обратно в содержание",null,"Обратно в содержание",null,"Обратно в содержание",null,"Обратно в содержание",null,"Обратно в содержание",null,"Обратно в содержание",null,"Обратно в содержание",null,"Обратно в содержание",null,"Обратно в содержание",null,"Обратно в содержание",null,"Обратно в содержание",null,"Обратно в содержание",null,"Обратно в содержание",null,"Обратно в содержание",null,"Обратно в содержание",null,"Обратно в содержание",null,"Обратно в содержание",null,"Обратно в содержание",null,"Обратно в содержание",null,"Обратно в содержание",null,"Обратно в содержание",null,"Обратно в содержание",null,"Обратно в содержание",null,"Обратно в содержание",null,"Обратно в содержание",null,"Обратно в содержание",null,"Обратно в содержание",null,"Обратно в содержание",null,"Обратно в содержание",null,"Обратно в содержание",null,"Обратно в содержание",null,"Обратно в содержание",null,"Обратно в содержание",null,"Обратно в содержание",null,"Обратно в содержание",null,"Обратно в содержание",null,"Обратно в содержание",null,"Обратно в содержание",null,"Обратно в содержание",null,"Обратно в содержание",null,"Обратно в содержание",null,"Обратно в содержание",null,"Обратно в содержание",null,"Обратно в содержание",null,"Обратно в содержание",null,"Обратно в содержание",null,"Обратно в содержание",null,"Обратно в содержание",null,"Обратно в содержание",null,"Обратно в содержание",null,"Обратно в содержание",null,"Обратно в содержание",null,"Обратно в содержание",null,"Обратно в содержание",null,"Обратно в содержание",null,"Обратно в содержание",null,"Обратно в содержание",null,"Обратно в содержание",null,"Обратно в содержание",null,"Обратно в содержание",null,"Обратно в содержание",null,"Обратно в содержание",null,"Обратно в содержание",null,"Обратно в содержание",null,"Обратно в содержание",null,"Обратно в содержание",null,"Обратно в содержание",null,"Обратно в содержание",null,"Обратно в содержание",null,"Обратно в содержание",null,"Обратно в содержание",null,"Обратно в содержание",null,"Обратно в содержание",null,"Обратно в содержание",null,"Обратно в содержание",null,"Обратно в содержание",null,"Обратно в содержание",null,"Обратно в содержание",null,"Обратно в содержание",null,"Обратно в содержание",null,"Обратно в содержание",null,"Обратно в содержание",null,"Обратно в содержание",null,"Обратно в содержание",null,"Обратно в содержание",null,"Обратно в содержание",null,"Обратно в содержание",null,"Обратно в содержание",null,"Обратно в содержание",null,"Обратно в содержание",null,"Обратно в содержание",null,"Обратно в содержание",null,"Обратно в содержание",null,"Обратно в содержание",null,"Обратно в содержание",null,"Обратно в содержание",null,"Обратно в содержание",null,"Обратно в содержание",null,"Обратно в содержание",null,"Обратно в содержание",null,"Обратно в содержание",null,"Обратно в содержание",null,"Обратно в содержание",null,"Обратно в содержание",null,"Обратно в содержание",null,"Обратно в содержание",null,"Обратно в содержание",null,"Обратно в содержание",null,"Обратно в содержание",null,"Обратно в содержание",null,"Обратно в содержание",null,"Обратно в содержание",null,"Обратно в содержание",null,"Обратно в содержание",null,"Обратно в содержание",null,"Обратно в содержание",null,"Обратно в содержание",null,"Обратно в содержание",null,"Обратно в содержание",null,"Обратно в содержание",null,"Обратно в содержание",null,"Обратно в содержание",null,"Обратно в содержание",null,"Обратно в содержание",null,"Обратно в содержание",null,"Обратно в содержание",null,"Обратно в содержание",null,"Обратно в содержание",null,"Обратно в содержание",null,"Обратно в содержание",null,"Обратно в содержание",null,"Обратно в содержание",null,"Обратно в содержание",null,"Обратно в содержание",null,"Обратно в содержание",null,"Обратно в содержание",null,"Обратно в содержание",null,"Обратно в содержание",null,"Обратно в содержание",null,"Обратно в содержание",null,"Обратно в содержание",null,"Обратно в содержание",null,"Обратно в содержание",null,"Обратно в содержание",null,"Обратно в содержание",null,"Обратно в содержание",null,"Обратно в содержание",null,"Обратно в содержание",null,"Обратно в содержание",null,"Обратно в содержание",null,"Обратно в содержание",null,"Обратно в содержание",null,"Обратно в содержание",null,"Обратно в содержание",null,"Обратно в содержание",null,"Обратно в содержание",null,"Обратно в содержание",null,"Обратно в содержание",null,"Обратно в содержание",null,"Обратно в содержание",null,"Обратно в содержание",null,"Обратно в содержание",null,"Обратно в содержание",null,"Обратно в содержание",null,"Обратно в содержание",null,"Обратно в содержание",null,"Обратно в содержание",null,"Обратно в содержание",null,"Обратно в содержание",null,"Обратно в содержание",null,"Обратно в содержание",null,"Обратно в содержание",null,"Обратно в содержание",null,"Обратно в содержание",null,"Обратно в содержание",null,"Обратно в содержание",null,"Обратно в содержание",null,"Обратно в содержание",null,"Обратно в содержание",null,"Обратно в содержание",null,"Обратно в содержание",null,"Обратно в содержание",null,"Обратно в содержание",null,"Обратно в содержание",null,"Обратно в содержание",null,"Обратно в содержание",null,"Обратно в содержание",null,"Обратно в содержание",null,"Обратно в содержание",null,"Обратно в содержание",null,"Обратно в содержание",null,"Обратно в содержание",null,"Обратно в содержание",null,"Обратно в содержание",null,"Обратно в содержание",null,"Обратно в содержание",null,"Обратно в содержание",null,"Обратно в содержание",null,"Обратно в содержание",null,"Обратно в содержание",null,"Обратно в содержание",null,"Обратно в содержание",null,"Обратно в содержание",null,"Обратно в содержание",null,"Обратно в содержание",null,"Обратно в содержание",null,"Обратно в содержание",null,"Обратно в содержание",null,"Обратно в содержание",null,"Обратно в содержание",null,"Обратно в содержание",null,"Обратно в содержание",null,"Обратно в содержание",null,"Обратно в содержание",null,"Обратно в содержание",null,"Обратно в содержание",null,"Обратно в содержание",null,"Обратно в содержание",null,"Обратно в содержание",null,"Обратно в содержание",null,"Обратно в содержание",null,"Обратно в содержание",null,"Обратно в содержание",null,"Обратно в содержание",null,"Обратно в содержание",null,"Обратно в содержание",null,"Обратно в содержание",null,"Обратно в содержание",null,"Обратно в содержание",null,"Обратно в содержание",null,"Обратно в содержание",null,"Обратно в содержание",null,"Обратно в содержание",null,"Обратно в содержание",null,"Обратно в содержание",null,"Обратно в содержание",null,"Обратно в содержание",null,"Обратно в содержание",null,"Обратно в содержание",null,"Обратно в содержание",null,"Обратно в содержание",null,"Обратно в содержание",null,"Обратно в содержание",null,"Обратно в содержание",null,"Обратно в содержание",null,"Обратно в содержание",null,"Обратно в содержание",null,"Обратно в содержание",null,"Обратно в содержание",null,"Обратно в содержание",null,"Обратно в содержание",null,"Обратно в содержание",null,"Обратно в содержание",null,"Обратно в содержание",null,"Обратно в содержание",null,"Обратно в содержание",null,"Обратно в содержание",null,"Обратно в содержание",null,"Обратно в содержание",null,"Обратно в содержание",null,"Обратно в содержание",null,"Обратно в содержание",null,"Обратно в содержание",null,"Обратно в содержание",null,"Обратно в содержание",null,"Обратно в содержание",null,"Обратно в содержание",null,"Обратно в содержание",null,"Обратно в содержание",null,"Обратно в содержание",null,"Обратно в содержание",null,"Обратно в содержание",null,"Обратно в содержание",null,"Обратно в содержание",null,"Обратно в содержание",null,"Обратно в содержание",null,"Обратно в содержание",null,"Обратно в содержание",null,"Обратно в содержание",null,"Обратно в содержание",null,"Обратно в содержание",null,"Обратно в содержание",null,"Обратно в содержание",null,"Обратно в содержание",null,"Обратно в содержание",null,"Обратно в содержание",null,"Обратно в содержание",null,"Обратно в содержание",null,"Обратно в содержание",null,"Обратно в содержание",null,"Обратно в содержание",null,"Обратно в содержание",null,"Обратно в содержание",null,"Обратно в содержание",null,"Обратно в содержание",null,"Обратно в содержание",null,"Обратно в содержание",null,"Обратно в содержание",null,"Обратно в содержание",null,"Обратно в содержание",null,"Обратно в содержание",null,"Обратно в содержание",null,"Обратно в содержание",null,"Обратно в содержание",null,"Обратно в содержание",null,"Обратно в содержание",null,"Обратно в содержание",null,"Обратно в содержание",null,"Обратно в содержание",null,"Обратно в содержание",null,"Обратно в содержание",null,"Обратно в содержание",null,"Обратно в содержание",null,"Обратно в содержание",null,"Обратно в содержание",null,"Обратно в содержание",null,"Обратно в содержание",null,"Обратно в содержание",null,"Обратно в содержание",null,"Обратно в содержание",null,"Обратно в содержание",null,"Обратно в содержание",null,"Обратно в содержание",null,"Обратно в содержание",null,"Обратно в содержание",null,"Обратно в содержание",null,"Обратно в содержание",null,"Обратно в содержание",null,"Обратно в содержание",null,"Обратно в содержание",null,"Обратно в содержание",null,"Обратно в содержание",null,"Обратно в содержание",null,"Обратно в содержание",null,"Обратно в содержание",null,"Обратно в содержание",null,"Обратно в содержание",null,"Обратно в содержание",null,"Обратно в содержание",null,"Обратно в содержание",null,"Обратно в содержание",null,"Обратно в содержание",null,"Обратно в содержание",null,"Обратно в содержание",null,"Обратно в содержание",null,"Обратно в содержание",null,"Обратно в содержание",null,"Обратно в содержание",null,"Обратно в содержание",null,"Обратно в содержание",null,"Обратно в содержание",null,"Обратно в содержание",null,"Обратно в содержание",null,"Обратно в содержание",null,"Обратно в содержание",null,"Обратно в содержание",null,"Обратно в содержание",null,"Обратно в содержание",null,"Обратно в содержание",null,"Обратно в содержание",null,"Обратно в содержание",null,"Обратно в содержание",null,"Обратно в содержание",null,"Обратно в содержание",null,"Обратно в содержание",null,"Обратно в содержание",null,"Обратно в содержание",null,"Обратно в содержание",null,"Обратно в содержание",null,"Обратно в содержание",null,"Обратно в содержание",null,"Обратно в содержание",null,"Обратно в содержание",null,"Обратно в содержание",null,"Обратно в содержание",null,"Обратно в содержание",null,"Обратно в содержание",null,"Обратно в содержание",null,"Обратно в содержание",null,"Обратно в содержание",null,"Обратно в содержание",null,"Обратно в содержание",null,"Обратно в содержание",null,"Обратно в содержание",null,"Обратно в содержание",null,"Обратно в содержание",null,"Обратно в содержание",null,"Обратно в содержание",null,"Обратно в содержание",null,"Обратно в содержание",null,"Обратно в содержание",null,"Обратно в содержание",null,"Обратно в содержание",null,"Обратно в содержание",null,"Обратно в содержание",null,"Обратно в содержание",null,"Обратно в содержание",null,"Обратно в содержание",null,"Обратно в содержание",null,"Обратно в содержание",null,"Обратно в содержание",null,"Обратно в содержание",null,"Обратно в содержание",null,"Обратно в содержание",null,"Обратно в содержание",null,"Обратно в содержание",null,"Обратно в содержание",null,"Обратно в содержание",null,"Обратно в содержание",null,"Обратно в содержание",null,"Обратно в содержание",null,"Обратно в содержание",null,"Обратно в содержание",null,"Обратно в содержание",null,"Обратно в содержание",null,"Обратно в содержание",null,"Обратно в содержание",null,"Обратно в содержание",null,"Обратно в содержание",null,"Обратно в содержание"]
["2-таблица: 2026-жылдын январь-февралында рыноктук кызмат көрсөтүүлөрдүн аймактар "]
["                     боюнча көлөмү"]
["                    Объем рыночных услуг по территории в январе- феврале 2026г."]
[]
[null,"Млн. сом",null,"Пайыз менен \n"]
[null,"бардыгы \nвсего","анын ичинде калкка \nв т.ч. населению","В процентах "]
[{"$nulls":3},"мурунку жылдын тийиштүү мезгилине карата",null,"жыйынтыкка карата"]
[{"$nulls":3},"соответствующему периоду предыдущего года",null,"к итогу"]
[{"$nulls":3},"бардыгы \nвсего","анын ичинде элге \nв т.ч. населению","бардыгы \nвсего","анын ичинде элге \nв т.ч. населению"]
[]
["Кыргыз Республикасы","437 049,7","198 388,6",110.2,113.5,{"v":100,"d":"100.0"},{"v":100,"d":"100.0"},"Кыргызская Республика"]
["Баткен облусу",{"v":6494.1,"d":"6,494.1"},{"v":5448,"d":"5,448.0"},111.8,103.8,1.5,2.7,"Баткенская область"]
["Жалал-Абад облусу",{"v":17201.5,"d":"17,201.5"},{"v":12916.1,"d":"12,916.1"},124.9,111.4,3.9,6.5,"Джалал-Абадская область"]
["Ысык-Көл облусу",{"v":7420.5,"d":"7,420.5"},{"v":6242.4,"d":"6,242.4"},119.1,120.2,1.7,3.1,"Иссык-Кульская область"]
["Нарын облусу",{"v":3854.9,"d":"3,854.9"},{"v":3413.5,"d":"3,413.5"},110.1,100.4,0.9,1.7,"Нарынская область"]
["Ош облусу",{"v":18349.6,"d":"18,349.6"},{"v":15137,"d":"15,137.0"},{"v":117,"d":"117.0"},109.4,4.2,7.6,"Ошская область "]
["Талас облусу",{"v":4163.5,"d":"4,163.5"},{"v":2793.7,"d":"2,793.7"},112.3,115.3,{"v":1,"d":"1.0"},1.4,"Таласская область"]
["Чүй облусу",{"v":37037.3,"d":"37,037.3"},{"v":25986.9,"d":"25,986.9"},67.7,109.8,8.5,13.1,"Чуйская область"]
["Бишкек ш.",{"v":314810.8,"d":"314,810.8"},{"v":107148.5,"d":"107,148.5"},117.7,116.8,{"v":72,"d":"72.0"},{"v":54,"d":"54.0"},"г.Бишкек"]
["Ош ш.",{"v":27717.5,"d":"27,717.5"},{"v":19302.5,"d":"19,302.5"},{"v":122,"d":"122.0"},110.3,6.3,9.7,"г.Ош"]

{"sheet":"таб3","index":5,"n_rows":16,"n_cols":6,"rows_kept":16,"merged":[[5,1,6,2],[5,3,5,4],[5,5,7,5],[6,3,6,4]]}
[{"$nulls":4},"Обратно в содержание"]
["3-таблица: Январь-февралында дүң жана чекене соода сооданын,"]
["                    автоунааларды жана мотоциклдерди оңдоонун жүгүртүүсү"]
["                    Оборот оптовой и розничной торговли, ремонта автомобилей"]
["                     и мотоциклов в январе-феврале"]
[null,"Млн. сом",null,"Мурунку жылдын тийиштүү мезгилине карата пайыз менен"]
[{"$nulls":3},"В процентах к соответствующему периоду предыдущего года"]
[null,2025,2026,2025,2026]
[]
["Бардыгы",{"v":250263.2,"d":"250,263.2"},{"v":303397.2,"d":"303,397.2"},126.8,111.4,"Всего"]
["   анын ичинде:",{"$nulls":4},"  в том числе:"]
["автоунаалардын жана мотоциклдердин, автотетиктердин, түйүндөрдүн жана шаймандардын соодасы",{"v":6907.4,"d":"6,907.4"},{"v":8960.8,"d":"8,960.8"},143.7,126.6,"торговли автомобилями и мотоциклами, авто деталями, узлами"]
["автоунааны техникалык жактан тейлөө жана оңдоо",720.6,948.8,77.8,123.5,"технического обслуживания и ремонта автомобилей"]
["автоунаалардын жана мотоциклдердин соодасын кошпогондогу дүң соода",{"v":145378.8,"d":"145,378.8"},{"v":171908,"d":"171,908.0"},148.8,109.1,"оптовой торговли, кроме торговли\nавтомобилями и мотоциклами"]
["мотор майын чекене сатуу",{"v":22931.5,"d":"22,931.5"},{"v":29512.3,"d":"29,512.3"},117.3,112.2,"розничной торговли моторным топливом"]
["автоунаалардын жана мотоциклдердин соодасын кошпогондогу чекене соода",{"v":74324.8,"d":"74,324.8"},{"v":92067.3,"d":"92,067.3"},107.1,114.3,"розничной торговли, кроме торговли автомобилями и мотоциклами"]

{"sheet":"таб 4","index":6,"n_rows":18,"n_cols":6,"rows_kept":18,"merged":[[1,0,1,5],[2,0,2,5],[2,8,2,12],[4,1,5,2],[4,3,4,4],[4,5,6,5],[5,3,5,4]]}
[{"$nulls":4},"Обратно в содержание"]
["4-таблица: Январь-февралында аймактар боюнча дүң жана чекене сооданын, \n                      автоунааларды жана мотоциклдерди оңдоонун жүгүртүүсү"]
["                     Оборот оптовой и розничной торговли, ремонта автомобилей и мотоциклов     по территории в январе-феврале\n                   "]
[]
[null,"Млн. сом",null,"Мурунку жылдын тийиштүү мезгилине карата пайыз менен"]
[{"$nulls":3},"В процентах к соответствующему периоду предыдущего года"]
[null,2025,2026,2025,2026]
[]
["Кыргыз Республикасы",{"v":250263.2,"d":"250,263.2"},{"v":303397.2,"d":"303,397.2"},126.8,111.4,"Кыргызская Республика"]
["Ысык-Көл облусу",{"v":4056.2,"d":"4,056.2"},{"v":5583.2,"d":"5,583.2"},108.8,{"v":122,"d":"122.0"},"Исcык-Кульская область"]
["Жалал-Абад облусу",{"v":9822.2,"d":"9,822.2"},{"v":13914.6,"d":"13,914.6"},104.6,131.1,"Джалал-Абадская область"]
["Нарын облусу",{"v":1952.3,"d":"1,952.3"},{"v":2413.3,"d":"2,413.3"},{"v":120,"d":"120.0"},112.6,"Нарынская область"]
["Баткен облусу",{"v":3808.8,"d":"3,808.8"},{"v":4781.4,"d":"4,781.4"},110.8,{"v":113,"d":"113.0"},"Баткенская область"]
["Ош облусу",{"v":12526,"d":"12,526.0"},{"v":16096,"d":"16,096.0"},126.1,118.3,"Ошская область"]
["Талас облусу",{"v":2219.6,"d":"2,219.6"},{"v":2744.5,"d":"2,744.5"},115.1,114.2,"Таласская область"]
["Чүй облусу",{"v":46602.8,"d":"46,602.8"},{"v":33374.1,"d":"33,374.1"},166.3,65.6,"Чуйская область"]
["Бишкек ш.",{"v":153808,"d":"153,808.0"},{"v":203093.2,"d":"203,093.2"},108.7,121.8,"г.Бишкек"]
["Ош ш.",{"v":15467.3,"d":"15,467.3"},{"v":21396.9,"d":"21,396.9"},125.2,124.8,"г.Ош"]

{"sheet":"таб 5","index":7,"n_rows":20,"n_cols":6,"rows_kept":20,"merged":[[1,0,1,5],[3,0,3,5],[3,8,3,12],[6,0,7,0],[6,1,7,2],[6,3,6,4],[6,5,8,5],[7,3,7,4]]}
[{"$nulls":4},"Обратно в содержание"]
["5-таблица: Январь-февралында мотор майларын чекене сатуунун аймактар боюнча "]
["                     жүгүртүлүшү"]
["                    Оборот розничной торговли моторным топливом по территории "]
["                       в январе-феврале"]
[]
[null,"Млн. сом",null,"Мурунку жылдын тийиштүү мезгилине карата пайыз менен"]
[{"$nulls":3},"В процентах к соответствующему периоду предыдущего года"]
[null,2025,2026,2025,2026]
[]
["Кыргыз Республикасы",{"v":22931.5,"d":"22,931.5"},{"v":29512.3,"d":"29,512.3"},117.3,112.2,"Кыргызская Республика"]
["Ысык-Көл облусу",{"v":1644.4,"d":"1,644.4"},{"v":2268.1,"d":"2,268.1"},82.2,120.8,"Исcык-Кульская область"]
["Жалал-Абад облусу",{"v":1547.2,"d":"1,547.2"},{"v":2053.2,"d":"2,053.2"},137.5,115.8,"Джалал-Абадская область"]
["Нарын облусу",785.3,739.7,123.7,81.6,"Нарынская область"]
["Баткен облусу",{"v":1501,"d":"1,501.0"},{"v":1756.3,"d":"1,756.3"},114.4,100.6,"Баткенская область"]
["Ош облусу",{"v":1773.3,"d":"1,773.3"},{"v":2799.8,"d":"2,799.8"},147.8,138.7,"Ошская область"]
["Талас облусу",331.9,429.9,121.4,112.5,"Таласская область"]
["Чүй облусу",{"v":6402.3,"d":"6,402.3"},{"v":7366.8,"d":"7,366.8"},117.5,101.1,"Чуйская область"]
["Бишкек ш.",{"v":7029.3,"d":"7,029.3"},{"v":9534,"d":"9,534.0"},128.6,117.7,"г.Бишкек"]
["Ош ш.",{"v":1916.8,"d":"1,916.8"},{"v":2564.5,"d":"2,564.5"},{"v":221,"d":"221.0"},115.5,"г.Ош"]

{"sheet":"таб 6","index":8,"n_rows":11,"n_cols":6,"rows_kept":11,"merged":[[3,7,3,11],[5,1,6,2],[5,3,5,4],[5,5,7,5],[6,3,6,4]]}
[{"$nulls":4},"Обратно в содержание"]
["6-таблица: Автоунааларды жана мотоциклдерди сатууну кошпогондогу чекене сооданын "]
["                     жүгүртүлүшү"]
["                    Оборот розничной торговли, кроме торговли автомобилями и мотоциклами \n"]
[]
[null,"Млн. сом",null,"Мурунку жылдын тийиштүү мезгилине карата пайыз менен"]
[{"$nulls":3},"В процентах к соответствующему периоду предыдущего года"]
[null,2025,2026,2025,2026]
[]
["Январь",{"v":37806.2,"d":"37,806.20"},{"v":46634.1,"d":"46,634.10"},139.1,113.9,"Январь"]
["Февраль",{"v":36518.6,"d":"36,518.60"},{"v":45433.2,"d":"45,433.20"},123.3,114.6,"Февраль"]

{"sheet":"таб 7","index":9,"n_rows":19,"n_cols":6,"rows_kept":19,"merged":[[1,0,1,5],[6,1,6,2],[6,3,6,4],[6,5,7,5]]}
[{"$nulls":4},"Обратно в содержание"]
["7-таблица: Январь-февралында автоунааларды жана мотоциклдерди сатууну "]
["                      кошпогондогу чекене сооданын аймактар боюнча жүгүртүлүшү"]
["                     Оборот розничной торговли, кроме торговли автомобилями и мотоциклами\n \n "]
["                     по территории в январе-феврале"]
[]
[null,"Млн. сом",null,"Мурунку жылдын тийиштүү мезгилине карата пайыз менен \nВ процентах к соответствующему периоду предыдущего года"]
[null,2025,2026,2025,2026]
[]
["Кыргыз Республикасы",{"v":74324.8,"d":"74,324.8"},{"v":92067.3,"d":"92,067.3"},107.1,114.3,"Кыргызская Республика"]
["Ысык-Көл облусу",{"v":1620.5,"d":"1,620.5"},{"v":2281.6,"d":"2,281.6"},132.3,125.5,"Исcык-Кульская область"]
["Жалал-Абад облусу",{"v":6462.8,"d":"6,462.8"},{"v":7988.7,"d":"7,988.7"},98.2,115.4,"Джалал-Абадская область"]
["Нарын облусу",981.6,{"v":1410.2,"d":"1,410.2"},108.5,133.7,"Нарынская область"]
["Баткен облусу",{"v":1915.3,"d":"1,915.3"},{"v":2124.1,"d":"2,124.1"},104.1,102.5,"Баткенская область"]
["Ош облусу",{"v":9476.2,"d":"9,476.2"},{"v":10679.8,"d":"10,679.8"},122.8,104.7,"Ошская область"]
["Талас облусу",{"v":1223.8,"d":"1,223.8"},{"v":1500.4,"d":"1,500.4"},113.7,114.4,"Таласская область"]
["Чүй облусу",{"v":11932.3,"d":"11,932.3"},{"v":14873.7,"d":"14,873.7"},136.7,115.3,"Чуйская область"]
["Бишкек ш.","31 587,0",{"v":39769.3,"d":"39,769.3"},130.8,116.2,"г.Бишкек"]
["Ош ш.",{"v":9125.3,"d":"9,125.3"},{"v":11439.5,"d":"11,439.5"},138.5,{"v":114,"d":"114.0"},"г.Ош"]

{"sheet":"таб 8,9","index":10,"n_rows":24,"n_cols":15,"rows_kept":24,"merged":[[1,0,1,6],[5,0,8,0],[5,1,5,3],[5,4,5,6],[6,1,8,1],[6,2,6,3],[6,4,8,4],[6,5,6,6],[18,1,18,2],[18,3,18,6],[19,3,19,4],[19,5,19,6],[20,3,20,4],[20,5,20,6],[22,3,22,4],[22,5,22,6],[23,3,23,4],[23,5,23,6]]}
[{"$nulls":4},"Обратно в содержание"]
["8-таблица: Тамактануу ишканаларынын жүгүртүүсүн кошкондогу чекене\n"]
["                    сооданын жүгүртүлүшү"]
["                     Оборот розничной торговли, включая оборот предприятий питания\n \n "]
[]
[null,"Азык-түлүк товарлары \nПродовольственные товары",null,null,"Азык-түлүк эмес товарлар \nНепродовольственные товары"]
[null,"млн.сом","пайыз менен        в процентах",null,"млн.сом","пайыз менен    в процентах"]
[null,null,"мурунку жылдын тийиштүү айына карата","мурунку айга карата",null,"мурунку жылдын тийиштүү айына каратта","мурунку айга карата"]
[null,null,"к соответст-вующему месяцу предыдущего года","к предыдущему месяцу",null,"к соответст-вующему месяцу предыдущего года","к предыдущему месяцу"]
[]
["Январь",{"v":34689.7,"d":"34,689.7"},100.7,74.3,{"v":33329.4,"d":"33,329.4"},130.7,24.3]
["Февраль",{"v":34633.9,"d":"34,633.9"},104.3,97.4,{"v":34495.7,"d":"34,495.7"},133.7,95.7]
[]
["9-таблица: Январь-февралында тамактануу ишканаларынын жүгүртүүсүн кошкондогу "]
["                 азык-түлүк жана азык-түлүк эмес товарлардын чекене сооданын жүгүртүлүшү"]
["                 Оборот розничной торговли, включая оборот предприятий питания,"]
["                  продовольственными и непродовольственными товарами в январе-феврале"]
[]
["                      ","Млн. сом",null,"мурунку жылдын тийиштүү мезгилине карата пайыз менен \nв процентах к соответствующему периоду предыдущего года"]
[null,2025,2026,2025,null,2026]
["Бардыгы\nВсего",{"v":109570.6,"d":"109,570.6"},{"v":137148.7,"d":"137,148.7"},{"v":126,"d":"126.0"},null,117.6]
[null,{"v":61800.6,"d":"61,800.6"},{"v":69323.7,"d":"69,323.7"},{"$nulls":8},{"v":47770,"d":"47,770.00"},{"v":67825,"d":"67,825.00"},101.8,137.2]
["азык-түлүк товарлары продовольственные товары",{"v":61800.6,"d":"61,800.6"},{"v":69323.7,"d":"69,323.7"},{"v":158,"d":"158.0"},null,102.5]
["азык-түлүк эмес товарлар непродовольственные товары",{"v":47770,"d":"47,770.0"},{"v":67825,"d":"67,825.0"},101.8,null,137.2]

{"sheet":"таб 10","index":11,"n_rows":13,"n_cols":5,"rows_kept":13,"merged":[[0,0,0,4],[5,1,7,1],[6,0,7,0],[6,2,6,3]]}
["10-таблица: 2026-жылдын январь-февралында тамактануу ишканаларынын жүгүртүүсүн \n                        "]
["                     кошкондогу сатуунун каналдары боюнча чекене сооданын жүгүртүлүшү "]
["                     Оборот розничной торговли, включая оборот предприятий питания,\n\n "]
["                      по каналам реализации в январе -феврале 2026 года"]
[]
[null,"Млн. сом","Мурунку жылдын тийиштүү мезгилине карата","Жыйынтыкка карата"]
[null,null,"пайыз менен \nв процентах к "]
[null,null,"соответствующему периоду предыдущего года","итогу"]
[]
["Бардыгы",{"v":137148.7,"d":"137,148.7"},114.5,{"v":100,"d":"100.0"},"Всего"]
["анын ичинде:",{"$nulls":3},"в том числе:"]
["соода уюмдары",{"v":103059.6,"d":"103,059.6"},127.1,75.1,"торгующих организаций"]
["буюм-терим, аралаш жана азык-түлүк базарлары",{"v":34089.1,"d":"34,089.1"},90.5,24.9,"вещевых, смешанныхи продовольственных рынков"]

{"sheet":"таб 11.","index":12,"n_rows":12,"n_cols":6,"rows_kept":12,"merged":[[1,0,1,5],[5,1,5,2],[5,3,5,4],[5,5,6,5]]}
[{"$nulls":4},"Обратно в содержание"]
["11-таблица: Январь-февралында мейманканалардын жана ресторандардын кызмат\n"]
["                       көрсөтүүлөрүнүн көлөмү "]
["                      Объем услуг, предоставленных гостиницами и ресторанами \n"]
["                       в январе-феврале"]
[null,"Млн. сом",null,"Мурунку жылдын тийиштүү мезгилине карата пайыз менен \nВ процентах к соответствующему периоду предыдущего года"]
[null,2024,2025,2024,2025]
[]
["Бардыгы",{"v":4221.9,"d":"4,221.9"},{"v":6174.7,"d":"6,174.7"},116.8,137.2,"Всего"]
["  анын ичинде:",{"$nulls":4},"  в том числе:"]
["мейманканалар, ошондой эле туристтик жашоо жана кыска мөөнөткө жашоо үчүн башка орундар",536.7,716.6,125,130.9,"гостиницами, а также прочими местами для туристического и краткосрочного проживания"]
["ресторандар, барлар, тамак-аш менен камсыздоо боюнча мобилдүү жана башка кызмат көрсөтүүлөр",{"v":3685.2,"d":"3,685.20"},{"v":5458.1,"d":"5,458.10"},116.1,138.1,"ресторанами, барами, мобильных и прочих услуг по обеспечению пищей"]

{"sheet":"таб 12.","index":13,"n_rows":19,"n_cols":6,"rows_kept":19,"merged":[[1,0,1,5],[3,8,3,12],[6,1,6,2],[6,3,6,4],[6,5,7,5]]}
[{"$nulls":4},"Обратно в содержание"]
["12-таблица: Январь-февралында мейманканалардын жана ресторандардын\n"]
["                       кызмат көрсөтүүлөрүнүн аймактар боюнча көлөмү"]
["                      Объем услуг, предоставленных гостиницами и ресторанами"]
["                       по территории в январе-феврале"]
[]
[null,"Млн. сом",null,"Мурунку жылдын тийиштүү мезгилине карата пайыз менен \nВ процентах к соответствующему периоду предыдущего года"]
[null,2024,2025,2024,2025]
[]
["Кыргыз Республикасы",{"v":6117.4,"d":"6,117.4"},{"v":7614.3,"d":"7,614.3"},119.4,113.2,"Кыргызская Республика"]
["Баткен облусу",183.4,308.7,150.1,150.3,"Баткенская область"]
["Жалал-Абад облусу",279.8,280.9,103.7,91.4,"Джалал-Абадская область"]
["Ысык-Көл облусу",19.9,28.4,287.9,133.1,"Исcык-Кульская область"]
["Нарын облусу",292.4,325.8,96.6,101.9,"Нарынская область"]
["Ош облусу",351.9,389.2,128.7,101.8,"  Ошская область"]
["Талас облусу",61.1,75.5,113.3,115.3,"Таласская область"]
["Чүй облусу",476.2,544.3,153.8,103.2,"Чуйская область"]
["Бишкек ш.",{"v":3711.6,"d":"3,711.6"},{"v":4827.3,"d":"4,827.3"},147.7,118.4,"г.Бишкек"]
["Ош ш.",741.1,834.2,127.1,102.2,"г.Ош"]

{"sheet":"таб 13.","index":14,"n_rows":17,"n_cols":6,"rows_kept":17,"merged":[[3,0,3,5],[6,1,6,2],[6,3,6,4],[6,5,7,5]]}
[{"$nulls":4},"Обратно в содержание"]
["13-таблица: Январь-февралында транспорттун бардык түрү менен "]
["                       жүктөрдүн ташылышы"]
["                       Перевозки грузов всеми видами транспорта в январе\n-феврале"]
[]
[]
[null,"Млн. сом",null,"Мурунку жылдын тийиштүү мезгилине карата пайыз менен \nВ процентах к соответствующему периоду предыдущего года"]
[null,2024,2025,2024,2025]
[]
["Бардыгы",{"v":8576.4,"d":"8,576.4"},{"v":9181.5,"d":"9,181.5"},110.3,107.1,"Всего"]
["Жерде жүрүүчү транспорт",{"$nulls":4},"Наземный транспорт"]
["Темир жол",{"v":1700.4,"d":"1,700.4"},{"v":1760.5,"d":"1,760.5"},125.5,103.5,"Железнодорожный транспорт"]
["          жөнөтүү",711.5,641.9,146.5,90.2,"отправление"]
["          келүү",{"v":1436.9,"d":"1,436.9"},{"v":1447.9,"d":"1,447.9"},132.1,132.1,"прибытие"]
["Автоунаа",{"v":6738.8,"d":"6,738.8"},{"v":7283.2,"d":"7,283.2"},{"v":107,"d":"107.0"},108.1,"Автомобильный"]
["Түтүк өткөрүү транспорту",133.5,134.8,{"v":114,"d":"114.0"},{"v":101,"d":"101.0"},"Трубопроводный транспорт"]
["Аба транспорту",3.7,{"v":3,"d":"3.0"},127.6,81.1,"Воздушный транспорт"]

{"sheet":"таб 14.","index":15,"n_rows":19,"n_cols":6,"rows_kept":19,"merged":[[1,0,1,5],[3,8,3,12],[6,1,6,2],[6,3,6,4],[6,5,7,5]]}
[{"$nulls":4},"Обратно в содержание"]
[" 14-таблица: Январь-февралында аймактар боюнча транспорттун бардык "]
["                        түрү менен жүктөрдүн ташылышы"]
["                        Перевозки грузов всеми видами транспорта по территории\n                      "]
[" в январе-феврале"]
[]
[null,"Млн. сом",null,"Мурунку жылдын тийиштүү мезгилине карата пайыз менен \nВ процентах к соответствующему периоду предыдущего года"]
[null,2024,2025,2024,2025]
[]
["Кыргыз Республикасы",{"v":8576.4,"d":"8,576.4"},{"v":9181.5,"d":"9,181.5"},110.3,107.1,"Кыргызская Республика"]
["Баткен облусу",230.1,241.5,102.6,104.9,"Баткенская область"]
["Жалал-Абад облусу",{"v":242,"d":"242.0"},250.5,103.9,103.5,"Джалал-Абадская область"]
["Ысык-Көл облусу",309.4,343.6,102.6,111.1,"Исcык-Кульская область"]
["Нарын облусу",262.9,{"v":275,"d":"275.0"},114.4,104.6,"Нарынская область"]
["Ош облусу",608.2,664.7,{"v":103,"d":"103.0"},109.3,"Ошская область"]
["Талас облусу",{"v":2708.1,"d":"2,708.1"},{"v":2994.9,"d":"2,994.9"},120.3,110.6,"Таласская область"]
["Чүй облусу",{"v":1350.6,"d":"1,350.6"},{"v":1412.4,"d":"1,412.4"},101.5,104.6,"Чуйская область"]
["Бишкек ш.",{"v":2751.1,"d":"2,751.1"},{"v":2864.9,"d":"2,864.9"},109.6,104.1,"г.Бишкек"]
["Ош ш.",{"v":114,"d":"114.0"},{"v":134,"d":"134.0"},107.8,117.5,"г.Ош"]

{"sheet":"таб 15.","index":16,"n_rows":15,"n_cols":6,"rows_kept":15,"merged":[[6,1,6,2],[6,3,6,4],[6,5,7,5]]}
[{"$nulls":4},"Обратно в содержание"]
["15-таблица: Январь-февралында транспорттун бардык түрү менен жүк ташуунун "]
["                         жүгүртүлүшүнүн көлөмү"]
["                      Объем грузооборота, выполненного всеми видами транспорта"]
["                        в январе-феврале"]
[]
[null,"Млн. сом",null,"Мурунку жылдын тийиштүү мезгилине карата пайыз менен \nВ процентах к соответствующему периоду предыдущего года"]
[null,2024,2025,2024,2025]
[]
["Бардыгы",582.1,596.3,109.6,102.4,"Всего"]
["Жерде жүрүүчү транспорт",{"$nulls":4},"Наземный транспорт"]
["Темир жол ",207.3,203.3,127.9,98.1,"Железнодорожный"]
["Автоунаа ",235.8,264.4,107.4,112.1,"Автомобильный"]
["Түтүк өткөрүү транспорту",96.7,97.6,113.9,100.9,"Трубопроводный транспорт"]
["Аба транспорту",42.3,31,65.7,73.3,"Воздушный транспорт"]

{"sheet":"таб 16.","index":17,"n_rows":16,"n_cols":6,"rows_kept":16,"merged":[[1,0,1,5],[6,1,6,2],[6,3,6,4],[6,5,7,5]]}
[{"$nulls":4},"Обратно в содержание"]
["16-таблица: Январь-февралында транспорттун бардык түрү менен \n                 "]
["                       жүргүнчүлөрдүн ташылышы"]
["                     Перевозки пассажиров всеми видами транспорта в январе-феврале"]
[]
[]
[null,"Млн. сом",null,"Мурунку жылдын тийиштүү мезгилине карата пайыз менен \nВ процентах к соответствующему периоду предыдущего года"]
[null,2025,2026,2025,2026]
[]
["Бардыгы",{"v":110063.4,"d":"110,063.4"},{"v":116066.4,"d":"116,066.4"},118.9,105.5,"Всего"]
["Жерде жүрүүчү транспорт",{"$nulls":4},"Наземный транспорт"]
["Темир жол ",41.7,53.4,{"v":123,"d":"123.0"},128.1,"Железнодорожный"]
["Автобустар, микроавтобустар",{"v":102944.1,"d":"102,944.1"},{"v":108787.4,"d":"108,787.4"},124.1,105.7,"Автобусы"]
["Такси ",{"v":5704,"d":"5,704.0"},{"v":6113.7,"d":"6,113.7"},101.4,107.2,"Такси "]
["Троллейбустар",{"v":1120,"d":"1,120.0"},841.1,29.4,75.1,"Троллейбусы "]
["Аба транспорту",253.6,270.8,142.5,106.8,"Воздушный транспорт"]

{"sheet":"таб 17.","index":18,"n_rows":19,"n_cols":6,"rows_kept":19,"merged":[[1,0,1,5],[6,1,6,2],[6,3,6,4],[6,5,7,5]]}
[{"$nulls":4},"Обратно в содержание"]
["17-таблица: Январь-февралында аймактар боюнча транспорттун бардык түрү\n"]
["                         менен жүргүнчүлөрдүн ташылышы"]
["                      Перевозки пассажиров всеми видами транспорта по территории\n              "]
["в январе-феврале       "]
["                      "]
[null,"Млн. сом",null,"Мурунку жылдын тийиштүү мезгилине карата пайыз менен \nВ процентах к соответствующему периоду предыдущего года"]
[null,2025,2026,2025,2026]
[]
["Кыргыз Республикасы",{"v":110063.4,"d":"110,063.4"},{"v":116066.4,"d":"116,066.4"},118.9,105.5,"Кыргызская Республика"]
["Баткен облусу",{"v":2099.5,"d":"2,099.5"},{"v":2429.1,"d":"2,429.1"},112.6,115.7,"Баткенская область"]
["Жалал-Абад облусу",{"v":3837,"d":"3,837.0"},{"v":3893.3,"d":"3,893.3"},114.2,101.5,"Джалал-Абадская область"]
["Ысык-Көл облусу",{"v":1825.5,"d":"1,825.5"},{"v":2427.2,"d":"2,427.2"},107.2,{"v":133,"d":"133.0"},"Исcык-Кульская область"]
["Нарын облусу",{"v":1655.2,"d":"1,655.2"},{"v":1902.9,"d":"1,902.9"},113.2,{"v":115,"d":"115.0"},"Нарынская область"]
["Ош облусу",{"v":3266.8,"d":"3,266.8"},{"v":3575.3,"d":"3,575.3"},{"v":107,"d":"107.0"},109.4,"Ошская область"]
["Талас облусу",{"v":1247,"d":"1,247.0"},{"v":1295.6,"d":"1,295.6"},107.8,103.9,"Таласская область"]
["Чүй облусу",{"v":21636,"d":"21,636.0"},{"v":22303.7,"d":"22,303.7"},{"v":106,"d":"106.0"},103.1,"Чуйская область"]
["Бишкек ш.",{"v":69732.2,"d":"69,732.2"},{"v":73364,"d":"73,364.0"},125.9,105.2,"г.Бишкек"]
["Ош ш.",{"v":4764.2,"d":"4,764.2"},{"v":4875.3,"d":"4,875.3"},113.9,102.3,"г.Ош"]

{"sheet":"таб 18.","index":19,"n_rows":19,"n_cols":6,"rows_kept":19,"merged":[[1,0,1,5],[6,1,6,2],[6,3,6,4],[6,5,7,5]]}
[{"$nulls":4},"Обратно в содержание"]
["18-таблица: Январь-февралында аймактар боюнча жүргүнчүлөрдүн автобустар, \n "]
["                         микроавтобустар менен ташылышы"]
["                      Перевозки пассажиров автобусами и микроавтобусами \n\n                      "]
["                        по территории в январе-феврале"]
["                            "]
[null,"Млн. сом",null,"Мурунку жылдын тийиштүү мезгилине карата пайыз менен \nВ процентах к соответствующему периоду предыдущего года"]
[null,2025,2026,2025,2026]
[]
["Кыргыз Республикасы",{"v":102944.1,"d":"102,944.1"},{"v":108787.4,"d":"108,787.4"},124.1,105.7,"Кыргызская Республика"]
["Баткен облусу",{"v":2028.2,"d":"2,028.2"},{"v":2341.8,"d":"2,341.8"},{"v":113,"d":"113.0"},115.5,"Баткенская область"]
["Жалал-Абад облусу",{"v":3617,"d":"3,617.0"},{"v":3661.5,"d":"3,661.5"},{"v":115,"d":"115.0"},101.2,"Джалал-Абадская область"]
["Ысык-Көл облусу",{"v":1570.4,"d":"1,570.4"},{"v":2137.7,"d":"2,137.7"},107.9,136.1,"Исcык-Кульская область"]
["Нарын облусу",{"v":369,"d":"369.0"},493.3,117.1,133.7,"Нарынская область"]
["Ош облусу",{"v":2847.5,"d":"2,847.5"},{"v":2904,"d":"2,904.0"},106.5,{"v":102,"d":"102.0"},"Ошская область"]
["Талас облусу",959.1,993.4,105.1,103.6,"Таласская область"]
["Чүй облусу",{"v":20983.8,"d":"20,983.8"},{"v":21628.9,"d":"21,628.9"},106.1,103.1,"Чуйская область"]
["Бишкек ш.",{"v":66966,"d":"66,966.0"},{"v":70639.8,"d":"70,639.8"},135.4,105.5,"г.Бишкек"]
["Ош ш.",{"v":3603.1,"d":"3,603.1"},{"v":3987,"d":"3,987.0"},{"v":105,"d":"105.0"},110.7,"г.Ош"]

{"sheet":"таб 19.","index":20,"n_rows":16,"n_cols":6,"rows_kept":16,"merged":[[6,1,6,2],[6,3,6,4],[6,5,7,5]]}
[{"$nulls":4},"Обратно в содержание"]
["19-таблица: Январь-февралында транспорттун бардык түрү менен жүргүнчүлөрдү"]
["                         ташуунун жүгүртүү көлөмү "]
["                      Объем пассажирооборота, выполненного всеми видами транспорта"]
["                         в январе-феврале     "]
[]
[null,"Млн. сом",null,"Мурунку жылдын тийиштүү мезгилине карата пайыз менен \nВ процентах к соответствующему периоду предыдущего года"]
[null,2025,2026,2025,2026]
[]
["Бардыгы",{"v":1642.4,"d":"1,642.4"},{"v":1716.2,"d":"1,716.2"},107.8,104.5,"Всего"]
["Жерде жүрүүчү транспорт",{"$nulls":4},"Наземный транспорт"]
["Темир жол ",3.1,{"v":4,"d":"4.0"},{"v":124,"d":"124.0"},{"v":129,"d":"129.0"},"Железнодорожный"]
["Автобустар, микроавтобустар",{"v":1148,"d":"1,148.0"},{"v":1203.2,"d":"1,203.2"},104.8,104.8,"Автобусы"]
["Троллейбустар",170.5,197.8,116.3,{"v":116,"d":"116.0"},"Троллейбусы"]
["Такси",4.7,3.5,30.1,74.5,"Такси"]
["Аба транспорту",316.1,307.7,119.9,97.3,"Воздушный транспорт"]

{"sheet":"таб 20.","index":21,"n_rows":84,"n_cols":5,"rows_kept":84,"merged":[[1,0,2,4],[4,0,4,4],[5,0,7,0],[5,1,7,1],[5,2,5,3],[5,4,7,4],[6,2,7,2],[6,3,7,3],[8,1,8,3],[15,1,15,3],[22,1,22,3],[29,1,29,3],[36,1,36,3],[43,0,43,2],[50,1,50,3],[57,1,57,3],[64,1,64,3],[71,1,71,3],[78,0,78,4],[79,0,79,4],[80,0,80,4],[81,0,81,4],[82,0,82,4],[83,0,83,4]]}
[{"$nulls":3},"Обратно в содержание"]
["20-таблица: 2026-жылдын январь-февралында дүң жана чекене сооданын, автоунааларды "]
[]
["                      Оборот оптовой и розничной торговли, ремонта автомобилей и мотоциклов"]
["                      в январе - феврале 2026г.\n"]
[null,"Млн. сом\nМлн сомов","Пайыз менен \nВ процентах"]
[null,null,"жыйынтыкка\nкарата1\n\nк итогу\nвсего1","мурунку жылдын тийиштүү мезгилине карата\n к соответ-ствующему периоду предыдущего года\n"]
[]
[null,"Кыргыз Республикасы"]
["Бардыгы",{"v":303397.2,"d":"303,397.2"},{"v":100,"d":"100.0"},111.4,"Всего"]
["Автоунааларды жана мотоциклдерди, тетиктерин жана шаймандарын сатуу",{"v":8960.8,"d":"8,960.8"},{"$f":"B11/B10*100","v":{"v":2.9534880348269525,"d":"3.0"}},126.6,"Торговля автомобилями и мотоциклами, автодеталями, узлами  и принадлежностями"]
["Автоунааны техникалык жактан тейлөө жана оңдоо              ",948.8,{"$f":"B12/B10*100","v":{"v":0.31272536463751144,"d":"0.3"}},123.5,"Техническое обслуживание и ремонт автомобилей"]
["Дүң сода2",{"v":171908,"d":"171,908.0"},{"$f":"B13/B10*100","v":{"v":56.66103708274169,"d":"56.7"}},109.1,"Оптовая торговля2"]
["Мотор майын чекене сатуу",{"v":29512.3,"d":"29,512.3"},{"$f":"B14/B10*100","v":{"v":9.72728159653418,"d":"9.7"}},112.2,"Розничная торговля моторным топливом"]
["Чекене соода3",{"v":92067.3,"d":"92,067.3"},{"$f":"B15/B10*100","v":{"v":30.345467921259655,"d":"30.3"}},114.3,"Розничная торговля3"]
[null,"Баткен облусу"]
["Бардыгы",{"v":4781.4,"d":"4,781.4"},{"$f":"B17/B10*100","v":{"v":1.5759538980583867,"d":"1.6"}},{"v":113,"d":"113.0"},"Всего"]
["Автоунааларды жана мотоциклдерди, тетиктерин жана шаймандарын сатуу",8.3,{"$f":"B18/B17*100","v":{"v":0.17358932530221277,"d":"0.2"}},102.9,"Торговля автомобилями и мотоциклами, автодеталями, узлами  и принадлежностями"]
["Автоунааны техникалык жактан тейлөө жана оңдоо              ",{"v":31,"d":"31.0"},{"$f":"B19/B17*100","v":{"v":0.6483456728154934,"d":"0.6"}},100.2,"Техническое обслуживание и ремонт автомобилей"]
["Дүң сода2",861.7,{"$f":"B20/B17*100","v":{"v":18.021918266616474,"d":"18.0"}},222.6,"Оптовая торговля2"]
["Мотор майын чекене сатуу",{"v":1756.3,"d":"1,756.3"},{"$f":"B21/B17*100","v":{"v":36.731919521479064,"d":"36.7"}},100.6,"Розничная торговля моторным топливом"]
["Чекене соода3",{"v":2124.1,"d":"2,124.1"},{"$f":"B22/B17*100","v":{"v":44.42422721378676,"d":"44.4"}},102.5,"Розничная торговля3"]
[null,"Жалал-Абад облусу"]
["Бардыгы",{"v":13914.6,"d":"13,914.6"},{"$f":"B24/B10*100","v":{"v":4.58626513362681,"d":"4.6"}},131.1,"Всего"]
["Автоунааларды жана мотоциклдерди, тетиктерин жана шаймандарын сатуу",94.7,{"$f":"B25/B24*100","v":{"v":0.6805801101001825,"d":"0.7"}},64.3,"Торговля автомобилями и мотоциклами, автодеталями, узлами  и принадлежностями"]
["Автоунааны техникалык жактан тейлөө жана оңдоо              ",{"v":50,"d":"50.0"},{"$f":"B26/B24*100","v":{"v":0.35933479941931495,"d":"0.4"}},122.9,"Техническое обслуживание и ремонт автомобилей"]
["Дүң сода2",{"v":3728,"d":"3,728.0"},{"$f":"B27/B24*100","v":{"v":26.792002644704123,"d":"26.8"}},213.9,"Оптовая торговля2"]
["Мотор майын чекене сатуу",{"v":2053.2,"d":"2,053.2"},{"$f":"B28/B24*100","v":{"v":14.755724203354747,"d":"14.8"}},115.8,"Розничная торговля моторным топливом"]
["Чекене соода3",{"v":7988.7,"d":"7,988.7"},{"$f":"B29/B24*100","v":{"v":57.412358242421625,"d":"57.4"}},115.4,"Розничная торговля3"]
[null,"Ысык-Көл облусу"]
["Бардыгы",{"v":5583.2,"d":"5,583.2"},{"v":1.840227925636756,"d":"1.8"},{"v":122,"d":"122.0"},"Всего"]
["Автоунааларды жана мотоциклдерди, тетиктерин жана шаймандарын сатуу",72.1,{"v":1.2913741223671011,"d":"1.3"},121.5,"Торговля автомобилями и мотоциклами, автодеталями, узлами  и принадлежностями"]
["Автоунааны техникалык жактан тейлөө жана оңдоо              ",6.2,{"v":0.11104742799828056,"d":"0.1"},126.8,"Техническое обслуживание и ремонт автомобилей"]
["Дүң сода2",955.2,{"v":17.108468261928643,"d":"17.1"},{"v":117,"d":"117.0"},"Оптовая торговля2"]
["Мотор майын чекене сатуу",{"v":2268.1,"d":"2,268.1"},{"v":40.623656684338734,"d":"40.6"},120.8,"Розничная торговля моторным топливом"]
["Чекене соода3",{"v":2281.6,"d":"2,281.6"},{"v":40.86545350336724,"d":"40.9"},125.5,"Розничная торговля3"]
[null,"Нарын облусу"]
["Бардыгы",{"v":2413.3,"d":"2,413.3"},{"$f":"B38/B10*100","v":{"v":0.7954259301008711,"d":"0.8"}},112.6,"Всего"]
["Автоунааларды жана мотоциклдерди, тетиктерин жана шаймандарын сатуу",10.5,{"$f":"B39/B38*100","v":{"v":0.43508888244312766,"d":"0.4"}},{"v":166,"d":"166.0"},"Торговля автомобилями и мотоциклами, автодеталями, узлами  и принадлежностями"]
["Автоунааны техникалык жактан тейлөө жана оңдоо              ",6.2,{"$f":"B40/B38*100","v":{"v":0.2569096258235611,"d":"0.3"}},149.7,"Техническое обслуживание и ремонт автомобилей"]
["Дүң сода2",246.7,{"$f":"B41/B38*100","v":{"v":10.222516885592341,"d":"10.2"}},130.9,"Оптовая торговля2"]
["Мотор майын чекене сатуу",739.7,{"$f":"B42/B38*100","v":{"v":30.650975842207767,"d":"30.7"}},81.6,"Розничная торговля моторным топливом"]
["Чекене соода3",{"v":1410.2,"d":"1,410.2"},{"$f":"B43/B38*100","v":{"v":58.4345087639332,"d":"58.4"}},133.7,"Розничная торговля3"]
["Ош облусу"]
["Бардыгы",{"v":16096,"d":"16,096.0"},{"$f":"B45/B10*100","v":{"v":5.305256607509891,"d":"5.3"}},118.3,"Всего"]
["Автоунааларды жана мотоциклдерди, тетиктерин жана шаймандарын сатуу",45.6,{"$f":"B46/B45*100","v":{"v":0.28330019880715707,"d":"0.3"}},103.3,"Торговля автомобилями и мотоциклами, автодеталями, узлами  и принадлежностями"]
["Автоунааны техникалык жактан тейлөө жана оңдоо              ",48.4,{"$f":"B47/B45*100","v":{"v":0.30069582504970177,"d":"0.3"}},{"v":102,"d":"102.0"},"Техническое обслуживание и ремонт автомобилей"]
["Дүң сода2",{"v":2522.4,"d":"2,522.4"},{"$f":"B48/B45*100","v":{"v":15.670974155069583,"d":"15.7"}},{"v":197,"d":"197.0"},"Оптовая торговля2"]
["Мотор майын чекене сатуу",{"v":2799.8,"d":"2,799.8"},{"$f":"B49/B45*100","v":{"v":17.394383697813122,"d":"17.4"}},138.7,"Розничная торговля моторным топливом"]
["Чекене соода3",{"v":10679.8,"d":"10,679.8"},{"$f":"B50/B45*100","v":{"v":66.35064612326043,"d":"66.4"}},104.7,"Розничная торговля3"]
[null,"Талас облусу"]
["Бардыгы",{"v":2744.5,"d":"2,744.5"},{"$f":"B52/B10*100","v":{"v":0.9045897589035099,"d":"0.9"}},114.2,"Всего"]
["Автоунааларды жана мотоциклдерди, тетиктерин жана шаймандарын сатуу",10.7,{"$f":"B53/B52*100","v":{"v":0.38987065039169244,"d":"0.4"}},{"v":107,"d":"107.0"},"Торговля автомобилями и мотоциклами, автодеталями, узлами  и принадлежностями"]
["Автоунааны техникалык жактан тейлөө жана оңдоо              ",6.2,{"$f":"B54/B52*100","v":{"v":0.22590635817088725,"d":"0.2"}},106.4,"Техническое обслуживание и ремонт автомобилей"]
["Дүң сода2",797.2,{"$f":"B55/B52*100","v":{"v":29.04718527965021,"d":"29.0"}},114.7,"Оптовая торговля2"]
["Мотор майын чекене сатуу",{"v":430,"d":"430.0"},{"$f":"B56/B52*100","v":{"v":15.6676990344325,"d":"15.7"}},112.5,"Розничная торговля моторным топливом"]
["Чекене соода3",{"v":1500.4,"d":"1,500.4"},{"$f":"B57/B52*100","v":{"v":54.669338677354716,"d":"54.7"}},114.4,"Розничная торговля3"]
[null,"Чуй облусу"]
["Бардыгы",{"v":33374.1,"d":"33,374.1"},{"$f":"B59/B10*100","v":{"v":11.000134477180408,"d":"11.0"}},65.6,"Всего"]
["Автоунааларды жана мотоциклдерди, тетиктерин жана шаймандарын сатуу",752.6,{"$f":"B60/B59*100","v":{"v":2.2550420835318405,"d":"2.3"}},142.6,"Торговля автомобилями и мотоциклами, автодеталями, узлами  и принадлежностями"]
["Автоунааны техникалык жактан тейлөө жана оңдоо              ",296.9,{"$f":"B61/B59*100","v":{"v":0.8896120045184739,"d":"0.9"}},102.4,"Техническое обслуживание и ремонт автомобилей"]
["Дүң сода2",{"v":10084.2,"d":"10,084.2"},{"$f":"B62/B59*100","v":{"v":30.215646264618375,"d":"30.2"}},33.9,"Оптовая торговля2"]
["Мотор майын чекене сатуу",{"v":7366.8,"d":"7,366.8"},{"$f":"B63/B59*100","v":{"v":22.07340422663083,"d":"22.1"}},101.1,"Розничная торговля моторным топливом"]
["Чекене соода3",{"v":14873.7,"d":"14,873.7"},{"$f":"B64/B59*100","v":{"v":44.56659505424866,"d":"44.6"}},115.3,"Розничная торговля3"]
[null,"Бишкек шаары"]
["Бардыгы",{"v":203093.2,"d":"203,093.2"},{"$f":"B66/B10*100","v":{"v":66.93970807904621,"d":"66.9"}},121.8,"Всего"]
["Автоунааларды жана мотоциклдерди, тетиктерин жана шаймандарын сатуу",{"v":7713.9,"d":"7,713.9"},{"$f":"B67/B66*100","v":{"v":3.798206931595937,"d":"3.8"}},127.6,"Торговля автомобилями и мотоциклами, автодеталями, узлами  и принадлежностями"]
["Автоунааны техникалык жактан тейлөө жана оңдоо              ",366.1,{"$f":"B68/B66*100","v":{"v":0.1802620668737309,"d":"0.2"}},167.7,"Техническое обслуживание и ремонт автомобилей"]
["Дүң сода2",{"v":145709.9,"d":"145,709.9"},{"$f":"B69/B66*100","v":{"v":71.74533662377667,"d":"71.7"}},123.3,"Оптовая торговля2"]
["Мотор майын чекене сатуу",{"v":9534,"d":"9,534.0"},{"$f":"B70/B66*100","v":{"v":4.694396464283393,"d":"4.7"}},117.7,"Розничная торговля моторным топливом"]
["Чекене соода3",{"v":39769.3,"d":"39,769.3"},{"$f":"B71/B66*100","v":{"v":19.581797913470268,"d":"19.6"}},116.2,"Розничная торговля3"]
[null,"Ош шаары"]
["Бардыгы",{"v":21396.9,"d":"21,396.9"},{"$f":"B73/B10*100","v":{"v":7.052438189937152,"d":"7.1"}},124.8,"Всего"]
["Автоунааларды жана мотоциклдерди, тетиктерин жана шаймандарын сатуу",252.4,{"$f":"B74/B73*100","v":{"v":1.1796101304394562,"d":"1.2"}},110.3,"Торговля автомобилями и мотоциклами, автодеталями, узлами  и принадлежностями"]
["Автоунааны техникалык жактан тейлөө жана оңдоо              ",137.8,{"$f":"B75/B73*100","v":{"v":0.6440185260481659,"d":"0.6"}},{"v":101,"d":"101.0"},"Техническое обслуживание и ремонт автомобилей"]
["Дүң сода2",{"v":7002.7,"d":"7,002.7"},{"$f":"B76/B73*100","v":{"v":32.72763811580182,"d":"32.7"}},154.3,"Оптовая торговля2"]
["Мотор майын чекене сатуу",{"v":2564.5,"d":"2,564.5"},{"$f":"B77/B73*100","v":{"v":11.98538105987316,"d":"12.0"}},115.5,"Розничная торговля моторным топливом"]
["Чекене соода3",{"v":11439.5,"d":"11,439.5"},{"$f":"B78/B73*100","v":{"v":53.4633521678374,"d":"53.5"}},{"v":114,"d":"114.0"},"Розничная торговля3"]
["1 Республика боюнча сооданын жалпы жүгүртүү көлөмүнүн ичинде облустардагы соода жүгүртүү көлөмүнүн салыштырма салмагы, экономикалык ишмердиктин түрлөрү боюнча, облустардагы сооданын жалпы жүгүртүү көлмүнүн ичиндеги салыштырма салмагы "]
[" Удельный вес оборота торговли в общем объеме республики, по видам экономической деятельности области в общем объеме оборота области"]
["2Дүң соода - керектөө товарларынын соода жүгүртүүсү, буга автоунааларды жана мотоциклдерди сатуу кирбейт"]
["Оптовая торговля - оборот потребительских товаров, исключая оборот торговли автомобилями и мотоциклами"]
["3 Чекене соода, буга автоунааларды жана мотоциклдерди сатуу кирбейт"]
["Розничная трговля, кроме торговли автомобилями и мотоциклами"]

{"sheet":"таб 21","index":22,"n_rows":79,"n_cols":5,"rows_kept":79,"merged":[[1,0,1,4],[4,0,4,4],[6,0,6,4],[7,0,9,0],[7,1,9,1],[7,2,7,3],[7,4,9,4],[8,2,9,2],[8,3,9,3],[10,1,10,3],[21,0,21,4],[32,0,32,4],[43,1,43,3],[54,1,54,3],[65,0,66,0],[65,1,66,3],[65,4,66,4]]}
[{"$nulls":3},"Обратно в содержание"]
["21-таблица: 2026-жылдын январь-февралында экономикалык ишмердиктин түрлөрү \n\n"]
["                       боюнча дүң жана чекене сооданын, автоунааларды жана мотоциклдерди "]
["                       оңдоонун  аймактар боюнча жүгүртүлүшү"]
["                       Оборот оптовой и розничной торговли, ремонта автомобилей и  \n"]
["                       мотоциклов по видам экономической деятельности"]
["                       в разрезе территорий в январе - феврале 2026г.\n"]
[null,"Млн. сом\n"," Пайыз менен В процентах"]
[null,null,"жыйынтыкка\nкарата1\n\nк итогу1","мурунку жылдын тийиштүү мезгилине карата\n к соответ-ствующему периоду предыдущего года"]
[]
[null,"Бардыгы     Всего"]
["Кыргыз Республикасы",{"v":303397.2,"d":"303,397.2"},{"v":100,"d":"100.0"},111.4,"Кыргызская Республика"]
["Баткен облусу",{"v":4781.4,"d":"4,781.4"},1.6,{"v":113,"d":"113.0"},"Баткенская область"]
["Жалал-Абад облусу      ",{"v":13914.6,"d":"13,914.6"},4.6,131.1,"Джалал-Абадская область"]
["Ысык-Көл облусу",{"v":5583.2,"d":"5,583.2"},1.8,{"v":122,"d":"122.0"},"Исcык-Кульская область"]
["Нарын облусу",2413.3,0.8,112.6,"Нарынская область"]
["Ош облусу",{"v":16096,"d":"16,096.0"},5.3,118.3,"Ошская область"]
["Талас облусу",{"v":2744.5,"d":"2,744.5"},0.9,114.2,"Таласская область"]
["Чүй облусу",{"v":33374.1,"d":"33,374.1"},{"v":11,"d":"11.0"},65.6,"Чуйская область"]
["Бишкек ш.",{"v":203093.2,"d":"203,093.2"},66.9,121.8,"г.Бишкек"]
["Ош ш.",{"v":21396.9,"d":"21,396.9"},7.1,124.8,"г.Ош"]
["Автоунааларды, мотоциклдерди, тетиктерин жана шаймандарын сатуу\nПродажа автотранспорта и принадлежностей для него"]
["Кыргыз Республикасы",{"v":8960.8,"d":"8,960.8"},{"$f":"B23/B12*100","v":{"v":2.9534880348269525,"d":"3.0"}},126.6,"Кыргызская Республика"]
["Баткен облусу",8.3,{"$f":"B24/B23*100","v":{"v":0.09262565842335507,"d":"0.1"}},102.9,"Баткенская область"]
["Жалал-Абад облусу      ",94.7,{"$f":"B25/B23*100","v":{"v":1.0568252834568344,"d":"1.1"}},64.3,"Джалал-Абадская область"]
["Ысык-Көл облусу",{"v":72,"d":"72.0"},{"$f":"B26/B23*100","v":{"v":0.8034996875278995,"d":"0.8"}},121.5,"Исcык-Кульская область"]
["Нарын облусу",10.5,{"$f":"B27/B23*100","v":{"v":0.11717703776448532,"d":"0.1"}},{"v":166,"d":"166.0"},"Нарынская область"]
["Ош облусу",45.6,{"$f":"B28/B23*100","v":{"v":0.5088831354343363,"d":"0.5"}},103.3,"Ошская область"]
["Талас облусу",10.7,{"$f":"B29/B23*100","v":{"v":0.1194089813409517,"d":"0.1"}},{"v":107,"d":"107.0"},"Таласская область"]
["Чүй облусу",752.6,{"$f":"B30/B23*100","v":{"v":8.398803678243015,"d":"8.4"}},142.6,"Чуйская область"]
["Бишкек ш.",{"v":7713.9,"d":"7,713.9"},{"$f":"B31/B23*100","v":{"v":86.08494777252031,"d":"86.1"}},127.6,"г.Бишкек"]
["Ош ш.",252.5,{"$f":"B32/B23*100","v":{"v":2.8178287652888137,"d":"2.8"}},110.3,"г.Ош"]
["Автоунааны техникалык жактан тейлоо\n Техническое обслуживание автомобилей"]
["Кыргыз Республикасы",948.8,{"$f":"B34/B12*100","v":{"v":0.31272536463751144,"d":"0.3"}},123.5,"Кыргызская Республика"]
["Баткен облусу",{"v":31,"d":"31.0"},{"$f":"B35/B34*100","v":{"v":3.267284991568297,"d":"3.3"}},100.2,"Баткенская область"]
["Жалал-Абад облусу      ",50,{"$f":"B36/B34*100","v":{"v":5.269814502529512,"d":"5.3"}},122.9,"Джалал-Абадская область"]
["Ысык-Көл облусу",6.2,{"$f":"B37/B34*100","v":{"v":0.6534569983136594,"d":"0.7"}},126.8,"Исcык-Кульская область"]
["Нарын облусу",6.2,{"$f":"B38/B34*100","v":{"v":0.6534569983136594,"d":"0.7"}},149.7,"Нарынская область"]
["Ош облусу",48.4,{"$f":"B39/B34*100","v":{"v":5.101180438448567,"d":"5.1"}},{"v":102,"d":"102.0"},"Ошская область"]
["Талас облусу",6.2,{"$f":"B40/B34*100","v":{"v":0.6534569983136594,"d":"0.7"}},106.4,"Таласская область"]
["Чүй облусу",296.9,{"$f":"B41/B34*100","v":{"v":31.292158516020237,"d":"31.3"}},102.4,"Чуйская область"]
["Бишкек ш.",366.1,{"$f":"B42/B34*100","v":{"v":38.585581787521086,"d":"38.6"}},167.7,"г.Бишкек"]
["Ош ш.",137.8,{"$f":"B43/B34*100","v":{"v":14.523608768971332,"d":"14.5"}},{"v":101,"d":"101.0"},"г.Ош"]
[null,"Оптовая торговля   Дүң соода"]
["Кыргыз Республикасы",{"v":171908,"d":"171,908.0"},{"$f":"B45/B12*100","v":{"v":56.66103708274169,"d":"56.7"}},109.1,"Кыргызская Республика"]
["Баткен облусу",861.7,{"$f":"B46/B45*100","v":{"v":0.50125648602741,"d":"0.5"}},222.6,"Баткенская область"]
["Жалал-Абад облусу      ",{"v":3728,"d":"3,728.0"},{"$f":"B47/B45*100","v":{"v":2.16860181027061,"d":"2.2"}},213.9,"Джалал-Абадская область"]
["Ысык-Көл облусу",955.2,{"$f":"B48/B45*100","v":{"v":0.5556460432324267,"d":"0.6"}},{"v":117,"d":"117.0"},"Исcык-Кульская область"]
["Нарын облусу",246.7,{"$f":"B49/B45*100","v":{"v":0.14350699211205992,"d":"0.1"}},130.9,"Нарынская область"]
["Ош облусу",{"v":2522.4,"d":"2,522.4"},{"$f":"B50/B45*100","v":{"v":1.4672964608976895,"d":"1.5"}},{"v":197,"d":"197.0"},"Ошская область"]
["Талас облусу",797.2,{"$f":"B51/B45*100","v":{"v":0.46373641715336117,"d":"0.5"}},114.7,"Таласская область"]
["Чүй облусу",{"v":10084.2,"d":"10,084.2"},{"$f":"B52/B45*100","v":{"v":5.866044628522233,"d":"5.9"}},33.9,"Чуйская область"]
["Бишкек ш.",{"v":145709.9,"d":"145,709.9"},{"$f":"B53/B45*100","v":{"v":84.76039509505084,"d":"84.8"}},123.3,"г.Бишкек"]
["Ош ш.",{"v":7002.7,"d":"7,002.7"},{"$f":"B54/B45*100","v":{"v":4.073516066733369,"d":"4.1"}},154.3,"г.Ош"]
[null,"Мотор майын чекене сатуу\nРозничная торговля моторным топливом"]
["Кыргыз Республикасы",{"v":29512.3,"d":"29,512.3"},{"$f":"B56/B12*100","v":{"v":9.72728159653418,"d":"9.7"}},112.2,"Кыргызская Республика"]
["Баткен облусу",{"v":1756.3,"d":"1,756.3"},{"$f":"B57/B56*100","v":{"v":5.951078025094621,"d":"6.0"}},100.6,"Баткенская область"]
["Жалал-Абад облусу      ",{"v":2053.2,"d":"2,053.2"},{"$f":"B58/B56*100","v":{"v":6.957099243366324,"d":"7.0"}},115.8,"Джалал-Абадская область"]
["Ысык-Көл облусу",{"v":2268.1,"d":"2,268.1"},{"$f":"B59/B56*100","v":{"v":7.68527020937033,"d":"7.7"}},120.8,"Исcык-Кульская область"]
["Нарын облусу",739.7,{"$f":"B60/B56*100","v":{"v":2.506412580517276,"d":"2.5"}},81.6,"Нарынская область"]
["Ош облусу",{"v":2799.8,"d":"2,799.8"},{"$f":"B61/B56*100","v":{"v":9.486891906086615,"d":"9.5"}},138.7,"Ошская область"]
["Талас облусу",{"v":430,"d":"430.0"},{"$f":"B62/B56*100","v":{"v":1.4570196155501265,"d":"1.5"}},112.5,"Таласская область"]
["Чүй облусу",{"v":7366.8,"d":"7,366.8"},{"$f":"B63/B56*100","v":{"v":24.961795590313194,"d":"25.0"}},101.1,"Чуйская область"]
["Бишкек ш.",{"v":9534,"d":"9,534.0"},{"$f":"B64/B56*100","v":{"v":32.30517445268583,"d":"32.3"}},117.7,"г.Бишкек"]
["Ош ш.",{"v":2564.4,"d":"2,564.4"},{"$f":"B65/B56*100","v":{"v":8.689258377015685,"d":"8.7"}},115.5,"г.Ош"]
[null,"Чекене сода \nРозничная торговля"]
[]
["Кыргыз Республикасы",{"v":92067.3,"d":"92,067.3"},{"$f":"B68/B12*100","v":{"v":30.345467921259655,"d":"30.3"}},114.3,"Кыргызская Республика"]
["Баткен облусу",{"v":2124.1,"d":"2,124.1"},{"$f":"B69/B68*100","v":{"v":2.3071166418478657,"d":"2.3"}},102.5,"Баткенская область"]
["Жалал-Абад облусу      ",{"v":7988.7,"d":"7,988.7"},{"$f":"B70/B68*100","v":{"v":8.677022134894798,"d":"8.7"}},115.4,"Джалал-Абадская область"]
["Ысык-Көл облусу",{"v":2281.6,"d":"2,281.6"},{"$f":"B71/B68*100","v":{"v":2.478187152224514,"d":"2.5"}},125.5,"Исcык-Кульская область"]
["Нарын облусу",{"v":1410.2,"d":"1,410.2"},{"$f":"B72/B68*100","v":{"v":1.531705611004124,"d":"1.5"}},133.7,"Нарынская область"]
["Ош облусу",{"v":10679.7,"d":"10,679.7"},{"$f":"B73/B68*100","v":{"v":11.599883997901536,"d":"11.6"}},104.7,"Ошская область"]
["Талас облусу",{"v":1500.4,"d":"1,500.4"},{"$f":"B74/B68*100","v":{"v":1.629677420756338,"d":"1.6"}},114.4,"Таласская область"]
["Чүй облусу",{"v":14873.7,"d":"14,873.7"},{"$f":"B75/B68*100","v":{"v":16.155247302788286,"d":"16.2"}},115.3,"Чуйская область"]
["Бишкек ш.",{"v":39769.4,"d":"39,769.4"},{"$f":"B76/B68*100","v":{"v":43.19600987538464,"d":"43.2"}},116.2,"г.Бишкек"]
["Ош ш.",{"v":11439.5,"d":"11,439.5"},{"$f":"B77/B68*100","v":{"v":12.4251498631979,"d":"12.4"}},{"v":114,"d":"114.0"},"г.Ош"]
["1 Республика боюнча сооданын жалпы жүгүртүү көлөмүнүн ичинде облустардагы соода жүгүртүү көлөмүнүн салыштырма салмагы "]
["1 Удельный вес объемов оборота торговли областей в общем объеме республики "]

{"sheet":"таб22","index":23,"n_rows":44,"n_cols":5,"rows_kept":44,"merged":[[1,0,1,4],[5,0,7,0],[5,1,7,1],[5,2,5,3],[5,4,7,4],[6,2,7,2],[6,3,7,3],[8,1,8,3],[19,0,19,4],[30,0,30,4]]}
[{"$nulls":3},"Обратно в содержание"]
["22-таблица: 2026-жылдын январь-февралында мейманканалардын жана ресторандардын \n\n\n"]
["                         кызмат көрсөтүүлөрүнүн көлөмү"]
["                       Объем предоставленных услуг гостиницами и ресторанами "]
["                         в январе - феврале 2026г."]
[null,"Млн. сом\n"," Пайыз менен \nВ процентах"]
[null,null,"жыйынтыкка\nкарата1\n\nк итогу1\n","мурунку жылдын тийиштүү мезгилине карата\n к соответ-ствующему периоду предыдущего года"]
[]
[null,"Бардыгы\nВсего"]
["Кыргыз Республикасы",{"v":7614.3,"d":"7,614.3"},{"v":100,"d":"100.0"},113.2,"Кыргызская Республика"]
["Баткен облусу",325.8,4.3,101.9,"Баткенская область"]
["Жалал-Абад облусу      ",280.9,3.7,91.4,"Джалал-Абадская область"]
["Ысык-Көл облусу",308.7,4.1,150.3,"Исcык-Кульская область"]
["Нарын облусу",28.4,0.4,133.1,"Нарынская область"]
["Ош облусу",389.2,5.1,101.8,"Ошская область"]
["Талас облусу",75.5,{"v":1,"d":"1.0"},115.3,"Таласская область"]
["Чүй облусу",544.3,7.1,103.2,"Чуйская область"]
["Бишкек ш.",{"v":4827.3,"d":"4,827.3"},63.4,118.4,"г.Бишкек"]
["Ош ш.",834.2,{"v":11,"d":"11.0"},102.2,"г.Ош"]
["Мейманканалардын кызмат көрсөтүүлөрү жана туристтик жашоо үчүн кызмат көрсөтүүлөр, кыска мөөнөткө жашоо үчүн ылайыкталган башка жайлардын кызмат көрсөтүүлөрү\nПредоставление услуг гостиницамии услуг для туристического проживания, а также прочими местами для кратковременного проживания"]
["Кыргыз Республикасы",{"v":1006,"d":"1,006.0"},{"$f":"B21/B10*100","v":{"v":13.211982716730361,"d":"13.2"}},124.2,"Кыргызская Республика"]
["Баткен облусу",5.2,{"$f":"B22/B21*100","v":{"v":0.5168986083499005,"d":"0.5"}},192.8,"Баткенская область"]
["Жалал-Абад облусу      ",16.5,{"$f":"B23/B21*100","v":{"v":1.6401590457256463,"d":"1.6"}},66.6,"Джалал-Абадская область"]
["Ысык-Көл облусу",204.4,{"$f":"B24/B21*100","v":{"v":20.318091451292247,"d":"20.3"}},157.2,"Исcык-Кульская область"]
["Нарын облусу",10.3,{"$f":"B25/B21*100","v":{"v":1.0238568588469186,"d":"1.0"}},154.9,"Нарынская область"]
["Ош облусу",2.6,{"$f":"B26/B21*100","v":{"v":0.25844930417495027,"d":"0.3"}},{"v":104,"d":"104.0"},"Ошская область"]
["Талас облусу",1.6,{"$f":"таб22!B27/таб22!B21*100","v":{"v":0.15904572564612326,"d":"0.2"}},55.2,"Таласская область"]
["Чүй облусу",29.6,{"$f":"B28/B21*100","v":{"v":2.9423459244532806,"d":"2.9"}},111.8,"Чуйская область"]
["Бишкек ш.",{"v":662,"d":"662.0"},{"$f":"B29/B21*100","v":{"v":65.8051689860835,"d":"65.8"}},118.9,"г.Бишкек"]
["Ош ш.",73.8,{"$f":"B30/B21*100","v":{"v":7.335984095427435,"d":"7.3"}},117.3,"г.Ош"]
["Ресторан, барлардын кызмат көрсөтүүлөрү жана даяр тамак-ашты камсыздоо боюнча мобилдүү жана башка кызмат көрсөтүүлөр \nПредоставление услуг ресторанами, мобильных и прочих услуг по обеспечению пищей\n"]
["Кыргыз Республикасы",{"v":6608.3,"d":"6,608.3"},{"$f":"B32/B10*100","v":{"v":86.78801728326964,"d":"86.8"}},111.8,"Кыргызская Республика"]
["Баткен облусу",320.5,{"$f":"B33/B32*100","v":{"v":4.849961412163491,"d":"4.8"}},101.2,"Баткенская область"]
["Жалал-Абад облусу      ",{"v":264,"d":"264.0"},{"$f":"B34/B32*100","v":{"v":3.994976015011425,"d":"4.0"}},92.6,"Джалал-Абадская область"]
["Ысык-Көл облусу",104.3,{"$f":"B35/B32*100","v":{"v":1.57831817562762,"d":"1.6"}},138,"Исcык-Кульская область"]
["Нарын облусу",18.2,{"$f":"B36/B32*100","v":{"v":0.2754112252773028,"d":"0.3"}},122.9,"Нарынская область"]
["Ош облусу",386.6,{"$f":"B37/B32*100","v":{"v":5.850218664406882,"d":"5.9"}},101.8,"Ошская область"]
["Талас облусу",73.9,{"$f":"B38/B32*100","v":{"v":1.118290634505092,"d":"1.1"}},118.2,"Таласская область"]
["Чүй облусу",514.7,{"$f":"B39/B32*100","v":{"v":7.7886899807817445,"d":"7.8"}},102.8,"Чуйская область"]
["Бишкек ш.",{"v":4165.5,"d":"4,165.5"},{"$f":"B40/B32*100","v":{"v":63.03436587322005,"d":"63.0"}},118.3,"г.Бишкек"]
["Ош ш.",760.6,{"$f":"B41/B32*100","v":{"v":11.509768019006401,"d":"11.5"}},{"v":101,"d":"101.0"},"г.Ош"]
[]
["1 Республика боюнча сооданын жалпы жүгүртүү көлөмүнүн ичинде облустардагы соода жүгүртүү көлөмүнүн салыштырма салмагы "]
["1 Удельный вес объемов оборота торговли областей в общем объеме республики "]

{"sheet":"таб 23.","index":24,"n_rows":80,"n_cols":5,"rows_kept":80,"merged":[[4,0,4,4],[5,0,7,0],[5,1,7,1],[5,2,5,3],[5,4,7,4],[6,2,7,2],[6,3,7,3],[78,0,78,4]]}
[{"$nulls":3},"Обратно в содержание"]
["23-таблица: 2026-жылдын январь-февралында тамактануу ишканаларынын жүгүртүүсүн"]
["                     кошкондогу сатуунун бардык каналдары боюнча чекене сооданын жүгүртүлүшү    "]
["                      Оборот розничной торговли, включая оборот предприятий питания по всем "]
["                    каналам реализации в январе-феврале 2026г.\n"]
[null,"Млн. сом"," Пайыз менен В процентах"]
[null,null,"жыйынтыкка\nкарата1\n\nк итогу1","мурунку жылдын тийиштүү мезгилине карата\n к соответ-ствующему периоду предыдущего года"]
[]
[]
["Кыргыз Республикасы",{"v":137148.7,"d":"137,148.7"},{"v":100,"d":"100.0"},114.5,"Кыргызская Республика"]
["Баткен облусу",{"v":4209.2,"d":"4,209.2"},{"$f":"B11/B10*100","v":{"v":3.0690775778406936,"d":"3.1"}},101.6,"Баткенская область"]
["Баткен",174.7,{"$f":"B12/B11*100","v":{"v":4.150432386201654,"d":"4.2"}},106.2,"Баткен"]
["Баткен ш.",485.7,{"$f":"B13/B11*100","v":{"v":11.539009788083247,"d":"11.5"}},165.3,"г.Баткен "]
["Кадамжай",{"v":1066.7,"d":"1,066.7"},{"$f":"B14/B11*100","v":{"v":25.34210776394564,"d":"25.3"}},93.2,"Кадамжайский"]
["Лейлек",815.8,{"$f":"B15/B11*100","v":{"v":19.381355126864964,"d":"19.4"}},93.8,"Лейлекский"]
["Сүлүктү ш.",167.4,{"$f":"B16/B11*100","v":{"v":3.977002755868099,"d":"4.0"}},105.1,"г.Сулюкта"]
["Кызыл-Кыя ш.",{"v":1498.9,"d":"1,498.9"},{"$f":"B17/B11*100","v":{"v":35.6100921790364,"d":"35.6"}},99.3,"г.Кызыл-Кия"]
["Жалал-Абад облусу",{"v":10400.9,"d":"10,400.9"},{"$f":"B18/B10*100","v":{"v":7.583666487542352,"d":"7.6"}},113.9,"Джалал-Абадская область"]
["Аксы",{"v":1485.5,"d":"1,485.5"},{"$f":"B19/B18*100","v":{"v":14.282417867684527,"d":"14.3"}},106.4,"Аксыйский"]
["Ала-Бука",{"v":109,"d":"109.0"},{"$f":"B20/B18*100","v":{"v":1.0479862319606956,"d":"1.0"}},92.1,"Ала-Букинский"]
["Базар-Коргон",{"v":2043.7,"d":"2,043.7"},{"$f":"B21/B18*100","v":{"v":19.649261121633707,"d":"19.6"}},101.8,"Базар-Коргонский"]
["Ноокен",570.2,{"$f":"B22/B18*100","v":{"v":5.482217884990723,"d":"5.5"}},119.3,"Ноокенский"]
["Сузак",670.5,{"$f":"B23/B18*100","v":{"v":6.446557509446298,"d":"6.4"}},121.5,"Сузакский"]
["Тогуз-Торо",128.6,{"$f":"B24/B18*100","v":{"v":1.236431462661885,"d":"1.2"}},109.7,"Тогуз-Тороуский"]
["Токтогул",676.5,{"$f":"B25/B18*100","v":{"v":6.504244824967071,"d":"6.5"}},113.6,"Токтогульский"]
["Чаткал",126.2,{"$f":"B26/B18*100","v":{"v":1.213356536453576,"d":"1.2"}},108.8,"Чаткалский"]
["Манас ш.",{"v":3573.2,"d":"3,573.2"},{"$f":"B27/B18*100","v":{"v":34.35471930313723,"d":"34.4"}},128.4,"г.Манас "]
["Кара-Көл ш.",164.2,{"$f":"B28/B18*100","v":{"v":1.5787095347518,"d":"1.6"}},103.5,"г.Кара-Куль"]
["Майлы-Суу ш.",344.1,{"$f":"B29/B18*100","v":{"v":3.3083675451162886,"d":"3.3"}},{"v":105,"d":"105.0"},"г.Майлуу-Суу"]
["Таш-Көмүр ш.",509.2,{"$f":"B30/B18*100","v":{"v":4.895730177196205,"d":"4.9"}},105.2,"г.Ташкумыр "]
["Ысык-Көл облусу",{"v":4726.1,"d":"4,726.1"},{"$f":"B31/B10*100","v":{"v":3.4459677707481005,"d":"3.4"}},123.4,"Иссык-Кульская область"]
["Ак-Суу",251.4,{"$f":"B32/B31*100","v":{"v":5.3193965426038385,"d":"5.3"}},109.1,"Ак-Суйский"]
["Каракол ш.",{"v":1688.1,"d":"1,688.1"},{"$f":"B33/B31*100","v":{"v":35.71866866972768,"d":"35.7"}},111.8,"г.Каракол "]
["Жети-өгүз",397.2,{"$f":"B34/B31*100","v":{"v":8.404392628171218,"d":"8.4"}},145.6,"Жети-Огүзский"]
["Ысык-Көл",547.8,{"$f":"B35/B31*100","v":{"v":11.59095237087662,"d":"11.6"}},130.1,"Иссык-Кульский"]
["Тон",180.4,{"$f":"B36/B31*100","v":{"v":3.817100780770614,"d":"3.8"}},95.3,"Тонский"]
["Түп",139.9,{"$f":"B37/B31*100","v":{"v":2.960157423668564,"d":"3.0"}},117.2,"Тюпский"]
["Балыкчы ш.",{"v":1521.3,"d":"1,521.3"},{"$f":"B38/B31*100","v":{"v":32.18933158418146,"d":"32.2"}},{"v":140,"d":"140.0"},"г.Балыкчы "]
["Нарын облусу",{"v":2178.6,"d":"2,178.6"},{"$f":"B39/B10*100","v":{"v":1.58849482350179,"d":"1.6"}},110.8,"Нарынская область"]
["Ак-Талаа",98.8,{"$f":"B40/B39*100","v":{"v":4.535022491508308,"d":"4.5"}},119.8,"Ак-Талинский"]
["Ат-Башы",243.2,{"$f":"B41/B39*100","v":{"v":11.163132286789681,"d":"11.2"}},96.6,"Ат-Башынский"]
["Жумгал",187.5,{"$f":"B42/B39*100","v":{"v":8.606444505645829,"d":"8.6"}},95.8,"Жумгальский"]
["Кочкор",529.3,{"$f":"B43/B39*100","v":{"v":24.295419076471127,"d":"24.3"}},102.9,"Кочкорский"]
["Нарын",37.3,{"$f":"B44/B39*100","v":{"v":1.7121086936564767,"d":"1.7"}},92.6,"Нарынский"]
["Нарын ш.",{"v":1082.6,"d":"1,082.6"},{"$f":"B45/B39*100","v":{"v":49.69246304966492,"d":"49.7"}},122.5,"г.Нарын "]
["Ош облусу",{"v":13911.7,"d":"13,911.7"},{"$f":"B46/B10*100","v":{"v":10.143515760630613,"d":"10.1"}},109.8,"Ошская область"]
["Алай",474.2,{"$f":"B47/B46*100","v":{"v":3.408641646959034,"d":"3.4"}},130.1,"Алайский"]
["Араван",559.5,{"$f":"B48/B46*100","v":{"v":4.021794604541501,"d":"4.0"}},104.9,"Араванский"]
["Кара-Кулжа",428.6,{"$f":"B49/B46*100","v":{"v":3.0808599955433196,"d":"3.1"}},101.6,"Кара-Кулжинский"]
["Кара-Суу",{"v":6855.6,"d":"6,855.6"},{"$f":"B50/B46*100","v":{"v":49.27938354047313,"d":"49.3"}},108.5,"Кара-Сууский"]
["Ноокат",{"v":2430.2,"d":"2,430.2"},{"$f":"B51/B46*100","v":{"v":17.4687493261068,"d":"17.5"}},108.5,"Ноокатский"]
["Узгөн",{"v":2778,"d":"2,778.0"},{"$f":"B52/B46*100","v":{"v":19.968803237562625,"d":"20.0"}},111.5,"Узгенский"]
["Чоң-Алай",385.6,{"$f":"B53/B46*100","v":{"v":2.7717676488135887,"d":"2.8"}},{"v":131,"d":"131.0"},"Чоң-Алайский"]
["Талас облусу",{"v":2014.9,"d":"2,014.9"},{"$f":"B54/B10*100","v":{"v":1.4691353253804083,"d":"1.5"}},114.1,"Таласская область"]
["Бакай-Ата",93.6,{"$f":"B55/B54*100","v":{"v":4.645391830860092,"d":"4.6"}},115.8,"Бакай-Атинский"]
["Айтматов",352.4,{"$f":"B56/B54*100","v":{"v":17.48970172216983,"d":"17.5"}},110.4,"Айтматовский"]
["Манас",113.6,{"$f":"B57/B54*100","v":{"v":5.637996922924214,"d":"5.6"}},107.1,"Манасский"]
["Талас",215.1,{"$f":"B58/B54*100","v":{"v":10.675467765149635,"d":"10.7"}},103.7,"Таласский"]
["Талас ш.",{"v":1240.2,"d":"1,240.2"},{"$f":"B59/B54*100","v":{"v":61.55144175889622,"d":"61.6"}},117.8,"г.Талас "]
["Чүй облусу",{"v":23507.8,"d":"23,507.8"},{"$f":"B60/B10*100","v":{"v":17.14037391531965,"d":"17.1"}},{"v":111,"d":"111.0"},"Чүйская область"]
["Аламүдүн",{"v":1532.4,"d":"1,532.4"},{"$f":"B61/B60*100","v":{"v":6.518687414390118,"d":"6.5"}},105.5,"Аламүдүнский"]
["Жайыл",{"v":1208.6,"d":"1,208.6"},{"$f":"B62/B60*100","v":{"v":5.141272258569495,"d":"5.1"}},153.8,"Жайылский"]
[" Кара-Балта ш.",{"v":2094.9,"d":"2,094.9"},{"$f":"B63/B60*100","v":{"v":8.911510222139036,"d":"8.9"}},114.9,"г. Кара-Балта "]
["Кемин",{"v":610,"d":"610.0"},{"$f":"B64/B60*100","v":{"v":2.5948834004032704,"d":"2.6"}},85.7,"Кеминский"]
["Москва",{"v":2372.4,"d":"2,372.4"},{"$f":"B65/B60*100","v":{"v":10.091969473961834,"d":"10.1"}},104.1,"Московский"]
["Панфилов",{"v":1186.6,"d":"1,186.6"},{"$f":"B66/B60*100","v":{"v":5.047686299866427,"d":"5.0"}},72.7,"Панфиловский"]
["Сокулук",{"v":2579.3,"d":"2,579.3"},{"$f":"B67/B60*100","v":{"v":10.972102876492059,"d":"11.0"}},102.2,"Сокулукский"]
["Ысык-Ата",{"v":1028.1,"d":"1,028.1"},{"$f":"B68/B60*100","v":{"v":4.3734420064829544,"d":"4.4"}},155.1,"Ысык-Атинский"]
["Кант ш.",{"v":6933.8,"d":"6,933.8"},{"$f":"B69/B60*100","v":{"v":29.495741838879013,"d":"29.5"}},116.7,"г.Кант "]
["Чүй",{"v":511,"d":"511.0"},{"$f":"B70/B60*100","v":{"v":2.173746586239461,"d":"2.2"}},108.3,"Чүйский"]
["Токмок ш.",{"v":3450.7,"d":"3,450.7"},{"$f":"B71/B60*100","v":{"v":14.678957622576336,"d":"14.7"}},119.4,"г.Токмок "]
["Бишкек ш.",{"v":61182.5,"d":"61,182.5"},{"$f":"B72/B10*100","v":{"v":44.61033899701564,"d":"44.6"}},117.9,"г.Бишкек "]
["Ленин",{"v":15325.7,"d":"15,325.7"},{"$f":"B73/B72*100","v":{"v":25.049156212969397,"d":"25.0"}},115.5,"Ленинский"]
["Октябрь",{"v":11708.1,"d":"11,708.1"},{"$f":"B74/B72*100","v":{"v":19.136354349691498,"d":"19.1"}},97.9,"Октябрьский"]
["Биринчи Май",{"v":15994,"d":"15,994.0"},{"$f":"B75/B72*100","v":{"v":26.141462019368284,"d":"26.1"}},{"v":150,"d":"150.0"},"Первомайский"]
["Свердлов",{"v":18154.7,"d":"18,154.7"},{"$f":"B76/B72*100","v":{"v":29.673027417970825,"d":"29.7"}},113.5,"Свердловский"]
["Ош ш.",{"v":15017,"d":"15,017.0"},10.9,113.4,"г.Ош"]
[]
["1 Облус боюнча чекене сооданын жалпы жүгүүртүү көлөмүнүн ичинде райондордогу чекене соода  жүгүүртүү көлөмүнүн салыштырма салмагы "]
["1 Удельный вес оборота розничной торговли районов в общем объеме оборота розничной торговли области."]

{"sheet":"таб 24.","index":25,"n_rows":41,"n_cols":5,"rows_kept":41,"merged":[[5,0,7,0],[5,1,7,1],[5,2,5,3],[5,4,7,4],[6,2,7,2],[6,3,7,3],[8,1,8,3],[19,1,19,3],[30,1,30,3]]}
[{"$nulls":3},"Обратно в содержание"]
["24-таблица: 2026-жылдын январь-февралында буюм-терим, аралаш "]
["                        жана азык-түлүк базарлардын жүгүртүүсү"]
["                      Оборот вещевых, смешанных и продовольственных рынков "]
["                         в январе - феврале 2026г."]
[null,"Млн. сом"," Пайыз менен \nВ процентах"]
[null,null,"жыйынтыкка\nкарата1\n\nк итогу1","мурунку жылдын тийиштүү мезгилине карата\n к соответ-ствующему периоду предыдущего года"]
[]
[null,"                     Бардык базарларда        \n                     На всех типах рынков\n"]
["Кыргыз Республикасы",{"v":34089.1,"d":"34,089.1"},{"v":100,"d":"100.0"},90.5,"Кыргызская Республика"]
["Баткен облусу",800.6,{"$f":"B11/B10*100","v":{"v":2.3485512964554656,"d":"2.3"}},92.5,"Баткенская область"]
["Жалал-Абад облусу      ",{"v":3873.5,"d":"3,873.5"},{"$f":"B12/B10*100","v":{"v":11.362869656283094,"d":"11.4"}},84.9,"Джалал-Абадская область"]
["Ысык-Көл облусу",{"v":370,"d":"370.0"},{"$f":"B13/B10*100","v":{"v":1.0853909314120935,"d":"1.1"}},184.1,"Исcык-Кульская область"]
["Нарын облусу",{"v":1074.8,"d":"1,074.8"},{"$f":"B14/B10*100","v":{"v":3.1529139813019413,"d":"3.2"}},125.6,"Нарынская область"]
["Ош облусу",{"v":9920.2,"d":"9,920.2"},{"$f":"B15/B10*100","v":{"v":29.10079761566014,"d":"29.1"}},104.3," Ошская область"]
["Талас облусу",427.8,{"$f":"B16/B10*100","v":{"v":1.2549465958326855,"d":"1.3"}},118.2,"Таласская область"]
["Чүй облусу",{"v":7174.5,"d":"7,174.5"},{"$f":"B17/B10*100","v":{"v":21.04631685788126,"d":"21.0"}},112.3,"Чуйская область"]
["Бишкек ш.",{"v":8313.9,"d":"8,313.9"},{"$f":"B18/B10*100","v":{"v":24.38873422882974,"d":"24.4"}},90.2,"г.Бишкек"]
["Ош ш.",{"v":2133.7,"d":"2,133.7"},{"$f":"B19/B10*100","v":{"v":6.2591854874432,"d":"6.3"}},36.9,"г.Ош"]
[null,"Азык-түлүк базарларында  \nНа продовольственных рынках"]
["Кыргыз Республикасы",{"v":4012.9,"d":"4,012.9"},{"$f":"B21/B10*100","v":{"v":11.77179802341511,"d":"11.8"}},92.7,"Кыргызская Республика"]
["Баткен облусу",83.3,{"$f":"B22/B21*100","v":{"v":2.075805527174861,"d":"2.1"}},92.1,"Баткенская область"]
["Жалал-Абад облусу      ",286.5,{"$f":"B23/B21*100","v":{"v":7.139475192504174,"d":"7.1"}},84.2,"Джалал-Абадская область"]
["Ысык-Көл облусу",230.5,{"$f":"B24/B21*100","v":{"v":5.743975678437041,"d":"5.7"}},180.6,"Исcык-Кульская область"]
["Нарын облусу",60.3,{"$f":"B25/B21*100","v":{"v":1.5026539410401454,"d":"1.5"}},124.9,"Нарынская область"]
["Ош облусу",352.3,{"$f":"B26/B21*100","v":{"v":8.779187121533056,"d":"8.8"}},103.4," Ошская область"]
["Талас облусу",23.6,{"$f":"B27/B21*100","v":{"v":0.5881033666425778,"d":"0.6"}},{"v":121,"d":"121.0"},"Таласская область"]
["Чүй облусу",370.9,{"$f":"B28/B21*100","v":{"v":9.242692317276783,"d":"9.2"}},116.1,"Чуйская область"]
["Бишкек ш.",{"v":2528.4,"d":"2,528.4"},{"$f":"B29/B21*100","v":{"v":63.00680306013108,"d":"63.0"}},89.4,"г.Бишкек"]
["Ош ш.",77.1,{"$f":"B30/B21*100","v":{"v":1.9213037952602854,"d":"1.9"}},36.9,"г.Ош"]
["\n","Буюм-терим жана аралаш базарларында \nНа вещевых и смешанных рынках"]
["Кыргыз Республикасы",{"v":30076.2,"d":"30,076.2"},{"$f":"B32/B10*100","v":{"v":88.2282019765849,"d":"88.2"}},90.2,"Кыргызская Республика"]
["Баткен облусу",717.3,{"$f":"B33/B32*100","v":{"v":2.3849422466933987,"d":"2.4"}},92.5,"Баткенская область"]
["Жалал-Абад облусу      ",{"v":3587,"d":"3,587.0"},{"$f":"B34/B32*100","v":{"v":11.926373677525751,"d":"11.9"}},84.9,"Джалал-Абадская область"]
["Ысык-Көл облусу",139.5,{"$f":"B35/B32*100","v":{"v":0.463821892393321,"d":"0.5"}},189.8,"Исcык-Кульская область"]
["Нарын облусу",{"v":1014.6,"d":"1,014.6"},{"$f":"B36/B32*100","v":{"v":3.3734314840305624,"d":"3.4"}},125.7,"Нарынская область"]
["Ош облусу",{"v":9567.9,"d":"9,567.9"},{"$f":"B37/B32*100","v":{"v":31.812197019570288,"d":"31.8"}},104.4," Ошская область"]
["Талас облусу",404.2,{"$f":"B38/B32*100","v":{"v":1.3439197770995006,"d":"1.3"}},118.1,"Таласская область"]
["Чүй облусу",{"v":6803.6,"d":"6,803.6"},{"$f":"B39/B32*100","v":{"v":22.621208796324005,"d":"22.6"}},112.1,"Чуйская область"]
["Бишкек ш.",{"v":5785.5,"d":"5,785.5"},{"$f":"B40/B32*100","v":{"v":19.236140203882137,"d":"19.2"}},90.5,"г.Бишкек"]
["Ош ш.",{"v":2056.6,"d":"2,056.6"},{"$f":"B41/B32*100","v":{"v":6.837964902481031,"d":"6.8"}},36.9,"г.Ош"]

{"sheet":"таб 25.","index":26,"n_rows":19,"n_cols":5,"rows_kept":19,"merged":[[1,0,1,4],[5,0,7,0],[5,1,7,1],[5,2,5,3],[5,4,7,4],[6,2,7,2],[6,3,7,3],[19,0,19,3],[29,1,29,3],[30,0,30,4]]}
[{"$nulls":3},"Обратно в содержание"]
["25-таблица: 2026-жылдын январь-февралындагы тамактануу ишканаларын кошкондогу, \n"]
["                        сатуучу уюмдардын чекене соода жүгүртүүсү \n"]
["                       Оборот розничной торговли торгующих организаций, включая \n\n"]
["                          общественное питание в январе- феврале 2026г."]
[null,"Млн. сом\n","Пайыз менен \nВ процентах"]
[null,null,"жыйынтыкка\nкарата1\n\nк итогу1","мурунку жылдын тийиштүү мезгилине карата\n к соответ-ствующему периоду предыдущего года"]
[]
[]
["Кыргыз Республикасы",{"v":103059.6,"d":"103,059.6"},{"v":100,"d":"100.0"},127.1,"Кыргызская Республика"]
["Баткен облусу",{"v":3408.5,"d":"3,408.5"},{"$f":"B11/B10*100","v":{"v":3.307309556800143,"d":"3.3"}},108.1,"Баткенская область"]
["Жалал-Абад облусу      ",{"v":6527.4,"d":"6,527.4"},{"$f":"B12/B10*100","v":{"v":6.333616664531978,"d":"6.3"}},146.4,"Джалал-Абадская область"]
["Ысык-Көл облусу",{"v":4356.1,"d":"4,356.1"},{"$f":"B13/B10*100","v":{"v":4.226777515146575,"d":"4.2"}},120.9,"Исcык-Кульская область"]
["Нарын облусу",{"v":1103.7,"d":"1,103.7"},{"$f":"B14/B10*100","v":{"v":1.0709337121432647,"d":"1.1"}},103.6,"Нарынская область"]
["Ош облусу",{"v":3991.6,"d":"3,991.6"},{"$f":"B15/B10*100","v":{"v":3.8730986730008654,"d":"3.9"}},132.4,"Ошская область"]
["Талас облусу",{"v":1587.1,"d":"1,587.1"},{"$f":"B16/B10*100","v":{"v":1.5399826896281374,"d":"1.5"}},115.1,"Таласская область"]
["Чүй облусу",{"v":16333.3,"d":"16,333.3"},{"$f":"B17/B10*100","v":{"v":15.848402283727085,"d":"15.8"}},{"v":113,"d":"113.0"},"Чуйская область"]
["Бишкек ш.",{"v":52868.6,"d":"52,868.6"},{"$f":"B18/B10*100","v":{"v":51.29905413954643,"d":"51.3"}},124.2,"г.Бишкек"]
["Ош ш.",{"v":12883.3,"d":"12,883.3"},{"$f":"B19/B10*100","v":{"v":12.50082476547551,"d":"12.5"}},175.1,"г.Ош"]

{"sheet":"таб 26.","index":27,"n_rows":22,"n_cols":8,"rows_kept":22,"merged":[[6,0,6,7],[7,0,9,0],[7,1,7,2],[7,3,7,6],[7,7,9,7],[8,1,9,1],[8,2,9,2],[8,3,8,4],[8,5,8,6]]}
[{"$nulls":6},"Обратно в содержание"]
["26-таблица: 2026-жылдын январь-февралында сооданын, мейманканалардын жана"]
["                        ресторандардын жүгүртүлүшүн кошпогондо, рыноктук кызмат \n"]
["                        көрсөтүүлөрдүн экономикалык ишмердигинин түрлөрү боюнча көлөмү"]
["                      Объем оказанных рыночных услуг, исключая оборот торговли, "]
["                        гостиниц и ресторанов по видам экономической деятельности"]
["                        в январе-феврале 2026г.\n"]
[null,"Млн. сом",null,"Пайыз менен  В процентах"]
[null,"Бардыгы \n\nВсего","анын ичинде калкка \n\nв том числе населе-нию","мурунку жылдын тийиштүү мезгилине карата\nсоответствующему периоду предыдущего года ",null,"жыйынтыкка карата \nк итогу "]
[{"$nulls":3},"Бардыгы\n \nВсего","анын ичинде калкка \n\nв том числе населению","Бардыгы\n\nвсего","анын ичинде калкка\n\n в том числе населению"]
[]
["Бардыгы",{"v":126038.2,"d":"126,038.2"},{"v":59285.1,"d":"59,285.1"},104.6,109.8,{"v":100,"d":"100.0"},{"v":100,"d":"100.0"},"Всего"]
["Транспорт ишмердиги жана жүктөрдү сактоо",{"v":15836.5,"d":"15,836.5"},{"v":10818.9,"d":"10,818.9"},103.7,132.6,{"$f":"B13/B12*100","v":{"v":12.56484145282938,"d":"12.6"}},{"$f":"C13/C12*100","v":{"v":18.24893607331353,"d":"18.2"}},"Транспортная деятельность и хранение грузов"]
["Маалымат жана байланыш",{"v":11317.8,"d":"11,317.8"},{"v":7115.8,"d":"7,115.8"},103.3,103.2,{"$f":"B14/B12*100","v":{"v":8.97965854796403,"d":"9.0"}},{"$f":"C14/C12*100","v":{"v":12.00267858197085,"d":"12.0"}},"Информация и связь"]
["Финансылык ортомчулук жана камсыздандыруу",{"v":73956.1,"d":"73,956.1"},{"v":25900.3,"d":"25,900.3"},101.2,101.1,{"$f":"B15/B12*100","v":{"v":58.677527924073814,"d":"58.7"}},{"$f":"C15/C12*100","v":{"v":43.68770567984198,"d":"43.7"}},"Финансовое посредничество   и страхование"]
["Кыймылсыз мүлк операциялары",{"v":5560.9,"d":"5,560.9"},{"v":3140,"d":"3,140.0"},97.5,97.6,{"$f":"B16/B12*100","v":{"v":4.412075069304385,"d":"4.4"}},{"$f":"C16/C12*100","v":{"v":5.29644042094894,"d":"5.3"}},"Операции с недвижимым имуществом"]
["Кесиптик, илимий жана техникалык ишмердик",{"v":5881.7,"d":"5,881.7"},{"v":2486.9,"d":"2,486.9"},103.3,102.8,{"$f":"B17/B12*100","v":{"v":4.666601078085851,"d":"4.7"}},{"$f":"C17/C12*100","v":{"v":4.194814548680866,"d":"4.2"}},"Профессиональная, научная и техническая деятельность"]
["Административдик жана көмөкчү ишмердик",{"v":3130,"d":"3,130.0"},{"v":1403.3,"d":"1,403.3"},101.1,101.1,{"$f":"B18/B12*100","v":{"v":2.483374088173268,"d":"2.5"}},{"$f":"C18/C12*100","v":{"v":2.3670365741139,"d":"2.4"}},"Административная и вспомогательная деятельность"]
["Билим берүү",{"v":3362.3,"d":"3,362.3"},{"v":2718.3,"d":"2,718.3"},129.2,104.3,{"$f":"B19/B12*100","v":{"v":2.6676832896693226,"d":"2.7"}},{"$f":"C19/C12*100","v":{"v":4.585131845944428,"d":"4.6"}},"Образование"]
["Саламаттыкты сактоо жана калкты социалдык жактан тейлөө",{"v":3339.7,"d":"3,339.7"},{"v":2840.9,"d":"2,840.9"},141.5,130.1,{"$f":"B20/B12*100","v":{"v":2.649752217978359,"d":"2.6"}},{"$f":"C20/C12*100","v":{"v":4.791929169386575,"d":"4.8"}},"Здравоохранение и социальное обслуживание населения"]
["Искусство, көңүл ачуу жана эс алуу",943.1,713.4,100.9,101.2,{"$f":"B21/B12*100","v":{"v":0.7482652084844119,"d":"0.7"}},{"$f":"C21/C12*100","v":{"v":1.2033377695238772,"d":"1.2"}},"Искусство, развлечения и отдых"]
["Башка тейлөө ишмердиктери",{"v":2710.1,"d":"2,710.1"},{"v":2147.3,"d":"2,147.3"},{"v":100,"d":"100.0"},100.3,{"$f":"B22/B12*100","v":{"v":2.15022112343718,"d":"2.2"}},{"$f":"C22/C12*100","v":{"v":3.6219893362750506,"d":"3.6"}},"Прочая обслуживающая деятельность"]

{"sheet":"таб 27,28","index":28,"n_rows":36,"n_cols":8,"rows_kept":36,"merged":[[3,0,3,7],[4,0,4,7],[6,0,8,0],[6,1,6,2],[6,3,6,6],[6,7,8,7],[7,1,8,1],[7,2,8,2],[7,3,7,4],[7,5,7,6],[22,0,22,7],[23,0,25,0],[23,1,23,2],[23,3,23,6],[23,7,25,7],[24,1,25,1],[24,2,25,2],[24,3,24,4],[24,5,24,6]]}
[{"$nulls":6},"Обратно в содержание"]
["27-таблица: 2026-жылдын январь-февралында сооданын, мейманканалардын жана"]
["                        ресторандардын жүгүртүлүшүн кошпогондогу, рыноктук кызмат "]
["                       көрсөтүүлөрдүн аймактар боюнча көлөмү көрсөтүүлөрдүн көлөмү"]
["                       Объем оказанных рыночных услуг, исключая оборот торговли, гостиниц "]
["                      и ресторанов по территории, в январе -феврале 2026г."]
[null,"Млн. сом",null,"Пайыз менен \nВ процентах"]
[null,"Бардыгы \nВсего","анын ичинде калкка \nв том числе населе-нию","мурунку жылдын тийиштүү мезгилине карата\nсоответствующему периоду предыдущего года ",null,"жыйынтыкка карата \nк итогу "]
[{"$nulls":3},"бардыгы\n всего","анын ичинде калкка \nв том числе населению","бардыгы\n всего","анын ичинде калкка \nв том числе населению"]
["Кыргыз Республикасы",{"v":126038.2,"d":"126,038.2"},{"v":59285.1,"d":"59,285.1"},104.6,109.8,{"v":100,"d":"100.0"},{"v":100,"d":"100.0"},"Кыргызская Республика"]
["Баткен облусу",{"v":1386.9,"d":"1,386.9"},{"v":1202.5,"d":"1,202.5"},110.3,118.2,{"$f":"B11/B10*100","v":{"v":1.1003806782388197,"d":"1.1"}},{"$f":"C11/C10*100","v":{"v":2.028334269487612,"d":"2.0"}},"Баткенская область"]
["Жалал-Абад облусу",{"v":3006,"d":"3,006.0"},{"v":2448.6,"d":"2,448.6"},{"v":105,"d":"105.0"},101.7,{"$f":"B12/B10*100","v":{"v":2.3849912169485123,"d":"2.4"}},{"$f":"C12/C10*100","v":{"v":4.1302114696610115,"d":"4.1"}},"Джалал-Абадская область"]
["Ысык-Көл облусу",{"v":1528.6,"d":"1,528.6"},{"v":1305.7,"d":"1,305.7"},104.7,105.2,{"$f":"B13/B10*100","v":{"v":1.2128069109206572,"d":"1.2"}},{"$f":"C13/C10*100","v":{"v":2.202408362303513,"d":"2.2"}},"Иссык-Кульская область"]
["Нарын облусу",{"v":1413.2,"d":"1,413.2"},{"v":1218.5,"d":"1,218.5"},105.8,82.7,{"$f":"B14/B10*100","v":{"v":1.1212473678614898,"d":"1.1"}},{"$f":"C14/C10*100","v":{"v":2.055322500931937,"d":"2.1"}},"Нарынская область"]
["Ош облусу",{"v":1864.4,"d":"1,864.4"},{"v":1174.2,"d":"1,174.2"},107.8,104.4,{"$f":"B15/B10*100","v":{"v":1.4792340734793104,"d":"1.5"}},{"$f":"C15/C10*100","v":{"v":1.9805988351204604,"d":"2.0"}},"Ошская область"]
["Талас облусу",{"v":1343.6,"d":"1,343.6"},{"v":771,"d":"771.0"},108.5,118.9,{"$f":"B16/B10*100","v":{"v":1.0660260143353364,"d":"1.1"}},{"$f":"C16/C10*100","v":{"v":1.30049540272345,"d":"1.3"}},"Таласская область"]
["Чүй облусу",{"v":3118.8,"d":"3,118.8"},{"v":2152.6,"d":"2,152.6"},{"v":103,"d":"103.0"},97.4,{"$f":"B17/B10*100","v":{"v":2.474487893352968,"d":"2.5"}},{"$f":"C17/C10*100","v":{"v":3.6309291879409837,"d":"3.6"}},"Чуйская область"]
["Бишкек ш.",{"v":106890.3,"d":"106,890.3"},{"v":44937.9,"d":"44,937.9"},103.2,114.1,{"$f":"B18/B10*100","v":{"v":84.80785983931855,"d":"84.8"}},{"$f":"C18/C10*100","v":{"v":75.79965286387306,"d":"75.8"}},"г.Бишкек "]
["Ош ш.",{"v":5486.4,"d":"5,486.4"},{"v":4074.1,"d":"4,074.1"},115.3,99.2,{"$f":"B19/B10*100","v":{"v":4.352966005544351,"d":"4.4"}},{"$f":"C19/C10*100","v":{"v":6.872047107957986,"d":"6.9"}},"г.Ош "]
[]
["28-таблица: 2026-жылдын январь-февралында рыноктук транспорт ишмердигинин"]
["                    кызмат көрсөтүүлөрдүн көлөмү"]
["                    Объем оказанных рыночных услуг транспортной деятельности в январе-феврале 2026г.\n"]
[null,"Млн. сом",null,"Пайыз менен \nВ процентах"]
[null,"Бардыгы \nВсего","анын ичинде калкка \nв том числе населе-нию","мурунку жылдын тийиштүү мезгилине карата\nсоответствующему периоду предыдущего года ",null,"жыйынтыкка карата \nк итогу "]
[{"$nulls":3},"бардыгы\n всего","анын ичинде калкка \nв том числе населению","бардыгы\n всего","анын ичинде калкка \nв том числе населению"]
["Кыргыз Республикасы",{"v":15836.5,"d":"15,836.5"},{"v":10818.9,"d":"10,818.9"},103.7,132.6,{"v":100,"d":"100.0"},{"v":100,"d":"100.0"},"Кыргызская Республика"]
["Баткен облусу",193.3,159.4,{"v":112,"d":"112.0"},87.6,{"$f":"B28/B27*100","v":{"v":1.220597985666025,"d":"1.2"}},{"$f":"C28/C27*100","v":{"v":1.4733475676824817,"d":"1.5"}},"Баткенская область"]
["Жалал-Абад облусу",342.5,266.8,102.1,71.4,{"$f":"B29/B27*100","v":{"v":2.1627253496669088,"d":"2.2"}},{"$f":"C29/C27*100","v":{"v":2.4660547745149692,"d":"2.5"}},"Джалал-Абадская область"]
["Ысык-Көл облусу",240.2,208.1,{"v":115,"d":"115.0"},118.9,{"$f":"B30/B27*100","v":{"v":1.5167492817226027,"d":"1.5"}},{"$f":"C30/C27*100","v":{"v":1.923485751786226,"d":"1.9"}},"Иссык-Кульская область"]
["Нарын облусу",912.7,824.2,109.2,76.7,{"$f":"B31/B27*100","v":{"v":5.763268398951789,"d":"5.8"}},{"$f":"C31/C27*100","v":{"v":7.618149719472406,"d":"7.6"}},"Нарынская область"]
["Ош облусу",433.3,346.7,110.2,103.3,{"$f":"B32/B27*100","v":{"v":2.7360843620749535,"d":"2.7"}},{"$f":"C32/C27*100","v":{"v":3.20457717512871,"d":"3.2"}},"Ошская область"]
["Талас облусу",750.2,315.5,115.1,157.3,{"$f":"B33/B27*100","v":{"v":4.737157831591577,"d":"4.7"}},{"$f":"C33/C27*100","v":{"v":2.916192958618714,"d":"2.9"}},"Таласская область"]
["Чүй облусу",{"v":824,"d":"824.0"},508.4,102.3,86.1,{"$f":"B34/B27*100","v":{"v":5.203169892337322,"d":"5.2"}},{"$f":"C34/C27*100","v":{"v":4.699183835694941,"d":"4.7"}},"Чуйская область"]
["Бишкек ш.",{"v":11205.1,"d":"11,205.1"},{"v":7614.2,"d":"7,614.2"},101.4,159.8,{"$f":"B35/B27*100","v":{"v":70.7549016512487,"d":"70.8"}},{"$f":"C35/C27*100","v":{"v":70.37868914584662,"d":"70.4"}},"г.Бишкек "]
["Ош ш.",935.2,575.6,105.1,89.5,{"$f":"B36/B27*100","v":{"v":5.905345246740127,"d":"5.9"}},{"$f":"C36/C27*100","v":{"v":5.320319071254934,"d":"5.3"}},"г.Ош "]

{"sheet":"таб 29_30","index":29,"n_rows":36,"n_cols":8,"rows_kept":36,"merged":[[1,0,1,7],[3,0,3,7],[5,0,7,0],[5,1,5,2],[5,3,5,6],[5,7,7,7],[6,1,7,1],[6,2,7,2],[6,3,6,4],[6,5,6,6],[19,0,19,7],[22,0,22,7],[23,0,25,0],[23,1,23,2],[23,3,23,6],[23,7,25,7],[24,1,25,1],[24,2,25,2],[24,3,24,4],[24,5,24,6]]}
[{"$nulls":6},"Обратно в содержание"]
[" 29-таблица: 2026-жылдын январь-февралында маалымат жана байланыш боюнча \n \n "]
["                         рыноктук кызмат көрсөтүүлөрдүн көлөмү  "]
["      Объем оказанных рыночных услуг информации и связи     в январе- феврале 2026г.                \n"]
["                    "]
[null,"Млн. сом",null,"Пайыз менен \nВ процентах"]
[null,"Бардыгы \nВсего","анын ичинде калкка \nв том числе населе-нию","мурунку жылдын тийиштүү мезгилине карата\nсоответствующему периоду предыдущего года ",null,"жыйынтыкка карата \nк итогу "]
[{"$nulls":3},"бардыгы\n всего","анын ичинде калкка \nв том числе населению","бардыгы\n всего","анын ичинде калкка \nв том числе населению"]
["Кыргыз Республикасы",{"v":11317.8,"d":"11,317.8"},{"v":7115.8,"d":"7,115.8"},103.3,103.2,{"v":100,"d":"100.0"},{"v":100,"d":"100.0"},"Кыргызская Республика"]
["Баткен облусу",24.2,19.4,{"v":100,"d":"100.0"},{"v":100,"d":"100.0"},{"$f":"B10/B9*100","v":{"v":0.21382247433246745,"d":"0.2"}},{"$f":"C10/C9*100","v":{"v":0.2726327327918154,"d":"0.3"}},"Баткенская область"]
["Жалал-Абад облусу",61.2,34.1,95.2,95.2,{"$f":"B11/B9*100","v":{"v":0.5407411334358269,"d":"0.5"}},{"$f":"C11/C9*100","v":{"v":0.47921526743303633,"d":"0.5"}},"Джалал-Абадская область"]
["Ысык-Көл облусу",34.7,27.8,96.9,96.9,{"$f":"B12/B9*100","v":{"v":0.3065966884023397,"d":"0.3"}},{"$f":"C12/C9*100","v":{"v":0.39067989544394166,"d":"0.4"}},"Иссык-Кульская область"]
["Нарын облусу",{"v":11,"d":"11.0"},5.3,94.8,94.8,{"$f":"B13/B9*100","v":{"v":0.0971920337874852,"d":"0.1"}},{"$f":"C13/C9*100","v":{"v":0.07448213834003203,"d":"0.1"}},"Нарынская область"]
["Ош облусу",39.2,26.3,103.4,103.4,{"$f":"B14/B9*100","v":{"v":0.3463570658608564,"d":"0.3"}},{"$f":"C14/C9*100","v":{"v":0.36960004497034765,"d":"0.4"}},"Ошская область"]
["Талас облусу",15.4,6.9,{"v":106,"d":"106.0"},{"v":106,"d":"106.0"},{"$f":"B15/B9*100","v":{"v":0.13606884730247928,"d":"0.1"}},{"$f":"C15/C9*100","v":{"v":0.09696731217853229,"d":"0.1"}},"Таласская область"]
["Чүй облусу",135.7,51.2,98.4,98.4,{"$f":"B16/B9*100","v":{"v":1.1989962713601583,"d":"1.2"}},{"$f":"C16/C9*100","v":{"v":0.7195255628320076,"d":"0.7"}},"Чуйская область"]
["Бишкек ш.",{"v":10904.1,"d":"10,904.1"},{"v":6870.1,"d":"6,870.1"},103.4,103.4,{"$f":"B17/B9*100","v":{"v":96.34469596564705,"d":"96.3"}},{"$f":"C17/C9*100","v":{"v":96.54712049242531,"d":"96.5"}},"г.Бишкек "]
["Ош ш.",92.3,74.7,101.9,101.9,{"$f":"B18/B9*100","v":{"v":0.8155295198713531,"d":"0.8"}},{"$f":"C18/C9*100","v":{"v":1.04977655358498,"d":"1.0"}},"г.Ош "]
[]
["30-таблица: 2026-жылдын январь-февралында финансылык ортомчулук жана \n \n "]
["                         камсыздандыруу боюнча рыноктук кызмат көрсөтүүлөрдүн көлөмү "]
["                      Объем оказанных рыночных услуг финансового посредничества\n"]
["                        и страхования в январе -феврале2026г.\n \n"]
[null,"Млн. сом",null,"Пайыз менен \nВ процентах"]
[null,"Бардыгы \nВсего","анын ичинде калкка \nв том числе населе-нию","мурунку жылдын тийиштүү мезгилине карата\nсоответствующему периоду предыдущего года ",null,"жыйынтыкка карата \nк итогу "]
[{"$nulls":3},"бардыгы\n всего","анын ичинде калкка \nв том числе населению","бардыгы\n всего","анын ичинде калкка \nв том числе населению"]
["Кыргыз Республикасы",{"v":73956.1,"d":"73,956.1"},{"v":25900.3,"d":"25,900.3"},101.2,101.1,{"v":100,"d":"100.0"},{"v":100,"d":"100.0"},"Кыргызская Республика"]
["Баткен облусу",703.3,666.2,109.2,109.2,{"$f":"B28/B27*100","v":{"v":0.9509695616723974,"d":"1.0"}},{"$f":"C28/C27*100","v":{"v":2.5721709787145324,"d":"2.6"}},"Баткенская область"]
["Жалал-Абад облусу",{"v":1294.9,"d":"1,294.9"},{"v":1181.7,"d":"1,181.7"},103.1,103.1,{"$f":"B29/B27*100","v":{"v":1.750903576581242,"d":"1.8"}},{"$f":"C29/C27*100","v":{"v":4.562495415111022,"d":"4.6"}},"Джалал-Абадская область"]
["Ысык-Көл облусу",562.5,490.3,103.7,103.7,{"$f":"B30/B27*100","v":{"v":0.7605863478468983,"d":"0.8"}},{"$f":"C30/C27*100","v":{"v":1.89302826608186,"d":"1.9"}},"Иссык-Кульская область"]
["Нарын облусу",300.2,236.6,101.3,101.3,{"$f":"B31/B27*100","v":{"v":0.4059164828864691,"d":"0.4"}},{"$f":"C31/C27*100","v":{"v":0.9135029323984665,"d":"0.9"}},"Нарынская область"]
["Ош облусу",417.9,320.9,102.1,102.1,{"$f":"B32/B27*100","v":{"v":0.5650649506937223,"d":"0.6"}},{"$f":"C32/C27*100","v":{"v":1.2389817878557392,"d":"1.2"}},"Ошская область"]
["Талас облусу",394.9,333.3,100.7,100.7,{"$f":"B33/B27*100","v":{"v":0.5339654200262046,"d":"0.5"}},{"$f":"C33/C27*100","v":{"v":1.2868576811851602,"d":"1.3"}},"Таласская область"]
["Чүй облусу",{"v":774,"d":"774.0"},607.7,101.1,101.1,{"$f":"B34/B27*100","v":{"v":1.0465668146373321,"d":"1.0"}},{"$f":"C34/C27*100","v":{"v":2.346304869055571,"d":"2.3"}},"Чуйская область"]
["Бишкек ш.",{"v":68386.5,"d":"68,386.5"},{"v":21125.8,"d":"21,125.8"},{"v":101,"d":"101.0"},{"v":101,"d":"101.0"},{"$f":"B35/B27*100","v":{"v":92.46904582583451,"d":"92.5"}},{"$f":"C35/C27*100","v":{"v":81.56585058860321,"d":"81.6"}},"г.Бишкек "]
["Ош ш.",{"v":1121.9,"d":"1,121.9"},937.8,96.3,96.3,{"$f":"B36/B27*100","v":{"v":1.5169810198212184,"d":"1.5"}},{"$f":"C36/C27*100","v":{"v":3.6208074809944284,"d":"3.6"}},"г.Ош "]

{"sheet":"таб 31_32","index":30,"n_rows":36,"n_cols":8,"rows_kept":36,"merged":[[1,0,1,7],[5,0,7,0],[5,1,5,2],[5,3,5,6],[5,7,7,7],[6,1,7,1],[6,2,7,2],[6,3,6,4],[6,5,6,6],[19,0,19,7],[22,0,22,7],[23,0,25,0],[23,1,23,2],[23,3,23,6],[23,7,25,7],[24,1,25,1],[24,2,25,2],[24,3,24,4],[24,5,24,6]]}
[{"$nulls":6},"Обратно в содержание"]
["31-таблица: 2025-жылдын январь-февралында кыймылсыз мүлк боюнча рыноктук \n  \n "]
["                         кызмат көрсөтүүлөрдүн көлөмү"]
["                       Объем оказанных рыночных услуг операций с недвижимым"]
["                          имуществом в январе -феврале 2026г."]
[null,"Млн. сом",null,"Пайыз менен \nВ процентах"]
[null,"Бардыгы \nВсего","анын ичинде калкка \nв том числе населе-нию","мурунку жылдын тийиштүү мезгилине карата\nсоответствующему периоду предыдущего года ",null,"жыйынтыкка карата \nк итогу "]
[{"$nulls":3},"бардыгы\n всего","анын ичинде калкка \nв том числе населению","бардыгы\n всего","анын ичинде калкка \nв том числе населению"]
["Кыргыз Республикасы",{"v":5560.9,"d":"5,560.9"},{"v":3140,"d":"3,140.0"},97.5,97.6,{"v":100,"d":"100.0"},{"v":100,"d":"100.0"},"Кыргызская Республика"]
["Баткен облусу",35.3,35.3,101.6,101.6,{"$f":"B10/B9*100","v":{"v":0.6347893326619791,"d":"0.6"}},{"$f":"C10/C9*100","v":{"v":1.1242038216560508,"d":"1.1"}},"Баткенская область"]
["Жалал-Абад облусу",102.6,{"v":63,"d":"63.0"},95.9,95.9,{"$f":"B11/B9*100","v":{"v":1.8450250858673956,"d":"1.8"}},{"$f":"C11/C9*100","v":{"v":2.006369426751592,"d":"2.0"}},"Джалал-Абадская область"]
["Ысык-Көл облусу",22.9,18.8,101.1,101.1,{"$f":"B12/B9*100","v":{"v":0.4118038447013973,"d":"0.4"}},{"$f":"C12/C9*100","v":{"v":0.5987261146496815,"d":"0.6"}},"Иссык-Кульская область"]
["Нарын облусу",14.8,10.4,{"v":100,"d":"100.0"},{"v":100,"d":"100.0"},{"$f":"B13/B9*100","v":{"v":0.2661439695013397,"d":"0.3"}},{"$f":"C13/C9*100","v":{"v":0.33121019108280253,"d":"0.3"}},"Нарынская область"]
["Ош облусу",73.8,{"v":59,"d":"59.0"},102.8,102.8,{"$f":"B14/B9*100","v":{"v":1.3271233073783022,"d":"1.3"}},{"$f":"C14/C9*100","v":{"v":1.8789808917197452,"d":"1.9"}},"Ошская область"]
["Талас облусу",15.2,11.6,{"v":100,"d":"100.0"},{"v":100,"d":"100.0"},{"$f":"B15/B9*100","v":{"v":0.2733370497581327,"d":"0.3"}},{"$f":"C15/C9*100","v":{"v":0.36942675159235666,"d":"0.4"}},"Таласская область"]
["Чүй облусу",{"v":214,"d":"214.0"},138.9,91.3,91.3,{"$f":"B16/B9*100","v":{"v":3.8482979373842365,"d":"3.8"}},{"$f":"C16/C9*100","v":{"v":4.423566878980892,"d":"4.4"}},"Чуйская область"]
["Бишкек ш.",{"v":4613,"d":"4,613.0"},{"v":2333.6,"d":"2,333.6"},97.4,97.4,{"$f":"B17/B9*100","v":{"v":82.95419806146488,"d":"83.0"}},{"$f":"C17/C9*100","v":{"v":74.31847133757962,"d":"74.3"}},"г.Бишкек "]
["Ош ш.",469.3,469.4,99.5,99.5,{"$f":"B18/B9*100","v":{"v":8.439281411282346,"d":"8.4"}},{"$f":"C18/C9*100","v":{"v":14.949044585987261,"d":"14.9"}},"г.Ош "]
[]
["32-таблица: 2026-жылдын январь-февралында кесиптик, илимий жана техникалык ишмердик \n\n "]
["                     боюнча рыноктук кызмат көрсөтүүлөрдүн көлөмү"]
["                    Объем оказанных рыночных услуг профессиональной, научной "]
["\n                       и технической деятельности в январе -феврале2026г.\n\n\n \n\n"]
[null,"Млн. сом",null,"Пайыз менен \nВ процентах"]
[null,"Бардыгы \nВсего","анын ичинде калкка \nв том числе населе-нию","мурунку жылдын тийиштүү мезгилине карата\nсоответствующему периоду предыдущего года ",null,"жыйынтыкка карата \nк итогу "]
[{"$nulls":3},"бардыгы\n всего","анын ичинде калкка \nв том числе населению","бардыгы\n всего","анын ичинде калкка \nв том числе населению"]
["Кыргыз Республикасы",{"v":5881.7,"d":"5,881.7"},{"v":2486.9,"d":"2,486.9"},103.3,102.8,{"v":100,"d":"100.0"},{"v":100,"d":"100.0"},"Кыргызская Республика"]
["Баткен облусу",74.6,47.5,104.3,104.3,{"$f":"B28/B27*100","v":{"v":1.2683407858272269,"d":"1.3"}},{"$f":"C28/C27*100","v":{"v":1.9100084442478589,"d":"1.9"}},"Баткенская область"]
["Жалал-Абад облусу",180.1,87.8,{"v":93,"d":"93.0"},{"v":93,"d":"93.0"},{"$f":"B29/B27*100","v":{"v":3.062039886427393,"d":"3.1"}},{"$f":"C29/C27*100","v":{"v":3.5304998190518315,"d":"3.5"}},"Джалал-Абадская область"]
["Ысык-Көл облусу",121.2,89.1,99.4,99.4,{"$f":"B30/B27*100","v":{"v":2.060628729789007,"d":"2.1"}},{"$f":"C30/C27*100","v":{"v":3.5827737343680885,"d":"3.6"}},"Иссык-Кульская область"]
["Нарын облусу",38.9,23.5,102.6,102.6,{"$f":"B31/B27*100","v":{"v":0.6613734124487818,"d":"0.7"}},{"$f":"C31/C27*100","v":{"v":0.9449515461015723,"d":"0.9"}},"Нарынская область"]
["Ош облусу",54.4,48.5,101.2,101.2,{"$f":"B32/B27*100","v":{"v":0.9249026641957256,"d":"0.9"}},{"$f":"C32/C27*100","v":{"v":1.950219148337287,"d":"2.0"}},"Ошская область"]
["Талас облусу",25.1,15.6,95.3,95.3,{"$f":"B33/B27*100","v":{"v":0.42674736895795434,"d":"0.4"}},{"$f":"C33/C27*100","v":{"v":0.6272869837950862,"d":"0.6"}},"Таласская область"]
["Чүй облусу",348.5,177.5,104.5,104.5,{"$f":"B34/B27*100","v":{"v":5.925157692503868,"d":"5.9"}},{"$f":"C34/C27*100","v":{"v":7.137399975873578,"d":"7.1"}},"Чуйская область"]
["Бишкек ш.",{"v":4705.4,"d":"4,705.4"},{"v":1808.2,"d":"1,808.2"},103.7,103.7,{"$f":"B35/B27*100","v":{"v":80.00068007548838,"d":"80.0"}},{"$f":"C35/C27*100","v":{"v":72.7089951345048,"d":"72.7"}},"г.Бишкек "]
["Ош ш.",333.5,189.2,{"v":104,"d":"104.0"},{"v":104,"d":"104.0"},{"$f":"B36/B27*100","v":{"v":5.6701293843616645,"d":"5.7"}},{"$f":"C36/C27*100","v":{"v":7.607865213719892,"d":"7.6"}},"г.Ош "]

{"sheet":"таб 33_34","index":31,"n_rows":35,"n_cols":8,"rows_kept":35,"merged":[[1,0,1,7],[4,0,4,6],[5,0,7,0],[5,1,5,2],[5,3,5,6],[5,7,7,7],[6,1,7,1],[6,2,7,2],[6,3,6,4],[6,5,6,6],[19,0,19,7],[21,0,21,7],[22,0,24,0],[22,1,22,2],[22,3,22,6],[22,7,24,7],[23,1,24,1],[23,2,24,2],[23,3,23,4],[23,5,23,6]]}
[{"$nulls":6},"Обратно в содержание"]
["33-таблица: 2026-жылдын январь-февралында административдик жана көмөкчү  \n \n  \n "]
["                         ишмердик боюнча рыноктук кызмат көрсөтүүлөрдүн көлөмү  "]
["                      Объем оказанных рыночных услуг административной и вспомогательной"]
["                         деятельности в январе-феврале 2026г.\n\n\n"]
[null,"Млн. сом",null,"Пайыз менен \nВ процентах"]
[null,"Бардыгы \nВсего","анын ичинде калкка \nв том числе населе-нию","мурунку жылдын тийиш-түү мезгилине карата\nсоответствующему периоду предыдущего года ",null,"жыйынтыкка карата \nк итогу "]
[{"$nulls":3},"бардыгы\n всего","анын ичинде калкка \nв том числе населению","бардыгы\n всего","анын ичинде калкка \nв том числе населению"]
["Кыргыз Республикасы",{"v":3129.9,"d":"3,129.9"},{"v":1403.3,"d":"1,403.3"},101.1,101.1,{"v":100,"d":"100.0"},{"v":100,"d":"100.0"},"Кыргызская Республика"]
["Баткен облусу",10.3,7.2,95.8,95.8,{"$f":"B10/B9*100","v":{"v":0.3290839962938113,"d":"0.3"}},{"$f":"C10/C9*100","v":{"v":0.5130763201026153,"d":"0.5"}},"Баткенская область"]
["Жалал-Абад облусу",{"v":107,"d":"107.0"},{"v":37,"d":"37.0"},105.6,105.6,{"$f":"B11/B9*100","v":{"v":3.418639573149302,"d":"3.4"}},{"$f":"C11/C9*100","v":{"v":2.6366422005273287,"d":"2.6"}},"Джалал-Абадская область"]
["Ысык-Көл облусу",{"v":126,"d":"126.0"},124.1,101.6,101.6,{"$f":"B12/B9*100","v":{"v":4.025687721652449,"d":"4.0"}},{"$f":"C12/C9*100","v":{"v":8.843440461768688,"d":"8.8"}},"Иссык-Кульская область"]
["Нарын облусу",37.7,26.5,{"v":99,"d":"99.0"},{"v":99,"d":"99.0"},{"$f":"B13/B9*100","v":{"v":1.204511326240455,"d":"1.2"}},{"$f":"C13/C9*100","v":{"v":1.8884059003776814,"d":"1.9"}},"Нарынская область"]
["Ош облусу",87.8,67.9,98.2,98.2,{"$f":"B14/B9*100","v":{"v":2.8052014441355952,"d":"2.8"}},{"$f":"C14/C9*100","v":{"v":4.83859474096772,"d":"4.8"}},"Ошская область"]
["Талас облусу",35.4,1.5,100.8,100.8,{"$f":"B15/B9*100","v":{"v":1.1310265503690213,"d":"1.1"}},{"$f":"C15/C9*100","v":{"v":0.10689090002137817,"d":"0.1"}},"Таласская область"]
["Чүй облусу",94.8,63.2,{"v":100,"d":"100.0"},{"v":100,"d":"100.0"},{"$f":"B16/B9*100","v":{"v":3.0288507620051757,"d":"3.0"}},{"$f":"C16/C9*100","v":{"v":4.503669920900735,"d":"4.5"}},"Чуйская область"]
["Бишкек ш.",{"v":2419.9,"d":"2,419.9"},990.8,101.7,101.7,{"$f":"B17/B9*100","v":{"v":77.31556918751397,"d":"77.3"}},{"$f":"C17/C9*100","v":{"v":70.605002494121,"d":"70.6"}},"г.Бишкек "]
["Ош ш.",{"v":211,"d":"211.0"},85.1,93.9,93.9,{"$f":"B18/B9*100","v":{"v":6.741429438640212,"d":"6.7"}},{"$f":"C18/C9*100","v":{"v":6.064277061212856,"d":"6.1"}},"г.Ош "]
[]
["34-таблица: 2026-жылдын январь-февралында билим берүү боюнча рыноктук кызмат \n \n  \n "]
["                     көрсөтүүлөрдүн көлөмү "]
["                 Объем оказанных рыночных услуг в образовании в январе-феврале 2026г. \n\n\n \n \n\n"]
[null,"Млн. сом",null,"Пайыз менен \nВ процентах"]
[null,"Бардыгы \nВсего","анын ичинде калкка \nв том числе населе-нию","мурунку жылдын тийиш-түү мезгилине карата\nсоответствующему периоду предыдущего года ",null,"жыйынтыкка карата \nк итогу "]
[{"$nulls":3},"бардыгы\n всего","анын ичинде калкка \nв том числе населению","бардыгы\n всего","анын ичинде калкка \nв том числе населению"]
["Кыргыз Республикасы",{"v":3362.3,"d":"3,362.3"},{"v":2718.3,"d":"2,718.3"},129.2,104.3,{"v":100,"d":"100.0"},{"v":100,"d":"100.0"},"Кыргызская Республика"]
["Баткен облусу",197.6,134.8,118.3,146.1,{"$f":"B27/B26*100","v":{"v":5.876929482794515,"d":"5.9"}},{"$f":"C27/C26*100","v":{"v":4.958981716513998,"d":"5.0"}},"Баткенская область"]
["Жалал-Абад облусу",404.8,350.7,128.2,144.4,{"$f":"B28/B26*100","v":{"v":12.0393778068584,"d":"12.0"}},{"$f":"C28/C26*100","v":{"v":12.901445756539012,"d":"12.9"}},"Джалал-Абадская область"]
["Ысык-Көл облусу",88.8,79.9,89.1,90.9,{"$f":"B29/B26*100","v":{"v":2.6410492817416644,"d":"2.6"}},{"$f":"C29/C26*100","v":{"v":2.9393370856785492,"d":"2.9"}},"Иссык-Кульская область"]
["Нарын облусу",50.9,50.1,83.7,82.4,{"$f":"B30/B26*100","v":{"v":1.5138446896469677,"d":"1.5"}},{"$f":"C30/C26*100","v":{"v":1.8430636795055733,"d":"1.8"}},"Нарынская область"]
["Ош облусу",129.7,116.2,116.2,{"v":118,"d":"118.0"},{"$f":"B31/B26*100","v":{"v":3.8574785117330395,"d":"3.9"}},{"$f":"C31/C26*100","v":{"v":4.27473053011073,"d":"4.3"}},"Ошская область"]
["Талас облусу",41.8,34.6,92.3,82.6,{"$f":"B32/B26*100","v":{"v":1.2431966213603782,"d":"1.2"}},{"$f":"C32/C26*100","v":{"v":1.272854357502851,"d":"1.3"}},"Таласская область"]
["Чүй облусу",315.3,272.3,105.6,91.2,{"$f":"B33/B26*100","v":{"v":9.377509442940845,"d":"9.4"}},{"$f":"C33/C26*100","v":{"v":10.01729021815105,"d":"10.0"}},"Чуйская область"]
["Бишкек ш.",719.1,719.1,140.3,140.3,{"$f":"B34/B26*100","v":{"v":21.387145703833685,"d":"21.4"}},{"$f":"C34/C26*100","v":{"v":26.45403377110694,"d":"26.5"}},"г.Бишкек "]
["Ош ш.",{"v":1414.3,"d":"1,414.3"},960.6,142.7,84.9,{"$f":"B35/B26*100","v":{"v":42.063468459090494,"d":"42.1"}},{"$f":"C35/C26*100","v":{"v":35.33826288489129,"d":"35.3"}},"г.Ош "]

{"sheet":"таб 35-36","index":32,"n_rows":35,"n_cols":8,"rows_kept":35,"merged":[[1,0,1,7],[4,0,4,7],[5,0,7,0],[5,1,5,2],[5,3,5,6],[5,7,7,7],[6,1,7,1],[6,2,7,2],[6,3,6,4],[6,5,6,6],[19,0,19,7],[21,0,21,7],[22,0,24,0],[22,1,22,2],[22,3,22,6],[22,7,24,7],[23,1,24,1],[23,2,24,2],[23,3,23,4],[23,5,23,6]]}
[{"$nulls":6},"Обратно в содержание"]
["35-таблица: 2026-жылдын январь-февралында саламаттыкты сактоо жана калкты \n \n  \n "]
["                   социалдык жактан тейлөө боюнча рыноктук кызмат көрсөтүүлөрдүн көлөмү\n\n \n  \n "]
["                   Объем оказанных рыночных услуг здравоохранения и социального \n"]
["                     обслуживания населения в январе-феврале 2026г.\n"]
[null,"Млн. сом",null,"Пайыз менен \nВ процентах"]
[null,"Бардыгы \nВсего","анын ичинде калкка \nв том числе населе-нию","мурунку жылдын тийиш-түү мезгилине карата\nсоответствующему периоду предыдущего года ",null,"жыйынтыкка карата \nк итогу "]
[{"$nulls":3},"бардыгы\n всего","анын ичинде калкка \nв том числе населению","бардыгы\n всего","анын ичинде калкка \nв том числе населению"]
["Кыргыз Республикасы",{"v":3339.7,"d":"3,339.7"},{"v":2840.9,"d":"2,840.9"},141.5,130.1,{"v":100,"d":"100.0"},{"v":100,"d":"100.0"},"Кыргызская Республика"]
["Баткен облусу",93.4,84.2,119.8,454.3,{"$f":"B10/B9*100","v":{"v":2.7966583824894453,"d":"2.8"}},{"$f":"C10/C9*100","v":{"v":2.9638494843183496,"d":"3.0"}},"Баткенская область"]
["Жалал-Абад облусу",233.9,194.7,{"v":110,"d":"110.0"},110.9,{"$f":"B11/B9*100","v":{"v":7.003623079917358,"d":"7.0"}},{"$f":"C11/C9*100","v":{"v":6.853461931078179,"d":"6.9"}},"Джалал-Абадская область"]
["Ысык-Көл облусу",131.2,{"v":124,"d":"124.0"},139.6,122.3,{"$f":"B12/B9*100","v":{"v":3.928496571548343,"d":"3.9"}},{"$f":"C12/C9*100","v":{"v":4.364813967404695,"d":"4.4"}},"Иссык-Кульская область"]
["Нарын облусу",17.3,14.7,97.4,134.9,{"$f":"B13/B9*100","v":{"v":0.5180105997544691,"d":"0.5"}},{"$f":"C13/C9*100","v":{"v":0.5174416558132986,"d":"0.5"}},"Нарынская область"]
["Ош облусу",94.5,76.8,137.9,112.7,{"$f":"B14/B9*100","v":{"v":2.829595472647244,"d":"2.8"}},{"$f":"C14/C9*100","v":{"v":2.7033686507796824,"d":"2.7"}},"Ошская область"]
["Талас облусу",41.1,32.3,104.8,125.4,{"$f":"B15/B9*100","v":{"v":1.2306494595322934,"d":"1.2"}},{"$f":"C15/C9*100","v":{"v":1.1369636382836423,"d":"1.1"}},"Таласская область"]
["Чүй облусу",201.3,163.7,126.4,144.9,{"$f":"B16/B9*100","v":{"v":6.027487498877146,"d":"6.0"}},{"$f":"C16/C9*100","v":{"v":5.762258439227005,"d":"5.8"}},"Чуйская область"]
["Бишкек ш.",{"v":2068.2,"d":"2,068.2"},{"v":1725.5,"d":"1,725.5"},139.7,116.5,{"$f":"B17/B9*100","v":{"v":61.927718058508255,"d":"61.9"}},{"$f":"C17/C9*100","v":{"v":60.737794360941955,"d":"60.7"}},"г.Бишкек "]
["Ош ш.",458.8,{"v":425,"d":"425.0"},214.8,220.6,{"$f":"B18/B9*100","v":{"v":13.737760876725455,"d":"13.7"}},{"$f":"C18/C9*100","v":{"v":14.96004787215319,"d":"15.0"}},"г.Ош "]
[]
["36-таблица: 2026-жылдын январь-февралында искусство, көңүл ачуу жана эс алуу боюнча \n \n  \n "]
["                      рыноктук кызмат көрсөтүүлөрдүн көлөмү \n\n \n  \n "]
["                 Объем оказанных рыночных услуг исскуства, развлечений и отдыха в январе - феврале 2026г.\n\n \n \n\n"]
[null,"Млн. сом",null,"Пайыз менен \nВ процентах"]
[null,"Бардыгы \nВсего","анын ичинде калкка \nв том числе населе-нию","мурунку жылдын тийиш-түү мезгилине карата\nсоответствующему периоду предыдущего года ",null,"жыйынтыкка карата \nк итогу "]
[{"$nulls":3},"бардыгы\n всего","анын ичинде калкка \nв том числе населению","бардыгы\n всего","анын ичинде калкка \nв том числе населению"]
["Кыргыз Республикасы",943.1,713.4,100.9,101.2,{"v":100,"d":"100.0"},{"v":100,"d":"100.0"},"Кыргызская Республика"]
["Баткен облусу",10.9,8.4,{"v":100,"d":"100.0"},{"v":100,"d":"100.0"},{"$f":"B27/B26*100","v":{"v":1.1557629095536,"d":"1.2"}},{"$f":"C27/C26*100","v":{"v":1.1774600504625736,"d":"1.2"}},"Баткенская область"]
["Жалал-Абад облусу",42.6,36.2,101.7,101.7,{"$f":"B28/B26*100","v":{"v":4.517018343759941,"d":"4.5"}},{"$f":"C28/C26*100","v":{"v":5.074292122231568,"d":"5.1"}},"Джалал-Абадская область"]
["Ысык-Көл облусу",21.4,18.2,98.8,98.8,{"$f":"B29/B26*100","v":{"v":2.269112501325416,"d":"2.3"}},{"$f":"C29/C26*100","v":{"v":2.5511634426689094,"d":"2.6"}},"Иссык-Кульская область"]
["Нарын облусу",{"v":13,"d":"13.0"},11.8,99.4,99.5,{"$f":"B30/B26*100","v":{"v":1.3784328279079632,"d":"1.4"}},{"$f":"C30/C26*100","v":{"v":1.6540510232688537,"d":"1.7"}},"Нарынская область"]
["Ош облусу",16.8,16.8,95.1,95.1,{"$f":"B31/B26*100","v":{"v":1.7813593468349063,"d":"1.8"}},{"$f":"C31/C26*100","v":{"v":2.3549201009251473,"d":"2.4"}},"Ошская область"]
["Талас облусу",3.9,3.2,99.8,99.8,{"$f":"B32/B26*100","v":{"v":0.4135298483723889,"d":"0.4"}},{"$f":"C32/C26*100","v":{"v":0.448556209700028,"d":"0.4"}},"Таласская область"]
["Чүй облусу",71.2,{"v":45,"d":"45.0"},{"v":100,"d":"100.0"},{"v":100,"d":"100.0"},{"$f":"B33/B26*100","v":{"v":7.54957056515746,"d":"7.5"}},{"$f":"C33/C26*100","v":{"v":6.307821698906644,"d":"6.3"}},"Чуйская область"]
["Бишкек ш.",610.9,492.5,{"v":101,"d":"101.0"},{"v":101,"d":"101.0"},{"$f":"B34/B26*100","v":{"v":64.77573958222882,"d":"64.8"}},{"$f":"C34/C26*100","v":{"v":69.03560414914494,"d":"69.0"}},"г.Бишкек "]
["Ош ш.",152.4,81.3,104.3,104.3,{"$f":"B35/B26*100","v":{"v":16.159474074859506,"d":"16.2"}},{"$f":"C35/C26*100","v":{"v":11.396131202691336,"d":"11.4"}},"г.Ош "]

{"sheet":"таб 37_38 ","index":33,"n_rows":35,"n_cols":8,"rows_kept":35,"merged":[[1,0,1,7],[4,0,4,4],[5,0,7,0],[5,1,5,2],[5,3,5,6],[5,7,7,7],[6,1,7,1],[6,2,7,2],[6,3,6,4],[6,5,6,6],[26,0,26,7],[27,0,28,0],[27,1,28,2],[27,3,27,6],[27,7,28,7],[28,3,28,4],[28,5,28,6],[29,1,29,2],[29,3,29,4],[29,5,29,6],[30,1,30,2],[30,3,30,4],[30,5,30,6],[31,0,31,7],[32,0,32,7],[33,1,33,2],[33,3,33,4],[33,5,33,6],[34,1,34,2],[34,3,34,4],[34,5,34,6]]}
[{"$nulls":6},"Обратно в содержание"]
["37-таблица: 2026-жылдын январь-февралында башка тейлөө ишмердиктери \n\n\n\n \n  \n "]
["                       боюнча рыноктук кызмат көрсөтүүлөрдүн көлөмү"]
["                       Объем оказанных рыночных услуг прочей обслуживающей деятельности "]
["                          в январе - феврале 2026г.\n"]
[null,"Млн. сом",null,"Пайыз менен \nВ процентах"]
[null,"Бардыгы \nВсего","анын ичинде калкка \nв том числе населе-нию","мурунку жылдын тийиш-түү мезгилине карата\nсоответствующему периоду предыдущего года ",null,"жыйынтыкка карата \nк итогу "]
[{"$nulls":3},"бардыгы\n всего","анын ичинде калкка \nв том числе населению","бардыгы\n всего","анын ичинде калкка \nв том числе населению"]
["Кыргыз Республикасы",{"v":2710.1,"d":"2,710.1"},{"v":2147.3,"d":"2,147.3"},{"v":100,"d":"100.0"},100.3,{"v":100,"d":"100.0"},{"v":100,"d":"100.0"},"Кыргызская Республика"]
["Баткен облусу",{"v":44,"d":"44.0"},40.1,{"v":100,"d":"100.0"},{"v":100,"d":"100.0"},{"$f":"B10/B9*100","v":{"v":1.6235563263348216,"d":"1.6"}},{"$f":"C10/C9*100","v":{"v":1.867461463232897,"d":"1.9"}},"Баткенская область"]
["Жалал-Абад облусу",236.4,196.7,{"v":94,"d":"94.0"},{"v":94,"d":"94.0"},{"$f":"B11/B9*100","v":{"v":8.722925353307996,"d":"8.7"}},{"$f":"C11/C9*100","v":{"v":9.160340893214732,"d":"9.2"}},"Джалал-Абадская область"]
["Ысык-Көл облусу",179.7,125.3,95.2,95.2,{"$f":"B12/B9*100","v":{"v":6.630751632781077,"d":"6.6"}},{"$f":"C12/C9*100","v":{"v":5.8352349462115205,"d":"5.8"}},"Иссык-Кульская область"]
["Нарын облусу",16.8,15.2,{"v":100,"d":"100.0"},{"v":100,"d":"100.0"},{"$f":"B13/B9*100","v":{"v":0.6199033246005683,"d":"0.6"}},{"$f":"C13/C9*100","v":{"v":0.7078656917990033,"d":"0.7"}},"Нарынская область"]
["Ош облусу",516.9,95.1,95.7,95.7,{"$f":"B14/B9*100","v":{"v":19.073096933692483,"d":"19.1"}},{"$f":"C14/C9*100","v":{"v":4.428817584874027,"d":"4.4"}},"Ошская область"]
["Талас облусу",20.3,16.5,96.3,96.3,{"$f":"B15/B9*100","v":{"v":0.74904985055902,"d":"0.7"}},{"$f":"C15/C9*100","v":{"v":0.7684068364923391,"d":"0.8"}},"Таласская область"]
["Чүй облусу",140.2,124.7,96.3,96.3,{"$f":"B16/B9*100","v":{"v":5.173240839821409,"d":"5.2"}},{"$f":"C16/C9*100","v":{"v":5.807292879429982,"d":"5.8"}},"Чуйская область"]
["Бишкек ш.",{"v":1258.2,"d":"1,258.2"},{"v":1258.1,"d":"1,258.1"},106.6,106.6,{"$f":"B17/B9*100","v":{"v":46.426331131692564,"d":"46.4"}},{"$f":"C17/C9*100","v":{"v":58.5898570297583,"d":"58.6"}},"г.Бишкек "]
["Ош ш.",297.6,275.6,96.4,96.4,{"$f":"B18/B9*100","v":{"v":10.981144607210066,"d":"11.0"}},{"$f":"C18/C9*100","v":{"v":12.834722674987193,"d":"12.8"}},"г.Ош "]
[]
[]
[]
["38-таблица: 2026-жылдын январь-февралында почта жана чабарман ишмердиги, байланыш, "]
["               радиоберүү жана телекөрсөтүү кызмат көрсөтүүлөрүнөн түшкөн пайда жүгүртүү     "]
["              (КНСти, акцизди жана ушул сыяктуу милдеттүү төлөмдөрдү эсепке албаганда), мин сом"]
["               Выручка (оборот) от услуг почтовой и курьерской деятельности, услуг связи, "]
["               радиовещания и телевидения (без учета НДС, акциза и аналогичных "]
["               обязательных платежей),  в январе-феврале 2026г., тыс.сомов\n\n\n\n \n \n\n"]
[null,"Бардыгы \nВсего",null,"анын ичинде: \nв том числе:"]
[{"$nulls":3},"почта жана чабарман ишмердиги кызмат көрсөтүулөрүнөн\nот услуг почтовой и курьерской деятельности",null," радиоберүү жана телекөрсөтүү кызмат көрсөтүүлөрүнөн\nот услуг связи, включая радиовещание и телевидение"]
["2025",{"v":6421676.1,"d":"6,421,676.1"},null,{"v":370531.4,"d":"370,531.4"},null,{"v":6051144.7,"d":"6,051,144.7"},null,"2025"]
["2026",{"v":7243677.8,"d":"7,243,677.8"},null,{"v":475042.2,"d":"475,042.2"},null,{"v":6768635.6,"d":"6,768,635.6"},null,"2026"]
["Мурунку жылдын тийиштүү мезгилине карата пайыз менен "]
["В процентах к соответствующему периоду предыдущего года"]
["2025",104.2,null,97.1,null,104.6,null,"2025"]
["2026",109.6,null,128.5,null,108.5,null,"2026"]

{"sheet":"Лист1","index":34,"n_rows":0,"n_cols":0,"rows_kept":0}